{"text_format":"1","workbook":"xlsx","n_sheets":4,"sheets":["CB_DATA_","Plan1","Plan2","Plan3"],"not_rendered":{"charts":2,"images":0,"macros":1,"external_links":1,"defined_names":47,"comments":0,"pivot_tables":0},"unopened":[],"bounds":{"document_bytes":16777216,"sheet_cells":100000,"rows_first":2000,"rows_last":500,"rows_between":2000,"halvings":0,"cell_chars":16384,"cell_head_chars":4096},"cells_cut":0,"cells_raw":0,"read":"whole","date_system":"1900"}

{"sheet":"CB_DATA_","index":0,"n_rows":34,"n_cols":16,"rows_kept":34,"cut":false,"hidden":true,"merged":[]}
["Crystal Ball Data"]
[null,null,null,null,null,null,null,null,null,null,null,null,null,null,null,{"$f":"_xll.CB.RecalcCounterFN()","v":{"$error":"#NAME?"}}]
["Workbook Variables","Last Var Column",0]
["    Name:"]
["    Value:"]
[]
["Worksheet Data","Last Data Column Used"]
[null,2]
[]
["Sheet Ref"]
[{"$f":"CB_DATA_!#REF!","v":{"$error":"#REF!"}},{"$f":"Plan1!#REF!","v":{"$error":"#REF!"}}]
[]
["Sheet Guid"]
["d778a5d6-b2de-498e-adfc-a705453bd316","0059aa2d-7d96-4ab2-8873-eb97ae9a7a89"]
[]
["Deleted sheet count"]
[]
[]
["Last row used"]
[31,34]
[]
[]
[]
[]
["Data blocks"]
["CB_Block_0","CB_Block_7.0.0.0:1"]
["㜸〱敤㕣㕢㙣ㅣ搷㜹摥㌳摣㔹敥㉣㐹㤱ㄶ㈹摢戲ㅤ㥢㠹敤㌸㌱ㄵ㕡㤴慤搸㑥慢戲扣㤸㤲ㅣ㑡愴㐵㑡㡥攱〴慢攱敥ㄹ㜱慣㥤ㄹ㝡㘶㤶ㄲ㕤〳㌶ㄲ挷㙥搱㕣〰昷㠲扡㜱ㅢ挳〹〲攴㈵㘹㕥搲摣㕥㜲㐱ㄲ〴づ搰㠷昴愱㐵ㅦ摣㈰㘸ㅦㄲㄴ〲晡㤲〷〳改昷㥤㤹搹㥤摤攵づ改戵摤搰〱㡦扣㍦捦㥣摢㥣㜳晥敢昹晦㌳捥㠹㕣㉥昷㍢㈴晥㘵捡㌳㜳换捡㔶㄰㑡㘷㜲捥慢搵㘴㈵戴㍤㌷㤸㥣昱㝤㜳㙢搱づ挲㍥㌴㈸㤴㙤搴〷㝡㌹戰㥦㤲挵昲愶昴〳㌴搲㜳戹㘲搱搰㔰捦㐱昸ㅢ㐹ㅥっ昶ㅡ捣〳慣捥捤㉥慤㍤㠱㔱㔷㐲捦㤷㐷挶㉦㐴㝤㑦㑣㑤㑤㑥㑤ㅥ㝢昰搸㠷㈷㡦ㅥㄹ㥦慢搷挲扡㉦㑦戸戲ㅥ晡㘶敤挸昸㜲㝤慤㘶㔷㍥㉡户㔶扤换搲㍤㈱搷㡥摥扢㘶摥昷挰搴㝤挷㡦㕢て㍥昸挰㈰㕥㥤㍢㍢㌷扢散㑢㉢㜸㥢挶搴㌹攵晢收㘵挵收摡愴昴㙤昷搲攴摣㉣晥㑢捤ㅦ㑦昷㑦慥慣㑢ㄹ昲搵搲㤷㙥㐵〶〶㍡づ㌸㌳㐱㔰㜷㌶戸㜹㠶戳㠰愵㔶捣㈰搴㥤㌹㔹慢ㄹ㑥㌲㙡搱㔹挲摥搵捣慤㐱㘷㐵扡㠱ㅤ摡㥢㜶戸㔵㜰㔶㌱㔰㜵挸㌹ㅦ挸㜳愶㝢㐹㥥㌵ㅤ愹㍢㈷敢㜶㌵ㅦ愵㕣摦㕤挹㄰改㠹愹攵㑦捥〴捥摣扡改慢ㄹ〵摣㤸㡣戶ぢ㝥愵戵敤敤摤挷攵搴搵ㅢ㌸收㥤摤摢愱收㠲改㌷㕡㑥㜴㙦ㄹ㉦扥㜵〶昷㜴㙦㥦摡愳搶㍥ㅦ散摥㐷㙤㘵㙢㙢㌱㄰搳户摡㔱㉣挶㈸㄰昴ㄳㄴ〹㠸㐰愳㐴㌰㐰㌰〸㈰昲晦ぢ㉥㐹㜷㘴㤵㔶㌶戵昲㥡㔶慥㘸攵慡㔶㤶㕡搹搲捡㤷戴昲扡㔶戶戵昲ㄳ㕡昹㌲摡㈴愹搸摦慦挵愹晣敦㍦晥挶昴挷㍦戵昰挵攷て㠹ㄷ扦晡挶て〶て愰搱㈳昱愴收㝤昳ち㐸慤㐹挵挷㈶㡦昲摦捥㕣〱愶戰㡥㕢昷㕢㔳㔳搵攳㐷捤㝢㑤㥤换捡㐰㝥ぢ愱㡣愰敤愰昵愸敤㔶扤㉢ち㜷户捣㥡㠱㙣㙥摣㐴㕣㌷敢搵摤㙡㜰昳昶㤵㉢愱ㄹ捡㥢摡敢㥡㠳㜴㜴㕢〱㕢挹㐰扤敦搶昶㙥ㄷ捣㕡㕤捥㕣戵愳敡昷戴㔵㍢换扥户搶扤㜶挱㤷㑦㌶㙡㍢㘶㌴〳愱戶愹挶敥㔸㘵㔴ㄵ捤㙢㝣㙥摤ぢ愴慢愶㌷攱㉣摢㤵换搲㕦㤱ㄴ㠹戲慡㤶㝡㠸㔵㌱搷㑦㉣戹㔸㈸戸戵晡扥㜴愹昵搰搵㄰捣㉣慢㤸敦㠶昴挳慤㔵㜳慤㈶慦㙦㘹ㄲ扤ㄳㄵ㠷㕢㡡ㄷ扣㑡㍤㤸昳摣搰昷㙡慤㌵㌳搵㑤ㄳ㤲愶㝡挶慢捡㝣㍥愷㠴〲〴㙥㕦㥦㄰戹扢扢昳㠲㐲㐴ち挵㘴攴ㅢ㕢挹㙥昲ㅣ㔶㠷㔵搴㈴㘹㔲扢㘳㠷挱㌸㕦㈵㘳㌲㌸㌰戵㈶敡て扥昴〳㍢っ摢挰摣㍢摢㔸搳㐶攳搵㍦戴㈹摤昰㤴改㔶㙢搲捦搴㝥㠲㌳㌲㠶〱昴㙢㄰〸㕤㜷㡦慡㑥㕣ㄵ㕢晡ㄵ扢ㅡ慥ㄷ搶愵㝤㘹㍤㐴ㄹ㌴㘴戱挸慤敤㐸挶㜵㈸㌲づㄲ㡣〲㤴㑡戹挲ㄸㅢㄵ㑡㐸㌹㥤搲㈹㠳㤷㕢〴㌹晢戵昰昲愰戵㘰搷㐲ㄹ〹攵㘱ぢㄸ㠹戴㥡㐲摦㄰㐹搴㌷㉢㤱挲ㄸ戳收㐰愵愶敤㠶㕢㑤扥敤攰㤲㠸㠸昶㘵挱㥥㤳〵ㄴ〵慤昲㈰㠳搷㐰㌴㙤搲㈰扢㜱㡡㠸挸〶ㄹ㥡ㅤ㈳户ㄲㄹ摢㘷挸〸戴㑦ㄳ㈱㕢ㅦ敤㉥㈳㐸散㥤㐴捡㑥㕤昹㜱㕦㥡㙤㘷换㐷搲散㄰㌶捥戸㥥攰〶㠲ㅢ〹づ〳㠸晦㠲㠴愳㤴㐳扥㌵ㄹ㌷攳搹戸㠵攰㍤〰㤰㑦〶㘵㑥㉣慡㘸㐳敤挶㡥㘴扢㈱搸挹捡㈸㡥㐴ㄱ㉤攳㠶㥤㌹攴㈸㐴挷㔶攷摥搰戵㜹愵㘳摦摦㥤㌶搳换㈱㐵㘶㌴㑤慦㜵㠷愶改㡤㘰搳ㅥ昵搶㙤攸㙡㡣ㄳ扣ㄷ愰㘴扣㡦㄰捡㠵〶敦敥㉣㝡㥡㤴敦ち戳㈸㌲㠶㝡㔴昰㌱㈱昳〸㤰㈱攴㍡㡥㉦晢㌶㌴捤挱〹敢㕤㙦㐳ㅦ改捥摦㌱搲摢昴收扥摥愱扦攸㑤㕡搱户㠳扤挴㝦㜴搵㌱㜷愲摡㜸㍦挱㕤〰㙤㍡㠶愷敦㌷敢㈹㔰㘶戱㤳挲摣㐱㝡㕤㤴㤵扢扡戵㈱㤵〶ㅡ戴㔶㑤晦㤲っ攱挱㌸㍤て㕢搸昳㝤㔹挳愱戶慡ち㜸㝥戹愱戵㌰㔸昰㍤㠷攵晢㌶㜲昰慥㔰っ昹扣搶㤷㙢戳㤱㌳㙣捤㤴捦㈹㐵㌹搴挱昷㜶ㄷㄲ愹㑥慤攴挵㝥搹攷换㝤㐹搲㠳㈴昹㈰戶搵戸ㅢ〰㔲㐲晣㙢㔷㠹㜲㠴捤㍥愴㥡戵㕡慣昴昰㘵㥣㑥摡㝣㠸ㅤ㜲㘴㈰㜲搸捥挲㝦㄰っ㌹㉢戶搳㄰ㄶ〳捥戲昴㉢昰㉤搸㌵㔹㡡摣戲ㄴ㌵晢戲攲㕤㈲㉢晡晡㍡捥搳ㄹ晥㌵㐵㈷㙤㔲㈲㤳摢㌳㉢㌳捥攲㑤愲愲ㅢ㤲㐲㈵挳㌵搴㤰㐰愴㍣戶摤ㄷ㌱㍤㠸㤸㝢戰㜱挶㔱㠲㈹㠲㘳〰晡捦㈱㘹㜶扢昱っ㠷昵㙦搲愵㕤㉥攷㡡㐴㠳㜲ㄱ扥搶㔵㔸ㅤ攷㙢㍥㑣㜰㍦㐰㥢昹㐳〷㘴〶㈱㉡㤴愷〸㔱㠵㌱慣ぢ戶扣㐲ㅡ㌸㘰㈱戰㌴㔷て㐲捦㘱㘴㘹挸㥡昷捥㝡攱扣ㅤ㙣㈰ㄲ㌵㙡挵㤹㐷搷愵ぢ敡昲㘱晢戴㤵㜹ㅢㅢ戲㙡㔸㉢㕥ㅤ愲敤昴晣㕥㌸㤸㘳㍢㘰㑢慡戳戹㈶㤰㝡㍢ㅦ㘳〸㠱㥤㔶晥㔶㝡㘳㜷攵晤收愱㙦戸戹愳慢㜶㔸㤳〳㔶挴㜴捣ㄷ㉤散㈲㈲〷搵㝥㙢㜵摤㤷㜲㝥挸㍡改摢搵㥡敤㑡㈲〳㌶㈶㠳㜵㡢昲ㄲ愲〴换ㅥ㘳㠰㥥㍢㘴慤晡愶ㅢ㙣㤸っ㈸㙥ㅤ㙣㜹㔲㘱ㄱ摤㥡戵摤〰慦㔱㔸㘴㝥搸㕡㔹昷慥㈰㘲㕢㜷摣㤳收㐶戰㈷戰㐲愲㡦㤲㐲㡤搰㠴愶㠹愲㔶散ㄵ㍦㍣㤰攷㜲攴扤㍣㠱挲㔵㑥愷捦㍣㐳㝢搳慥㡦㘳㌴戴搳㌹愷㐱㐴㡦ㅡ㠵㝤㤹㔲㤸㥣㙡㍣挸㍥ㅦ〱㜸昸攴昹搳捤挸摣㕢㡡㔹敢昴昲㘷挸㜸㐵ㄶ㡤㐰〸㝤㜴〷㈲㔲㘱ㄹ㈹〷ㅣ〸㡣昳愹㥤晣㑡㤶㙡㐳敡㍢搰捣㉥㈰㤲㌴㘸㉤㥡㙢戲㠶㜸戴㘳㠶〷愲〷㥡戱㡥㔹ぢ攲扡㌹捦㜱㑣㤲ㄶ挹㜲愵㘲㤲㠲㘷敡愱㜷挶㜶つぢ㐰搱㕦㕣㘴㕥㐵㤱㜹㔵ㄵつ㕡攷ㄸㅡ㔴㜹㡥攵㕤㌲㝤㍢㕣㜷散㑡㤱てっ摦敤〹㥡〴㤳㔳昲㈶㈹㤱ㄹ攳㙤搶晣㜹㤸㙣挱㈴搰㍤〹㌹捡慤㈳晡㐱戹㥡㈸攰㥦攸搱戱〴〱愳㍣愵挶ㅦ㘳㌴㕤摤㡥㠰挸㔱改㕡㜲〷攳摡㌳㈸㠹㠴㄰戱㥥㐱㈲昰ち愶㠴㍣㕤摣〵敢扣㙢㠷挰ㅥ㌱戶㘰㠷昳〱㔰づ㠰慣㍡摥摥愴戰㥡敡㌴搱搰ち户㜵㔶戵愸㠹㕢㍢敢搳㝡攳㡥㙤慡㈳㡤㤲㔲㈴㍢㌵㔲㥡㘵㥢㌹敥㈵㔵㈳㤴攲㑥戴㡤挸㜲㥢㌶昷㥤㔲攴㉤㈸㈶㐵㌳㌹攳㑦ㄴ愱㈰搰ㅢ敢㈸晡散戳挹㈳ㄵ戱愱つ㔰愲㥥㡡捡㠶攲㤰攰㘹㕣㍢愹捡㔲晣〴晥㍥㄰㘷㤷敡㘱㑢㡤㜹㜵㌴慥㤹愹搵㤶㕣㔸〹ㄵ搳慦敥ㄱ㤶挶摡㈲つ愳戸戳㔷敤ㅦ㙤㙦㡡ㄱ㘳㌶㘴㔸㈴挳てっ㌶〴㜳愵㈲慡戴捥㠶戸搵㡤攲㈲㥦捥㐸搳㔵ㄸ㔸〹慢昳㜲㔳㤹㘱㑤㑢㝥㔴㜵㘸㥣ㄶ㤵ㅣ㌵慣㤹戵〰㉡㍤愴ㅣ㡦㜳㡡挱つ敢ㅣ摤㔲戸挴〰戱ㅢ攷㤶㉢㈱㐲扢㡤〱㜸㌲搸㍢搸挱㡥㐴愱ㄳ㕡㘷㤴愰㠵っ挲㙤㕤〴㜹愷㐷㡣㐲㤰㕡㉡晤捦戴昸晢㤷㤸扥㍡㥤㑢㌲㌱ㄳ㌱摣㤵㘱㍤〰戹改挸㈴戹㘸㌴〹㤸㐷㤲㑤〹慤挱愴㡣㈶挶㄰㑤㍥㍦挴㉤ㅥ挶戲㠶挹㌶㌵摣㜳ぢ㙤㘸搳摡搶〱敢戴㕢愹搵慢㔲愹攲㐴㔶㉢㡤扣㈷昰愵慥〰㐶摣㤴戱㉦昱愶㥣挶㔱㡡㑢㈶㤲㝡户扢㡤㘹㜴㔷㐲づ㘳㐴慡㡦〱挸っ户㥣ち㠸㜵摣㔳愰㝤㜸戰㜹㠱㐱㕤㥥㠳㐸敢㈸愲㉣㕢挴㝤扣㐶ㄴ㔹㜱㕢慡搹愲户攸搱㘶㑦ㄵ㥤戲愳愲㍤㠱㈳慣㌳ㄲ㜸㠵〲㡣㤱ㅥ戹㠳㠳攴慥挵搱摤㙢捦愸挷摣㌵愰㐲㘱㐰㌰挶换㔳㔰づ扢ち㐶愲挱慤㌵慤㙥挱攸㉦㉤㙦㘳〶㐰㌰っ㑣㠳ㄶ㉤㈳〳㘷づ昹㥤つ㥣摢搰㉡㈳㐲㥡づ愶㌲㐶㌹ち㠷㍤㤰〶㙥攲㐱㝡搵㠳ㄲち挷搴挵戰攴㙥攲㠴㠳㈳㤰攷㕦摦㔶戸㙣㠶戸晥攲ㅥ㙥㉢㥥愹㔶㘹敥挲㍦户㈷戰㡡慢ㅢ㤱㌹㍡搶㜶㈹㑢慤㠹昶摤敤㙤ㄵ昱㘵挱㘳昳㤳愷捣戰戲扥ㄲ㙥㐵ㄷ户㝡㈵〹晤㝢昰㐷㙣晢㜶摡捣㜹㤷ㄷ㔱㌷戹昷愵换慥㜷挵㔵昳搲〳摥晡〳㠵攰ち㘵㍦㈷㔹捡晤づ晦㔴搲㜲晡㜷㌱攲㙥愶捤〱㥡づㄲ㡥愳㔲㈴つ挶㤱捦愰ㄳ搸敥㡤㕢〳愴㤳戱㌶㍡㔱㠲㘰㥦㔰摣㑢㙦ㅢ愱㠸敦〰慤㈴㤶攸㐸㡥㍤晦ち㔸㕦㝣ㅢ㈵㐴㌸㥥㘳㌱愲扦ㄷ戹っ搴㈹㐱ㅥ㕦昱攰㠵㤰㍦ㅣ㉣㈵摣扣㉤㍢晤㍦㌰戳昸㔶㍢㡡㙥㈵㡡晥戹〳㐵㠲搷㐰ㄴ晦㍥㡣㑣㤲㜴㠶㘷摦㔴㈰㥣㙢摡㍦㠰扥攳ㄷ㝥㝦㡦〷搰挵㤸㌸㤴㡤㠶㔰摢㥤㜸㙥㤸〸㝤ㅤ㈶〲㠳昷捡㐴㌸㠳㡣㘰ㄴ㍦㌲ㄱ㘲ㅦ挸ㄲち㜶㌶ㄱㄸ摢换㌰〴㔳愱搶㤴㕢㠳㈷戰敢ㅤ晡挷㑥攱攲慤っ㄰捦㠷搲ち收攰㤱扡愱戳㜸搹昴㑤攷戰㉡㍦改㑢㈸㌳㝦ㄵ㌷戹㔵ㄷ昶戸㘹摢ㅡ搵㘹ㅢ㕦㐵攲㘵摦昷愷散敥晥㍡㌰ㄵ愵挸㝤㉦㡡愲昰ㄶ㍣㈵㠲攷㠶摣㥦㡤㝤敤攴㝦㍥昵摣㌴㙦慢挵戴慡摦㡤㝣㉦㈱㝢摡ㄳ〸敡愶㉥㡡ㅣ攲㠷㌹㘷昰㠹㤲扤㔱㤳戳愶慦慣愰挰㜰㤲㙣㐴㜸㈹挲㡣㠸㙦㉦㤸㤸戸昷㄰㤹㤸㤳㙤敥㑥昵㘱㤳㜲ㄱ㑥愶㈶慥㝣㝡㐹搸㔰㜴㔵㘴㍤㕡㥢晡㍦㐱ㄵ扤挹㠹戴㕡㠹㍣㜵㌲〹昱昵㜶㕤㜷㥣扡㉥㍡挸㌰散㥦㐸㈹挴ㅦ㐸㈱改㠳っ㉦〴㈸㈹㜵づㄹ晤ㅥ㠰㡣挸㕡㝢㠸㤷晥㠰㝤㈱㈰ㅢ㤷晥㝡晣㠸〵扢〸㉣㈶扥昸㕥㑦戴戴㐵ㄳ搵挴㔰慤戲㘹㔶㤰㔱㠷ㄷㄶ㑣㈵愵慢挸㈴㐹㍦㠶摣慥摤㔱㝣挹㤰ㄳ〵摥㈲挶搶ㅤ晡摡㑡捥㐳㙥ㅤ㌷㍦愰㘷ち㑡㘱戸〷㔹㡣〳愹㡡搱㐵㑤㑢㔱ㄱ攱㜰㤴㙤㜴ㅡ㠸慢愰戳摣挳㌸㤵㈲昸挷㉦㠵㔸㍦搱ㅣ晡㔰㝢つ㜵㥣摢㡦〵昲〷晢敢搶っ挶挶㕢挹㌱㤰戰扢㙡㔵㡣慥㠷㥦㐷ㄷ㉥㍡㈷㡣㘶㔶㍤㡢攳昸㤳㜰㔶㥦搶愱晦ㄹ扤㔶㥣㜵㠱扤ㄹ挶㙥搱晦ㅦ㐳挱㡥晡㕦㌰昶愶㄰昹㔸㥣攱㠳捥昸挹㡥㈱ㅢ敥〸㍣摢〸摥愸㠳戱愱戲っ㜹㐷戹ㄵ㝣扣ㅡ㔵㉢〹づ扦㔷扥晤㙡㐴愳㉦㙤摢㠱慥〲㤰戱㈱晤㉢㄰㐱㕤晢户捡慤攴㜴㕢㜸ㅣㅤ挷捥搸ㄵ摦ぢ㍣㉢ㅣ㕦㐱搰㜷㥣摦㥥㔹戰㜹㘶挴㤷摢㠵摡敤搸㠹挱㑦愰捦搹㈵〸散戳㌲㝣扢㘲㤱㡣㉣散㉥㤲挱敦㤰㐶㔲攱㈵㙡㠷攰㍡敢㤱扡㔹挳愷慢㑢昰㜵㠶㉣摡ㄳ捡㉥昲㌸户摦搰攰搶攱㡥搶㐷攱て㤲戵㐹〴挷搴ㄲㅥ晦〴昷戵㝤て㕡摢挶㙢ぢ搸戲㌷㥦㕢㐹㝦ㄵ㌸摤摤㕢㕡㐹㠶敦攴ㄷ挹㈵愳㑣㠸㑢晢搳昸扢㝢〷㉤㐷ㅢ〵㥤挷ㅦ㜴搳ㄱ㌶㔱㠳晢㙣ㄷ搱敦㡢攸㉡㘶〸昰㌳捣㌸挳〷㐱㉦ㅦ㔹㔱晣㈳㤶㐵〶㐰㍥㔷愸〰㜴愷敡㤷户愳敡㤱㠷搹ㄳ㐹昰㡣㐱㜲㉣㠹㉦愰㈱户㉢㕡㌶㔸㠲换ㄶ敡㉣㠱扣㤱昴㐰㍥㈷㜸㤶㔰ㄳ昹㍢㜴㘸㑣挴㐶㘹昷㠹晣敤㜶ㄳㄱ戴〲搴㐲搳攳㡦㈴㕡挴愸愱摡㜰〸㕣〲て㘰㈴㔱㈶挳㤴㡦ㄴ㍡㠵㈸挶昰㙤愲〸改㕦攲扦慦㑦晦晣㌵愶摦㑣ぢ㈵ㄱ㔱搵扡ち㑡㐴戵㡡捦愷㔷攱愳戴晢㉡㍥扢摤㉡㐶㈸㉣㌹ㄳ㈳〴ㄸ敡ㄳ㘵晣㔱慢慡㈳挳つ攵㑦㕣㈴挰慦㘵ㄶ㈳㈶㑡㔴摦㉢挸愰㉦㜷㕥戵扡㡡㑣搲㔷攷㐶㘴㝣攵愳っ㈵摥㠸愴㔳愷㄰㜹㘵ぢ㤱㝡㉣㍡戱㍢㜶㑦〸〹㉣㠹㥦捤㜶㤵敤㠵ㅥ㐳晤攲㠵〴㌱愷㑥㈵㥦㔰㘹㜱昰〹㠴ㄱ㤹愶㈴㈴㙥愴㜸㍥㘹晣㡤㙦㌶㝤愷愸㐰〲昵㐴㡤㐹㜰慡昱愷㤳挶挷昰㜹㤶㙡㤳攳㔵〲愶搷㤳挶㈴㑣搵昸戹愴昱慦㡦ㅤ㙥㌴㑥攸㌰ㅡ㔹㈷㤱㘴ㄸ扤敡ㄸ㤰晡㔴㝢ㄸ捤㜵㡢㡡㜴挰㡡㡡㈹㐲㔵っ戹愶㔴改㈰㙥㠵昸昸㔸㝡ㄱ㤷㥣㜰ㄷ〴搲㌶晡㝦㈶㥣挶攵愷㜹㌳㌴昱㉤昴㈶愲捥扥愱㥥搸戹㘰㉤昹㈸攸户㑥〷㌸㕣㔵昷ㄴ㠹挰㉥挸㐷晢扢㠳㜷㍥挳㠶㙣敥㐷ㄲ㉤搳㜸㤹愴㌷㉤愲㈲㉣㜹昱挹〴戳戹㘷㥢㌴㘳㍣〳攴㐰㑣〲㌲㘳㍣ぢㄸ㐵㘴挶㔸㌰㐲晥㔷捣晤㐹㔶㝣㡡攰㌹㠰㤲㈰戳㤳づち㥦〶ㄸ㠳戹㡡晦㘷㐵㌰㕥㤵攳ㅢ扥摣戴㠳ㅦ㝥挹搳挴㔳挹ㅢ搳戴㘴扣挰㕥㝦づ搰〷㘷慥㠸㈹戱㘴晣〵㑡搲㙦愶昴㔰㙦晥㑢㔶㝣㠶攰戳〰㈵㥤㌳摥昵搶㜱㘱㍤敡戱捦愱慢㜸㤶〰㍦攳昳㜱㠶て㍡㌷攳㡦扡㕢捥㍣ㄸ㈷㥦昹㈳昰搹昲㍤晦㐳昸㍥㝦㡢㡢敥挳晦㥥㐴㔷㘶㝥㕥晢㐸㙦㘳㤱ㄳ㘸愱慢摦〶㌶晢㉤㡣挳㜵㌵攳㈹ㅣ㤱㥡愵愸ㄵ〴㤱捥〵ぢて㙦攰㕢㑥愸ち㈱㐸〸慡挲㡤㉢愶㔱㘰晣ㄵ㥢ㄲ挷挴㤳昱搷㝣㈲㙡搵㈶晥㑤㥣攱㠳㈰㕥㔵昷㈷攲敥挹ぢ㠹㙢㔵㘱户扤㤰昸㔷ㄵ敢改ㄷ扥挴挱ㄴ戲㤰㘹㔵㑤㐴㥡愲愱㉦㈰㌳搴㌷捣戹㍤㡡㥦㜶㔵㔴㉥㔶㉦㕥晣敤㜰㝥晣愶晣挷晥㜴昰愵搷㝦昶换ㄷ㝦昱昱ㄳ晦晤挶换㉦晦攲㔷㉦扥昶挶昷搶㑥晣攴搵㔷㝦昴昰ㄷ㕦晢攵㐱敢ㄵ敤㥢扦㕤㝣攵改愹换㑦㍦㘹㥤扦晢攴搳㡦㍤昱挸搴昲㜵ㄳ㝤㝤晤晤㜷㡤晥昴挶て㡣㍣晢攴户挴昷晦敤〶㔷愸攵攲〵慤搳攰戲搵㌴晥〱ㄹ㑣㠳㌳㝥㐷愷挱攵慡㡤㕡㡢㌷㙡ㄶ〵㐵㜸㌸㌸〱㔵㘱戶㔶っ晣ㅦ〳㐱戶㜶","㜸〱敤㝤㜹㝣㔴搵昹晥㥣㉣㤳㥣㠱㤰㔱㐴ㄴ㘵㈷愲㠲㤱㔵㐰㐴〹㘱㤱戰ㄳ㄰ㄵ㘸ㄸ㤲ㄹㄲ㐸㌲㤰㤹戰㔴㔱㉢㉥㐵戴㔶戰㔵摣〰ㄵ愹㔵戱ㄶ㜱㕦㡡㑢㜱昷㙢㕤㕢㙢挵扡戶㘸搵扡㙦攵昷㍣敦扤㈷戹㜳攷摥㐹㘲晤㝥㝥晥昱扤捣扣㥣昳㥥攷扣攷㍣捦㕤收捥扤敦摣〴㔴㈰㄰搸㠷㠵晦㜳挹㘱攱搰昲㔵㠹㘴戴慥戸㌴㕥㕢ㅢ慤㑣搶挴敢ㄳ挵㈵つつ㤱㔵㤳㙢ㄲ挹㙣〰㠲ㄵ㌵㘸㑦攴㔶㈴㙡㝥ㅡ捤慦㔸ㅥ㙤㐸〰㤴ㅢ〸攴攷敢㉣戴ㅦ㙣扦挳愶愲搹㑢攷搰〰ㄵ搰㐱㥡㍣㥡㝣ㅡ㑤ㄳ愲㘹㐷搳㥥愶㠰愶〳㑤㈱㑤㤸㘶㍦㥡晤㘹㍡搲ㅣ㐰搳㠹收㐰㥡捥㌴〷搱㜰㝣摤㠵收㄰㤸昶㠷挲捣㉡ㅤ㌳㙤攱㘲戰㈹㑦挶ㅢ愲晤㝢㥣㘴捤㜹搴挰㠱挵〳㡢〷㡤ㄸ㜴㑣昱㠰晥㍤㑡ㅢ㙢㤳㡤つ搱㔱昵搱挶㘴㐳愴戶㝦㡦改㡤ぢ㙢㙢㉡㈷㐵㔷捤㡡㉦㠹搶㡦㡡㉥ㅣ㌰㜸㘱㘴挸昰㠱㐳㠶づ㡤㡤ㄸ㌱扣㝤㔷㐴㥥㕡㍡㘶㝡㐳㌴㤶昸愱㘲㜶㘳捣㘹愵㘳㡡愷㐶㤳㍦㔴捣敥㠸㠹㤰㘳攳㜵㤱㥡晡ㅦ㈸㘸㉥搷改搰戱搱捡ㅡ慥晣㘸戴愱愶㝥㔱㌱愶㥤㈲㌴㙡挳㡡㑢ㄲ㠹挶扡愵摣㡥㑡愳戵戵㌳愳㌱㔹改㜵㘳ㄳ挹改㤱㠶扡㐴晢㍡敡ㄷ㙤㠸搶㔷㐶ㄳㅤ敡挶慤慣㡣搶摡挰㐴㝥摤㐹㤱㠶愹㤱扡㘸づぢ㠵㜵搶㍡㥣㔸ㄵ慤㑦搶㈴㔷ㄵ搴捤㑥㐴㘷㐶敡ㄷ㐵〹挹慤㥢搰㔸㔳愵㜲㜲昰ち㘴昷昵㥡㤹慣㈸捣愷慥戴㍡搲㤰㤴ㅡ㔷攱㐰㉦慣㘳㜳ㄱㄶ㈹昳攲㈶搵挳搵㡢敢慣扣愶㙥㔲戴愱㍥㕡换㐱戸㈶晢戹㐰㈲㤰戵ㅥ㥡㤴㌲㜴戸㤶㔴㍢㝢攷㈳ㄷ㡥ㄲ散〱搳㘹㜶㝤㑤㉣摥㔰搷㝦㑡㑤晤愸〱晤愷㐴㔶㡥ㅡ㌸㘰㠰敥㠹㈶摤㡢愰摥㌰搹愵㠳〷敡㍥㜴ㄵ挱愸㥣扦㘰扦㜶㐶攳扥㤵㔵ㄱ挹慡㔸㤸㔵㔱㤹㔵㔱㤵㔵ㄱ捤慡㠸㘵㔵㉣捡慡愸捥慡愸挹慡㔸㥣㔵戱〴ㄸ戳攴攷攵㘵搹换搷挷昶㥦㌷戱㘴㜷挹㔹扦ㅢ㌸㘸昶㠸戵㍤㜳戹㉢て昶愲收㔶㙤㍣昶戶捡㐸㈲㘹慦㔰敥昳㍦散晡㙥㜹㜵㡦㙦愸晣摦㕦摤ㄸ攴〷㔹摤扡㉦ㄴ搲㠷挳〴㡦㠰㈹㈸㔹㡡〳㔰攴攱㙤て㕦ㄷ敦㔱愲㡦㘴㘳㍦ㄸ愵㕥挰摡攵ㅡ㕥㕥搸攷㤵㝤〳㜷㑤戹㝣捤㥥㠳㤷摤㜶昲㠷㡡〷㔸㌹㐸ㅦ㠵㠲捦㠶㔳捣㌸㐷挳〴〷㄰㕤㌶㘸戸ㅥ㐸搷㈰ㄸ愵㥥戶㐳㜷戸晥改搱㜷㜵搸㕣㝡攱㐱㘳㥦晦扣挳晣攷ㄴて摢ㄲ㝡〸ち㍥愱㠷㌲捥㌱㌰挱㘱㐴㤷つㅡ愸㠷搳㌵〲㐶愹㍦摡愱㝢攴慤晢㌰昴挷昵㔳㌶扤戴昶扤㔳ㅥ昸㌲愶戸㘱㐸攸㤱㈸昸㠴㍥㡥㜱㐶挱〴㡦㈷扡㙣搰㘰㝤〲㕤愳㘱㤴㝡搰づ㝤晤攷搷㕣搶㘹摦愴㐹㌷㑣㕢扣昵㤵㥦摤㜱愰攲搱㐶㐲㡦㐱挱㈷㜴㈹㥡昴㔸㤸攰㌸㤸づ㔳ㅦ扡愷㐷㐹㙤㌴㤲㝣㜸㐷㐳㑤㕣㡦㘷敢〴ㄸ愵敥戲㐷ㄹ㔹㌵攸捡㔷㌷㜷㉥㕤扢昴愷搵摦㜶昹攷㜶挵捦㌰ㄹ㘵㈲ち㍥愳㤴㌱捥㈴㤸攰㘴愲换戰扦㑥愱㙢㉡㡣㔲户搹愱㍢㜴㌹攷搴攴㕦㥦㥤戶昳昴㠳㉥㕦搰昵敡昵㡡㥦㡣ㄲ㝡㍡ち㍥愱㘷㌰捥㑣㤸㘰㌹捣㝥愹〴㡥ㅤ㜴慣㥥㐵挰㙣ㄸ愵㝥㙢て㤴㔸摥㙤昰搵戹昷㑦㍢晦晡挷ぢ㝦㝦㙥敤㐴搵づ捤㌲搰ㅣㄴ㝣〶㍡㤹㜱㑥㠱〹㥥㑡㜴搹愰㘱㝡㉥㕤昳㘰㤴扡捥づ㕤㍤改㡡愳㤶㑥敡㌷㘱挷戹㔷㝥㌹㘷摦愸㡢ㄵ㍦搳㈵昴㑦㔰昰〹㕤挱㌸ぢ㘰㠲ㄱ㤸散㔲㙣㍡ぢ改慡㠴㔱敡㉡㍢昴㤰つ㐷摥㜱㜰搵㉤ㄳ㉦扦敥搱㉤㕦捤㥦㜶㥢攲㤹㠲㠴㡥愲攰ㄳ㍡挶㌸㡢㘰㠲搵㐴㤷つㅡ愲㙢攸㕡っ愳搴慦散搰㔷㍤昴搴㥡㡢㌷㝥㍣㜹攷慢晢㝤㜰摤㤴㉥ㅤㄵ捦㍦㈴㜴㉤ち㍥愱敢ㄸ愷ㅥ㈶ㄸ㈷扡㙣昰〰扤㤴慥㘵㌰㑡晤挲づ摤晦挲㘱㌳晡慣摦㌲改扥挵㘵㥢㑦晢挵愴ぢㄵ捦㙡㈴㜴〲〵㥦搰㐹挶㘹㠴〹㉥㈷扡㜴搰㈰扤㠲慥㤵㌰㑡㥤㙦㠷㕥摢昱戰搹㑦昷晡攷挴敢晦晤㜹攵愹换扥搸慤㜸慥㈴愱㝦㡡㠲㑦攸搳ㄸ攷㜴㤸攰㙡愲㑢〷ㅤ愳捦愰敢㑣ㄸ愵捥戲㐳摦晢敥晢㝦㥤㤰ㄳㅤ昷晢㔳ㅥ晣摢捥搲㐵㈳ㄴ捦挰㈴昴捦㔰昰〹㝤㌶攳慣㠱〹㥥㐳㜴搹愰ㄱ晡㕣扡捥㠳㔱㙡㤵ㅤ晡换昷攷㕥㜵挰攸㙢挷㥥晢搵慥敤㝦扡㘰挴晥㡡攷㜵ㄲ晡攷㈸昸㠴㕥换㌸ㄷ挰〴搷ㄱ㕤㡡㡤敦㐲扡㉥㠲㔱慡挱づ㝤昹摡㑥㕦摣ㄱ晦㙣昲㔵㙦扤摤㉥愷晢戲㠷ㄴ捦ㄶ㈵昴挵㈸昸㠴晥㈵攳㕣〲ㄳ㕣㑦㜴㈹㘶扤㠱慥㑢㘱㤴㕡㘲㠷扥敡㠲敤晦昹散摡ㅢ挷敦昸㘵户戵昳㝥㌹晤㙦敡〰㠲昱づ晥ㅡ挶㈷昴㘵㘸搲㤷ㄳ戴ㄱ〶ㅦ搳〳昴ㄵ㜴㕤〹愳㔴㤵ㅤ晡慣攱㔷㜶晡昳攰扣㜱㙢捦㝦㘴敢㝤㝦㍦晢㌰挵㌳㕢〹㝤㌵ち㍥愱慦㘱㥣㑤㌰挱捤㌰㤸昵㘰扤㠵慥㙢㘱㤴㥡㙦㠷摥昶昹昰扤㕤敥㝦㙦晣㙤戱㡦㠶㕥搰㙤㝥㐷挵昳㘵〹㝤㍤ち㍥愱户㌲捥つ㌰挱㙤㐴㤷づㅡ慡㝦㐳搷㡤㌰㑡㥤㘴㠷ㅥ㜹㔹昱㥦㍦㝦昸敡昱ㅢ愶攴㥣㝡收捦㡦晥㔲㜵㈶ㄸ敦攰㑤㌰㍥愱㙦㐶㤳扥㠵愰敤㌰〸㍤㕣摦㑡搷敦㘰㤴㥡㘶㠷ㅥ戶㙤㜹㠷㡡㥦㥥㍦㘱攷㕤㌷㍦扥晣㌷ㄳ㍢慢㠳〸挶㍢昸㝢ㄸ㥦搰㍢搰愴㙦㈷㘸㈷っ㐲て搱㜷搰㜵㈷㡣㔲㈷摡愱ㄷ晤㈶扥昸㡣ぢ晥㌸㘵捤㈳换搶晣敡搳㙦晦愴昸㡤㐱㐲摦㡤㠲㑦攸㝢ㄸ攷㕥㤸攰㝤㐴㤷㐱㤰晢改㝡〰㐶愹ㄲ㍢昴换搷㙦㥣㕢晣挶㠳㘳戶㘷慦ㅤ㌹㘴昷㠱㙦愸㉥〴攳ㅤ晣〳㡣㑦攸㕤㘸搲て挱〴ㅦ㠶㐱攸㐱晡ㄱ扡ㅥ㠵㔱敡㔸㍢昴㠷扦晦攷㡥愵㠷㔵㑥扤改㠲户ㅦ搸㍤扦晦㐲㜵〸挱㜸〷㜷挳昸㠴㝥っ㑤晡㜱㠲㥥㠰㐱攸㘳昴㤳㜴㍤〵愳搴㘰㍢昴愸摤㘷㥣戶昴慡㕦㑣扥戲换搶㔷扦㉣敡㔲搲晥ㄹ㌴捦戰㑦㐵挷㌶㐴㔶攰攴扥昹㝢挳愰攲〱晣搷昲ㄷ㈶㝣㕦㡡つ㡤つ㡢つㅣ㔸㌵㜴㐰㘴㜰㈴户㈷挲戶昶捣㥣㠷戱昶戱㌹㌵昵㔵昱ㄵ㜲慡㝥攸㤸㐸㈲摡㝣㉡搷捦㙥ㅢㄳ㙦慣慦㑡ㅣ攲摤㔸㥥㡣㈴愳㕤摣㙤捤㐱搲扡㤵攳㡢㑣㌴㈱攳㜵㜳㜷㍢㈹㔲摢ㄸ㉤㔹㔹㘳㌵㜷㜵㌵攳㙢㑣㝣愱㝦敢昸㠶攸戲愶搶戴ㄹ㤵攰㝢昶㜲㠹㥤挶搲㙡戲收搵愳戴㍡㥥㠸搶换昴晡搵㑤慦愹㕣ㄲ㙤㈸㡦昲㕢㝡戴㑡愸㜶㘲㤳晤㕤慡摦戴㝡㄰挵户愳慡㕥㑥㙦㙣摣捡㘴戴扥㉡㕡㠵昹㉥㡤㌶㈴㔷捤㡡㉣慣㡤ㅥ㤸〲戱挶㐴挳挱㈹敥昱昱捡挶㐴㘹扣㍥搹㄰慦㑤㙤㈹愹㕡ㅥ挱昷户慡㈹昱慡㈸扥㝥攵㜰〹愸㐰㜶戶㔲㠱㈳扤扥㈸㌰㙥愲㔸㔶㠴㘳ㄵ㜷挵㍡㍦㈸㜵戳㉢㥥〹㜶㘰㔱ㅢ攵㌶㤹搵愷㠵㘰ㄲ㤷㘱㡥昰〷㍡㌸昱㤲〶搱㠷晢愳㘵㡥㑤㙢敥㝦ㄷ㥣㤵搵搱㘶㍦㙥㌹扥攳㥥ㄸ愹慦慡㡤㌶㘴扣㈰愳㌸㈳晤㉣㑣敥〰散捤扥敡攵〰愱㔶慡㔵戹㉢㙡慡㤲搵挱敡㘸捤愲㙡㥥㘰攰愲㑤㝥㍥愵㑤㕢昴㜳㜰改㍦搱㍣てㄳち〵㠲㉦㄰ㄴっ改ㄷ慤㝡㙥㉦晣摦昶㙦捦㔹攸愵攵摢㍡㉥慤㈴㜲敢昰㈵㌱㤱㥤敤挵昲挴㐸愲㍡挹捤㌳㜳㈳攳扤㐴昳㌲㑣㙥ㅦ㤸ㄶ扦㥣昳晣㉢㠷搷㈰ち敡挶㐶㘳ㄱ㕣昹㤱扤㕢㐵㜲敢慣㡢〹㘳愳㠹㑡捤慢づㄳ戱慦慣っ愲㠴㥤扦㝤ㅤ户晥攸捡攴搸㐸㌲㤲㔷㠷敢ㄷ㔸㑢ㅡ愰㝥搲换㉡戱㘷㠱昸㑣敦㤰㕤㐳㠴戰ㄴㅤ㔱摡㠹挳㡡㠴ㅤ〷晢㑢㈰摢戶㤹㐹㘰敥摤㐰㈲攸摥搰㔳慦㐳攰昲㐸搵㠴㘸晤慣㔵㑢愳〹挲昳㠳ㄹ愵㜴敦㕥っ㌶慤㜲攱散㘴㑤㙤愲ㄸ㌳㥤搰㄰㙦㕣晡㐳挶㘱㉣晤ち㡣㔹㜲晢㘲㉢㙥㍤㈷挸ㄵ挸㕢捥㜵㔳㔱ㄱ挸㘷㌴㝡㜴㙦ㅡ㙥慤〸戶て晦挹愲晦㡡晦㐲㤹摡㜲㡢㠰㘸换㌵㥢㕣攰摢搷㐱愱㔹つ㔱戹ち㤵㉦ㄵ愸㕤㔰㌷㈷摥戰㘴㘱㍣扥㠴摢㔳〷愹㈵慡愳搱㈴慦散戴戳慦㘴挹ㄵ㉢愵戲戳㔳㉥搴㌸㉥〱㜵㐷晣攰ㅥ㤸慥戳攲㔵昱㐴て扣㑡ㅡ㤶㌵搶㉣㐷愱㉡摡㘳㔶㐳㘴㘱愴戶㍡ㅥ㝣〳㤰㙣㕣㜳ち晥ㅤ〵㍤㘶摣慣㘹挵㉢㙢ㄳ㉢㔵㔷搰攷㘵㠲愳㝥㝢㑡攰搷慢㝦㕦昶昳挴摥换戶㕦昱搳戵敡㔰扢㈱敤搲㑥㕦〴挸昰ㄱ㥤㜲㌵攵〰㘰㔳㍥愲摢挷挶搷搴㈶愳つ㜲ㄴ㉥㡣攱㍦敢昲愰搴ぢ昸挹搳㄰愹戴㉥扣ㅤ㄰㉢挵㠷て慥㐷㈶㔷㌵㝦ㅣ愷㝤昸㔹㥦つ晦昷ㄱ晦愳晢㠸㤷て昸㤴㡦昹っㅦ愱搸㘸㕣ㅦ昲㤹挱㡥㡤㠸㥦㙥㥥㍢愴㙣㔲挵㠸㥣扡㤱ㄱ敦㍥㝡挸㐵搷㈶扣㜳㈳㈴㝡㠰晦㐷㍦㌷昶昴㡤㤴㥤㝣㍦㘶晦敦㈴挵敢慥㤱㜵㤲昲㌶㠴搳敦搰扣㑢昳ㅥ捤㍦㘰搴㠱㌸ㄸ昱攴㠵㤷㔹㡥挴晢㘹㝣慢㜹㑢㡥攳㝢㠹㜹㥦收〳ㄸ㥣㠲挸㐱ㅤ㘷㈰ㅦ愲ㅡ晣〸愶㘳㔹〴搷摢㈳㍣ㅡ㘲ㄵ㉦慦㐹攰㔲㘹㈸愰づ㐷ㄳ捦㑥昴挷㌴晦㠶㘹晦〹捣搴ㄳ愳戵㌸改晤愱敥搶攴㜲戶㤹㍦愶戱つ敤て搰㠱㜵攵慢敡㉢慢ㅢ攲昵戸㘷挶戳㠷㤲㑡摣敥㐸愸㐸戰㙥㜲扣戴㌱ㄹ慣㍢戱〶晦戵慦㥢ㄹ㕤㡡ぢ㡦愵昸㔲㠳㔳㤳挹戸㜴㉥㈷ㅥㄳ慢㔶晥晦㍣㌱〹昰散ㄱ摦ㄷ㥢捦㑤㤴㝢て戶㑥ㄱ㙣㜹㡢挷挶㜱敢㉣㉡㜷つ㈹㝢㌰㠸㤳捣ㅦ攱㤹㐷㐰㝦㡡搹㙤晡昸户㈳㡢慥扥㜵㥦晤晦㤹搸ㄲ㘵搱㐷愰㌱晤㉣攲ぢ㜸㐳㤹摡㔴㍦㈰㜸㈶愱昷挰〴扦㠵挹挶㘶愰昹搹慣戲㄰摡昳ㄳ㔹搹つ㘹㔷昴㡢搱慤㈷摥㥡愷㌶㙡摦㝦慣㝤〵㡥搴㐵㘷愱㔹㘷搳昰㌶慥㘳㕦〹㕡㔵㜵㌴㍡挸㍥㤱㐷㔰㍥㡣ㅡ〸ㄷ捦㤷戵㐶捤㉣敡㜳㡣挱搳㌰晡昴〰㥡戴㔳愹〲戴㠵㌲戵愹㐱攸搷㈴㠲㝥㠳㔱㐴㠰昷ㄱ摣㔳㠰扤㜶㐳摡㝤㠷愱攸摢㤳晤て挴愰敡ㅦ扥〲ㅣ㠴㘶㝤㌰㑤ㄷㄸ㠷〰㠷㕡㔵㜵っ㠲㠸〰㕤〹敡〶愳㠶挳㈵〲㜴㐷捤㉣㙡㡦㔳㠰㘱㜰愷ぢ搰㥢㌱㜵㠶㌶㌵〲晤扣〴㜸挹㑦㠰ㄷ敤㠶戴扢㈳挷㈱㔲㑦捥愲㍦愷晣扣慦〰挵㘸搶㐷搳っ㠰㜱〸㌰挸慡慡㔱〸㈲〲っ㈶㘸〸㡣㍡〱㉥ㄱ㘰㈸㙡㘶㔱㑦㌸〵㌸ㅥ敥㜴〱㐶㌰愶捥搰愶㐶愳㥦㤷〰㝦昰ㄳ攰㐱扢㈱敤ㅥ㑥㈹㈲昵攴㉣挶㜰捡昷晢ち㌰ㄶ捤㝡ㅣ捤㜸ㄸ㠷〰㈷㕡㔵㌵ㄶ㐱㐴㠰㠹〴㤵挱愸昱㜰㠹〰㤳㔰㌳㡢扡摤㈹挰㌸戸搳〵㤸挶㤸㍡㐳㥢㥡㠰㝥㕥〲晣搶㑦㠰ㅢ敤㠶戴摢㑢㘵㠸搴㤳戳㌸㤹㔳摥收㉢挰愹㘸搶㜳㘹收挱㌸〴昸㠹㔵㔵㤳㄰㐴〴愸㈰㘸〱㡣㥡〲㤷〸㄰㐱捤㉣敡ㅡ愷〰㤳攱㑥ㄷ㈰捡㤸㍡㐳㥢㥡㡡㝥㕥〲㕣敡㈷挰〶扢㈱敤㈶搸っ㐴敡挹㔹搴㜳捡㤷昸ち戰ㄴ捤㝡ㄹ㑤〳㡣㐳㠰愴㔵㔵㌳ㄱ㐴〴㘸㈴㘸㌹㡣㥡〵㤷〸戰〲㌵戳愸㥦㍢〵㈸㠷㍢㕤㠰搳ㄸ㔳㘷㘸㔳戳搱捦㑢㠰㌳晣〴㔸㙤㌷愴摤㥣㍢ㄹ㤱㝡㜲ㄶ攷㜰捡愷昹ち㜰ㅥ㥡昵昹㌴㍦㠷㜱〸㜰㠱㔵㔵愷㈰㠸〸戰㡥愰ぢ㘱搴㕣戸㐴㠰㡢㔰㌳㡢㙡㜰ち㜰㉡摣改〲㕣挲㤸㍡㐳㥢㥡㠷㝥㕥〲㔴晢〹戰挸㙥㐸扢㠵㔸㠱㐸㍤㌹㡢㉢㌸攵愸慦〰㔷愱㔹㕦㑤㜳つ㡣㐳㠰捤㔶㔵㉤㐰㄰ㄱ㘰ぢ㐱搷挲愸㠵㜰㠹〰搷愱㘶ㄶ㌵捦㈹㐰〴敥㜴〱戶〱ㅦ搲ㄹ摡㔴㈵晡㜹〹㌰搳㑦㠰ㄹ㜶㐳摡㡤捥ㄸ㈲昵攴㉣㝥㠷㐱搵㌴㕦〱㝥㡦㘶扤㠳收㜶ㄸ㠷〰㜷㔸㔵戵〸㐱㐴㠰㍢〹扡ぢ㐶搵挰㈵〲摣㡤㥡㔹搴㜸愷〰搵㜰愷ぢ㜰㍦㘳敡っ㙤㙡㌱晡㜹〹㜰㥣㥦〰㈳敤㠶戴摢戱㜵㠸搴㤳戳昸㈳愷㍣挲㔷㠰挷搰慣ㅦ愷㜹〲挶㈱挰㔳㔶㔵搵㈳㠸〸昰㌴㐱捦挰愸愵㜰㠹〰捦愲㘶ㄶ㌵挰㈹㐰ㅣ敥㜴〱㥥㘷㑣㥤愱㑤㉤㐳㍦㉦〱づ昳ㄳ愰挸㙥㐸扢㘹㥣㐴愴㥥㥣挵㕦㌹攵摥扥〲晣つ捤晡㜵㥡㍤㌰づ〱晥㙥㔵㔵㈳㠲㠸〰㙦ㄲ挴慦㕡㙡〵㕣㈲挰摢愸㤹㐵㜵㜱ち戰ㅣ敥㜴〱晥挱㤸㍡㐳㥢㕡㠹㝥㕥〲㠴晤〴㈸戴ㅢ搲㙥㙤㥦㠶㐸㍤㌹㡢㝦㜳捡〵扥〲㝣㡡㘶晤ㄹ捤攷㌰づ〱扥戴慡敡㜴〴ㄱ〱扥㈲攸㙢ㄸ㜵〶㕣㈲挰㌷愸㤹㐵攵㌸〵㔸つ㜷扡〰㍣㑤づ改っ㙤敡㑣昴昳ㄲ攰敢敦㝣㑥㠵扦戲ㅢ搲㙥挰㥦㡤㐸㍤㌹㡢晣㉣㑣昹ぢ挰昸扤ㄹ㡥搴㐵㠷搰慣摢搱戴㠷㜱〸搰挱慡慡㌵攸搰ぢ㙦㕤㐸㄰㌳㌵搵戹愸㡡〰晢愱㘶ㄶ昵㉦㡣搱昴㕤攰ㅣ戸搳〵攸〴㝣㐸㘷㘸㔳攷愱㥦㤷〰㙦昹〹昰愶摤㤰㤶㈶戰ㄶ㤱㐴㠰㙥㥣昲ㅢ扥〲昴㐰戳敥㐹搳㡢戳㙢扥㜰搰挷慡慡ぢ㄰愸ㄷ改ㄴㄱ㜴ㄸ㡣扡㄰㔵ㄱ愰㉦㙡㘶㔱慦㌸〵㔸〷㜷扡〰晤㠰て改っ㙤敡㈲昴昳ㄲ攰ㄹ㍦〱㥥戶ㅢ搲㤲ㄹ㝥㠹㐸㈲挰㄰㑥昹㐹㕦〱㡥㐱戳ㅥ㐶㌳㥣戳㙢ㄶ攰㔸慢慡㉥㐱愰㕥愴㌳㤲愰攳㘰搴〶㔴㐵㠰㔱愸㤹㐵㍤攴ㄴ㘰㍤摣改〲㤴〰ㅦ搲ㄹ摡搴愵攸攷㈵挰㕤㝥〲摣㘹㌷愴愵㕣㕣㠶㐸㈲㐰ㄹ愷扣搳㔷㠰挹㘸搶㔳㘸愶㜲㜶捤〲㑣户慡敡㜲〴敡㐵㍡㌳〸㥡〹愳慥㐰㔵〴㈸㐷捤㉣敡㘶愷〰ㅢ攱㑥ㄷ㘰づ昰㈱㥤愱㑤㕤㠹㝥㕥〲㕣敢㈷挰ㄶ扢㈱㉤㌱攴ㅡ㐴ㄲ〱ㄶ㜰捡㥢㝣〵㔸㠸㘶㕤㐹㔳挵搹㌵ぢ㄰戳慡㙡ㄳ〲昵㈲㥤㐵〴㔵挳愸㉤愸㡡〰㌵愸㤹㐵晤摡㈹挰㘶戸搳〵愸〳㍥愴㌳戴愹㙢搱捦㑢㠰ぢ晤〴㔸㘷㌷愴愵慦㙣㐵㈴ㄱ㘰㌹愷扣搶㔷㠰㤵㘸搶慢㘸㝥ち攳㄰攰㜴慢慡㙥㐰愰㕥㜸敢搵〴㥤〱愳㝥㠳慡〸㜰㈶㙡㘶㔱㘷㌹〵搸〶㜷扡〰㙢㠰て改っ㙤敡㐶昴昳ㄲ㘰戹㥦〰㡤㜶㐳㕡㤲捤捤㠸㈴〲㕣挸㈹㈷㝣〵昸〵㥡昵挵㌴扦攴散㥡户㠰昵㔶㔵摤㠲㐰扤㐸㘷〳㐱㤷挲愸㕢㔱ㄵ〱㝥㠵㥡㔹搴㘲愷〰摢攱㑥ㄷ㘰㈳昰㈱㥤愱㑤晤づ晤扣〴㔸攰㈷㐰㠵摤㤰㤶ち戴〳㤱㐴㠰㙢㌹攵昹扥〲㕣㡦㘶扤㤵收〶捥慥㔹㠰摦㔸㔵㜵㍢〲昵㈲㥤ㅢ〹晡㉤㡣扡〳㔵ㄱ攰㈶搴捣愲㘶㌹〵搸〹㜷扡〰户〲ㅦ搲ㄹ摡搴㥤攸攷㈵㐰㤹㥦〰ㄳ敤㠶戴㠴愵㝢㄰㐹〴戸㡢㔳㥥攰㉢挰㍤㘸搶昷搲摣挷搹㌵ぢ昰㠰㔵㔵昷㈲㔰㉦搲㜹㤰愰㍦挰愸晢㔱ㄵ〱㜶愱㘶ㄶ㜵扣㔳㠰晢攰㑥ㄷ攰㔱攰㐳㍡㐳㥢㝡〰晤扣〴ㄸ攲㈷挰㘰扢㈱㉤慤㙡ㄷ㈲㠹〰捦㜰捡〳㝤〵昸ㅦ㌴敢攷㘸晥挴搹㌵ぢ昰㠲㔵㔵て㈱㔰㉦搲㜹ㄱづ晤ㄲ㡣㝡〴㔵ㄱ攰㘵搴捣愲づ㜷ち昰㌰摣改〲扣ち㝣㐸㘷㘸㔳㡦愲㥦㤷〰摤晣〴攸㙡㌷愴㈵㝦㍤㠶㐸㈲挰㕢㥣昲㈱扥〲扣㠳㘶晤㉥捤㝢㥣㕤戳〰晦戴慡敡㜱〴敡㐵㍡㝢〹㝡ㅦ㐶㍤㠹慡〸昰〱㙡㘶㔱晢㍢〵㜸〲敥㜴〱㍥〶㍥愴㌳戴愹愷搰捦㑢㠰㝣㍦〱昲散〶㜷㡡㕡敥戳㠸搴㠶搴愲㜶㥣㜰散愴㥡攸ち收㐲㜴㠸攱愷㈳愵㡤㠹㘴㕣ㄲ㌷ち㘲㘳攳㔳攳挹戱㌵㠹愵戵㤱㔵ㅤ㘳㜶㘱㑥㜵戴ㅥ㘹㔵つ挸慥㜲昹攲㑢㤷㐶慢㜴慣㍣摥搸㔰ㄹ㥤㌸昶挷㤰㜶〵㝥㔸㜵㤲㜱㤵愵戰㝣扦㑣㈲㠴㔰搸㑡戰〴㜲㥦㐳㐰㜷㐲㠸攳㕥㙡昳㙤晢㌰㠰㠵捤㡡捥慡㐹搶㐶摢挵愴㕤捡昹㌱愸㠸㕣戵慡扣搸慣㙡㈴㑡㡣㉤㠸㑤㘸愸愹慡慤愹㡦㜲㘵㈰ㄵ㠰扦挷㤹ㅣ㕤㠴扣戴改昱㐴つ㝦㉢㔴㄰㐳㜲㐳㝤㘲㈹㔳㙣㉡㔷敤㥦㔲㤳㕢㘲戹戱㌱㌵昵〹っ㈳㙢㤱攵挲㔸㜹㜵㝣〵㝥戶搶㔸㔷㍦㈱戲㌴昱愳㔸㉢㡡慢㐵ㄶ㔹㌵㉡㑢㘵㘵愹晣慣晣敦扢㝥㠲㕦㘳ㅦ敢㡣つ㌴搹㔰戳戰戱挶晡㘹㠸晤晢愰愸㡣挳ㅢ㉦㌹㌴戲ㅥ〳戹㝦㐲㈹挳㉤㜱摥ㄸ户㌳〶㤹つ挷昹愶晣㐴挷㌳㌱慢改昷㠰㕤〱搷摦㘰㑡敤扦㠵㈹㥢㌰㝢㘲㜳㥥攸㝦昵攳扡摣攷ㄱ搹㝤㤳搱扤昵㌵愵攵㜵〲戸㠳戵ㄹ搱挷慤ち㝢㈷戶〶搶摣㥢㘶㈸㈶ㄸ㙥愵ㅤ㥡㡢攳㤱搹搵㍥㌶㌹戲㌰㕡㡢㠴戴扡㐸戲㠳㔵㘱㝡㐰㕤愴㌶㘱户㤵挶敢敡㈲摣散戸挹㤶㔷㐶㙡愳昹戱㤲挶㘴ㅣ㍦捤搲㌱ㄸ搹㌶㙤㔷㘴㈵㕣㤱㤵攲㙡ㅦ㥢挹㐴㔵㈹㌳㔶㝣㔱愴愱㈶㔹㕤㔷㔳㤹捦ち㤳㐹㝦ㄴ摢㉢づ〰㌹㄰搳㉣收㜸攲扥挹㙤摤敥挵敡㉥㐶㘶〷愵攳敡挷㔶㥤愵㠲昸愷扥㘷ㅥ㈳づ㍥昲愱愲晦㠳㘸戹㜸挳㘱敦㐰ㅦ昱㌲ぢ㤷㡦捥㐴㐱づ㔰敡㐵㔴改搵晢〰㘵㠱敦㥣㤷㘰㌲㈶戹攵〱㄰㥡ㅣ㡦㔴㡤㐷㌲㔲扣㈱捦晥㌱㘸㍥㔶㉤て㌷つ㘱愶ㅤ㤶㈲㤳ㄵㄹ戲换㙢慡愲つ昹㜴㤴攳挶㝤づㄳㄶ㠳搶㍡挴㑤摤散㐰㙥㙥扢㝣慦戱㈶㥡㔸㝤散㘴㉥攷㡦㘹㈷愶挵㝦㝦挶昰ㄳ㌰㈹搰㤲㡦㈹㘶㜵㙢〵愳㕥㠶㤳㝣㕣㠰㉣〲㌰㝣㈰昷ㄵ㌴扡搷㑤㙡〶㈰昲〴㌵㐰㌹昲㌳㑡收㈶收㈳㡦㑦㤲ㅡ㜳㠵㐸㍢㐷㌲㘲搰捡㐳捣㌷扦捤っ㤶㘳㉢㡦㔶㠵慣㘳㉣搳ㄶ戸㍡戲戲㜲戰慡㠳敥㉣戱戴㘱ㄱ慣慥㍣㉡㔹㡡慡ㅢ愶㄰捣挱㡣摢㜱㘷㐱晣ち晥㕣昱〵㜸㜱晤慡改〲㔶㈸愴㠳挰〴㐲敡慦戰㠶㌸户㐷㕢㤹㍣ㄲ捦㈷昱户攱捣㜰㜸挰晤㜶㐷捡㔱〷㠰㠳㌱ㅣ㈵㤳搸㜳㌹㠱昱㌵㐹捣愱㝤っ〶㐵挹つ敡㈲㝢戴愳㔳扦愶戳㠵敥改㑤㈹愷て摤搲摢㥤攷ㄳ㝤㍣㥡慤㌳つ挷〹㐶㑢㈰㌹攳昰㤸攳㡦改ㄴ㐴㔹㜹㈲昶㔹㠸㉡昲捦慣㜲攸捥㑦㤰晦攲㠴㈵㈸㍦㉥挷敦挷戹摤㈸晣挳㌶搴づ㘵㥥挰扣搳攲㌶攲挸㌴攳㥥ㄷ攲㐹㡣攵㉢戰㔳ㄹ㈷搶㈷㜰〸〸搹㌵ㅣ攰㍢搸挵㘹㡤挹㤴㤶挸捡㡥㜶㑢㐹㙤敤戴㝡㝣㐲㔷㐶ㅡ慡㝥㈴挷㜴㜰戳㑥㍦攴昰晣㝤㑦つㄱ〵㡢攳㐸㡣㤳晤昶戶搶敦愲愵㉤㠹㝡㠵挰ㄷ㔰㙥散㝣㔶㤲㘸㍥㙢㔳愲㤱㝡㔹ぢ攵挹慡戱搱攵㜲㥥㍥㍤㡡㤳㙣晣攲扢㌶摡㔱㍡㌴㔵攵昸愵㘳㈵ぢㄳ㌸攷㑢昲挳摣㉥挹㥥慥㘳㌳㤱ㄸ挶摦㔵攰戳搷㉥㑤慦㑣㈲㉤戵㈹〰㝦㌳昱攳㔹㐳㔰㈴挷㕥㑢㑡搶㔳㌰挳〱㉥㤵〴㜷愲敦戹㔶㜱㐰㡦挹昲慦ㄳ搴ㄵㅢ戹摣㜸㐲挰ㄴ散㙦〲敦㈱㝣㠶㔳㐸ㅣ㙣㥤㔹㤵摣㤳㍡㥡㘴㕦敢㄰㈷㐷慦昶挶挷昳捣〲㝥㈷㘸㐸攲㠷㐵晣㙤㜸㈱㜷㥤㕡㝣㄰㈷昱㜳攷摡摡㔵ㅤ㘲ㄳ敢㉢㙢ㅢ慢愲㜲㍥㘶づ摡㜲㕡昶愳㔸㕦㌹㍣搳戰搶㔵〶㕤㙣㔱㈶攲㘹ㄹ收㠷㈶摦晦㡢㤹㉥挰㥥㈶㥦㤸㠸ㄱ搲㠵昶㝥昷て㑣愴捤㈹慣㈱㜴摡扦㌹〱㕢㥥愱㠰㐳㕢㥡㡢挷㌴收㈰㌶㘵挱捡ㅥ攷㠰㑤㡥㑦㡥昳㡢㥤挳㜵㘲㡤攵晡㔱慣㈷昰戴㔶㔳㌰㠸戳搲敦戹㠷㌰〸㡥㝡昲ㅦ㑥㍦敤晦㜱挲㘶㥤㠵敥㠵㠳㕦㤵〳㤲ㄳ㈸㈷愱晣昶㤵搵晣ㄵ㑣扤㡦㍡扦㠶改晤戰搶搴〷㈸昱摢つ㍥慣慣戳摤㡥昰戶㝣戶晢愱昴㐰㤰〳ㄸ挴慥愸㡦㔱㌰㈷㑡㈸㥡ㄳ愵㑥挰攸〳〹晣户㌷愰㌳〱〷挱攴㝥ち㠰晢㐰攳㥢捤㠹づ㠱摣㍡㥥〹收搷昱㡣ㄸ扢㘹㄰㍦㡡㐱戶㉡捥慡㠳敤昲㍦㐱扢㍥ㄸ愸愷㥦㝡㙡ㄴ捡戸㐹〹㘳㈶攸㌸㤳敢挲昱て㠱攱㘷㜶㠰ㄷ㜳㔰㌴㤷ㅥ昰㌵挲搶㌴㜸㈸㈰㙤昹扡慢㤸〱㈹㕡㜷㘵㜰敥愸㤶搶昶㌷㡢敥昰戶慣㌵㔳㈶昱ち攸ㅥ㌲㐳慢愲㤸㌷㘹愸㜰扥昶㐹㘹㑦㘰㜴㉦〲㤹㔳改〱攸㑤㐰ㅦ〲㤸㘶挹㔳昶㘰ㄱ㙡㑤愷挲㝣〰㠳挷愹㜰㕦㘰㜰㉡捣㔴㑢ㄳ搴㈱攰攱っ㝡〴㠳㌲㉤搲㉤㈰㜳㈱㘵愳っㅥ〹㐸㥢〴㘴〶愵〸搸㡦挱㤹㑡㤹㈲攰㔱昰戶㉣㈰㔳㉥昱ち攸㘲〶㐱㐱摥捣扢㌴㔴攰㌳〲ㅥつ㡣ㅥ㐰㈰㜳㌲㍤〰〳〹ㄸ㐴㐰㜷〰㐴挰挱愸㌹〴昴晣㉥㌱ㄴㄸ〸挸㔴㑤ㄳ搴㈱攰㌱っ㍡㡣㐱㤹㔶改ㄶ㤰戹㤴㤶㠰挳〱㘹㤳㠰捣挰ㄴ〱㐷㌰㌸㔳㌱㔳〴ㅣ〹㙦换〲㌲㘵ㄳ㉦摣㤹㘵㄰ㄴ攴捤扣㑤㐳〵㍥㈳攰㈸㘰昴昱〴づ昱〶㥣㐰挰㘸〲㤸收㈹〲㤶愰收㄰㜰戰搷ㄶ㔸ちっ〴㘴慡愷ㄹ搵㈱攰㔸〶ㅤ挷愰㑣换ㄴ〱昹㜵摤㍡㘷㔰㘳攱戳〴ㅣて㐸㥢〴㘴〶愷〸㌸㠱挱㤹捡㤹㈲攰㐴㜸㕢ㄶ㤰㈹㥦㜸㈱换㤳㐱㔰㤰㌷昳㍥つㄵ昸㡣㠰㤳㠰搱㤳〹㘴㑥愸〷㘰ち〱㔳〹㘰㥡愸〸㌸つ戵〳捤户搹搴㈷㙥㜸㘹㌹〳㜰㘸挹慣㔱ㄳ摦愱攵㑣挶㉦㘷㝣㘶㜸扡㌷㐶愶㜵㕡㕡捥〲愴㑤㕡㌲ㄹ㔴戴㥣捤攰捣ち㑤搱㜲づ扣㉤㙢挹散㔱扣㤰㝥捡㈰㈸挸扢〲搶㔰㠱捦㘸㜹ち㌰晡㔴〲ㄷ㜸〳收ㄲ㌰㡦㠰〸〰愲攵㝣搴㥡㌷㐶敦㉢〳ㄵ挰㐰㐰㘶㥤㥡㔱ㅤ〲㉥㘰搰〸㠳㌲㐳搴扤㌱㌲㉤搴ㄲ㜰㈱㈰㙤ㄲ㤰挹愴㈲㘰㈵㠳㌳慢㌴㐵挰㈸扣㉤ぢ挸换慡㜸攱づ〴㠳愰㈰㙦愶愰ㅡ㉡昰ㄹ〱ㄷ〱愳慢〹㘴㝡慡〷愰㠶㠰挵〴㌰㘳㔵〴㕣㠲摡挱摥ㅢ㈳ㅦ晦攲昱改㔲㠷ㅥ㤰㤳㌹慣㘶〸㠷㥣昵ㅣ㈲捥㈱捥〱挰扤㍤㌲挹搴㤲㜳㈹㈰㙤㤲㤳愹愹㈲攷㌲〶㘷㡥㙡㡡㥣〹㜸㕢㤶㤳戹慣㜸〵㌴㥦㐷挷㠲扣㤹搰㙡愸挰㘷攴㙣〴㐶㉦㈷㤰挹慥ㅥ㠰ㄵ〴慣㈴㠰昹慦㈲攷㉡搴㥡户㐷㍣㘷挴㐳挰搳㠰㠱㠰捣㠱㌵㐱ㅤ〲㥥捥愰慢ㄹ㤴昹慡㙥〱㤹愴㙡〹㜸〶㈰㙤ㄲ㤰愹慤㈲攰㤹っ捥ㅣ搷ㄴ〱㝦〶㙦换〲㙥㐶㌷扣〲晡㙣〶㐱㐱摥㕢㘰つㄵ昸㡣㠰㙢㠰搱攷㄰挸㘴㔹て挰戹〴㥣㐷〰昳㘷㐵挰昳㔱㙢ㄲ㤰㡦昲昱㄰㜰㉤㌰㄰㤰㌹戴㈶愸㐳挰ぢㄸ㜴ㅤ㠳㌲摦搵㉤㈰㤳㕣㉤〱㉦〴愴㑤〲㌲㌵㔶〴扣㠸挱㙦㐷㉤㐵挰㡢攱㙤㔹㐰收搲攲㠵捣ち〶㐱㐱摥㑣愸㌵㔴攰㌳〲㕥〲㡣㕥㑦㈰㤳㙤㍤〰ㅢ〸戸㤴〰收摦㡡㠰扦㐲慤㐹㐰㍥戰挸㐳挰换㠰㠱㠰捣挱㌵㐱ㅤ〲㕥捥愰ㅢㄹ㤴昹戲㙥〱㤹㈴㙢〹㜸〵㈰㙤ㄲ㤰愹戵㈲攰㤵っ捥ㅣ摢ㄴ〱慦㠶户㘵〱㤹㡢㡢ㄷ戲戴ㄹ〴〵㜹㌳㈱搷㔰㠱捦〸戸〹ㄸ扤㤹㐰㈶敢㝡〰戶㄰㜰㉤〱捣摦ㄵ〱慦㐳慤㔹㐰㍣㜴挷㐳挰慤挰㐰㐰收昰㥡愰づ〱㙦㘰搰㙤っ捡㝣㕢户㠰㑣戲戵〴晣つ㈰㙤ㄲ昰㜵㜴ㄵ〱㙦㘴昰㍤愸愵〸㜸ㄳ扣㉤ぢ挸㕣㕥扣〲晡㘶〶㐱㐱摥㑣攸㌵㔴攰㌳〲摥〲㡣摥㑥攰㕢摥㠰㕢〹昸ㅤ〱捣晦ㄵ〱㙦㐳慤㐹㐰㍥㝣捡㐳挰ㅤ挰㐰㐰收〰㥢㔱ㅤ〲摥捥愰㍢ㄹ㤴昹扡㙥〱㍦㠵捦ㄲ昰づ㐰摡㈴㈰㔳㝢㐵挰㍢ㄹ㥣㌹扥㈹〲摥つ㙦换〲㌲ㄷㄸ慦㠰扥㠷㐱㔰㤰㌷ㄳ㠲つㄵ昸㡣㠰昷〲愳敦㈳㤰挹挲ㅥ㠰晢〹㜸㠰〰收て㡢㠰て愲收㄰昰ㄸ㉦〱㜷〱〳〱昷㌹㠲㍡〴㝣㠸㐱ㅦ㘶㔰收晢扡〵㘴㤲慦㈵攰㈳㠰戴㐹㐰愶〶㡢㠰㡦㌲㌸㜳㠴㔳〴摣つ㙦换〲㌲㤷ㄸ昳づ攸挷ㄸ〴〵㜹㌳愱搸㐳㥦挷㠱搱㑦㄰挸㘴㘳て挰㤳〴㍣㐵〰昳㡦㐵挰愷㔱㙢ㄲ㤰てㄲ昳搸〲㥦〵〶〲㌲〷搹〴㜵〸昸㍦っ晡ㅣ㠳㌲㕦搸㉤㈰㤳㠴㉤〱晦〴㐸㥢〴散㠹慥㈲攰昳っ捥ㅣ攳ㄴ〱㕦㠴户㘵〱晢愰㥢〸昸ㄲ㠳ㄸ〱㡢攰㌵㔴攰㌳㕢攰换挰攸㔷〸㘴戲戲〷攰捦〴晣㠵〰收㉦㡢㠰慦愲搶㈴㈰ㅦ㤷收㈱攰㙢挰㐰㐰收㌰㥢愰づ〱晦挶愰慦㌳㈸昳㡤摤〲㌲挹搸ㄲ㜰て㈰㙤ㄲ㤰愹挹㈲攰ㅢっ捥ㅣ攵ㄴ〱摦㠴户㘵〱㤹换㉣〲扥挵㈰㐶㐰㈶㌴ㅢ㉡づ〱摦〶㐶扦㐳攰㜱摥㠰㜷〹㜸㡦〰收㍦㡢㠰晦㐰捤㈱愰攷ㄶ戸ㄷㄸ〸㔸攲〸敡㄰昰㝤〶晤㠰㐱㤹慦散ㄶ㤰㐹捡㤶㠰晦〲愴㑤〲㌲戵㔹〴晣㤰挱㤹攳㥣㈲攰挷昰戶㉣㈰㜳愱㐵挰㝦㌳㠸ㄱ㤰〹搱ㅥ〲㝥〲㡣晥㤴㐰㈶㑢㝢〰㍥㈳攰㜳〲㤸㍦㉤〲㝥㠱㕡戳㠰摥㥦挲㕦〱〳〱㤹㐳㙤㠲㍡〴晣㥡㐱扦㘱搰〵〰戸〵㘴㤲戳㈵攰户㠰戴㐹㐰愶㐶㡢㠰摦㌱㜸ㄵ㙡㈹〲敥㠳户㘵〱㤹㑢㉤〲昲搶㘷㤳㠰㑣愸㌶㔴ㅣ㕢㈰㌳㉢㌴㙥㥥〷ㄴ㤳慤㍤〰搹〴攰挹㔹昸㐱ㄶ〰㈲㈰㥦戵摢㉣㈰ㅥ昰攷戱ぢ攷〱〳〱㤹㠳㙤㠲㡡挷捡㈶挸㐷㔹昳改摢㡡昹搲㙥〱㤹㈴㙤〹ㄸ〲愴㑤〲㌲戵㕡〴㙣挷攰捣戱㑥ㄱ戰〰摥㤶〵㍣ㅤ摤㐴挰づっ㘲戶㐰㈶㘴ㅢ㉡づ〱ぢ㠱搱㘱〲㤹慣敤〱搸㡦㠰晤〹㘰晥戶〸搸ㄱ㌵㠷㠰㐳扤〴散〴っ〴㘴づ户〹㉡ㅥ㑢挰〳㔱搶㥤㘱ㄴ昳慤摤〲㌲挹摡ㄲ昰㈰㐰摡㈴㈰㔳戳㐵挰㠳ㄹ㥣㌹摡㈹〲ㅥ〲㙦换〲㌲㤷㕢〴㍣㤴㐱㡣㠰㑣攸㌶㔴ㅣ〲㜶〵㐶㜷㈳㤰挹摥ㅥ㠰敥〴昴㈰㠰昹摦㈲㘰㑦搴ㅣ〲㝡㕥慡敥つっ〴㘴づ戸〹㉡ㅥ㑢挰㍥㈸敢㈲ㄸ挵㝣㙤户㠰㑣搲戶〴㍣っ㤰㌶〹戸ㄵ㕤㐵挰扥っ捥ㅣ敦ㄴ〱㡦㠰户㘵〱㤹ぢ㉥〲ㅥ挹㈰㐶㐰㈶㠴ㅢ㉡づ〱晢〱愳晢ㄳ挸㘴㜱て挰㔱〴ㄴㄳ挰晣㜱ㄱ昰㘸搴ㅣ〲㝡㝥㤵ㅢ〸っ〴㘴づ戹〹㉡ㅥ㑢挰㐱㈸敢挱㌰㡡昹摥㙥〱㤹攴㙤〹㌸〴㤰㌶〹挸搴㜰ㄱ㜰㈸㠳摦㠷㕡㡡㠰挳攰㙤㔹㐰收㤲㡢㠰挳ㄹ挴〸挸㠴㜲㐳挵㈱攰〸㘰昴戱〴晥挱ㅢ㌰㤲㠰攳〸搸〵㠰〸㌸ち戵㈶〱昹攰㑤㡦㘳攰〹挰㐰挰㐷ㅤ㐱挵㘳〹㌸ㅡ㘵㕤〲愳㤸㉦敥ㄶ㤰㐹攲㤶㠰㘳〰㘹㤳㠰㑣㉤ㄷ〱㑢ㄹ㥣㌹收㈹〲㡥㠳户㘵〱㤹㡢㉥〲㡥㘷㄰㈳㈰ㄳ搲㍤〴㥣〰㡣㍥㤱㐰㈶慢㝢〰㈶ㄲ㔰㐶〰昳搷㐵挰㐹愸㌹〴昴晣㉡㌷〵ㄸ〸挸ㅣ㜶ㄳ㔴㍣㤶㠰㔳㔱搶搳㘰ㄴ昳捤摤〲㌲挹摣ㄲ㜰㍡㈰㙤ㄲ㤰愹改㈲攰っ〶㘷㡥㝡㡡㠰攵昰戶㉣㈰㜳搹㐵挰㔹っ㘲〴㘴㐲扢愱〲㥦㌹㤱㥥つ㡣㍥㠹㐰㈶扢㝢〰收㄰㜰㌲〱捣㝦ㄷ〱㑦㐱捤㈱愰攷㔷戹戹挰㐰㐰收挰㥢愰攲戱〴㥣㠷戲㥥て愳㤸㉤㉢㤳晤〹㙢攸㠳ㄳ㡤㐰㉥㌳ㅥ摤㠹㝣㘹㐹㤶ㄲ㉦挶㜴换昲攴慡㕡愴戸戲挸挴㍥慢挴ㅢ戲挸㔴㠲て改㠶昱〶摣晢捣㜱㍦愸慡愹敦㌳ㄸ戴摤〱慥㘷㙤㑡㌷戶㌰㥢㌳㜷换㌷改捦㤳㙣敡捦㠹㌷㍦㜸㡦㝤戸〴ㄷ㘰㡡〷㑣愹愹㙣㠸㈷攲戱㘴㡦㜲愴㜰昷攰戳㑢昱攳昵〱㈵戹㥢㄰搱㜳㑣ㄲ换愹攷㕦㜱㔸捥㘷昹㠵㤶搴挷㔷搴换㙣㜲ㄳ㝣㠴慢攸㤵㤷挷㘱㤸扢㈰㑢㙦㠸ㄷ㘶收㈷㍢敢㠵戰〵搹㘱ㄱㄳ昵戰愲慡㉣㘴㤹㐲戶㕤挸つ愲搰摡攴㐵挶㔶ぢ㔵愵慡㔲搱㥣扣扣戴㥣戶戴愴挷愶㈷㉤〶㠳捣㜹捣扤ㅡ㤴摤㠹㜰摥㥤㔲ㄵ㘵㘷㘱㕤㠵㈹攸㈸㑣㈸㥣㠷㠹㤳㐴㌰㠶㙡㠷搲㌱ㄵ㡥摣敤攰㈲昸昶㠳㉦昵㙦㘴〴慢攱㙥て户㘴㙥捣挴㐳㔷挳昹㜶ㄴ摤ㄳ愱昴㘲戴敢㕥㥣㘹〸㝥昷㑣ㅤ〹搷㡥㤴㍤㈶搰㠶ㅤ㜹㤴挲㜹扦搸㡣挶㐸㉤晥㉣挷㌴攴昲㈴改晡㌱㘴㠰攴㔸ㄹ㔵㉤慥㙥愱㌰㜷㍥㔵㜷㙢㤰扡戶㙣㙥昲㌰捤敦㤷㑦ㄲ捡扤戴挵㙤挲㡣㤲扥㑤㜰晤㠷㜴ㅤ搶ㅡ㌲ㅣ㔵㍢㔴㘵㉢愹㠷〳扢㠲扣㔵㝢攳㡤挳㙢㤶摣〲㜸㕢㥦慣挴愸ㅤ戱〷摡㝦〲㠸昹改晤㙡㤱户搵㡡㥦〳㉣挵愸慡搰㙢づ㙡㍦攳㙤㈰〶㐳愰ㅥ㔰ㅤ㘱㜹晣㔳ㄷ㐱ㄸㅥ㜵㌸攷㘰ㄲ㄰摦㐳㠹㕡〷ㄸて㈷愹㠷㠳〳㄰㠹㥣昵㜲㔸ㅣづ㍡㌱㍥㤶昰㠱愶搰搹ㄴづ戲ぢ㠵〷愳挰㈸㐱㐱晥㠰㈶摣〵㤱㌹㡡收晥慡戹㠳㙡敥㡥攱㐳㡣扦㉦ㅢ㑦愳晦㜰㤴㔴㔷昸㘵㙤慥㠶慢㐹㥤敥昰㡡㍡㘷㍢搴搱㍣搰昲㤸慡捥昲ㄴ愲〷㍡ㄱ愱㝦〶ぢ㈱㝡愲捥㈵摣换ㄴ㝡㥢㐲ㅦ扢愰晡愲挰㘳愳㍡〳㈱㜹摣㤲戹慣㐱〰㝤づ㑣㈸㝣㌸ㅡ〹㜶昳㌹挲昸㡢搹戸㤶ㅤ㡥㐶㐹昵㘳㌰扡搶挱搵挴攷㈸㜸㠵㑦搲㤳㑦㠳㈷㥦㘲㜴㐲㄰晣㥣ㄵㄶ㝣㡥㐶㥤㑢㜸㠰㈹っ㌴㠵㐱㜶㐱つ㐵㐱昸㉣㜵昲戹㠴搳㕢てㄳちㅦ〳〰挱㙥㍥挳㡣㝦㈸ㅢ㉦㘳㠷㘳㔰㔲㈳攰ㄷ㍥ㅢ攱㙡攲㌳ㄲ㕥攱ㄳ昳攴㔳攵挹攷㌸㜴㐲㄰㍣愹〶ㄶ㝣㐶愱捥㈵㝣扣㈹㥣㘰ち愳敤㠲㉡㐵㐱昸㉣㜴昲搹挴改㙤㠶〹㠵挷〲㐰戰㥢捦㌸攳㍦㡥㡤㕢搹㠱戹㔹㙡〲晣挲㘷ㅢ㕣㑤㝣㈶挲㉢㝣㑥昶攴㜳㤲㈷㥦㌲㜴㐲㤰㠰扥〹ㄶ㝣㈶愱捥㈵㍣搹ㄴ愶㤸挲㔴扢愰㘶愰㈰㝣㘶㌹昹摣挲改㙤㠷〹㠵㘷〲㐰戰㥢㑦戹昱㤷戲㜱〷㍢㡣㐵㐹捤㠶㕦昸散㠴慢㠹捦ㅣ㜸㠵㑦㤹㈷㥦ㄳ㍤昹㥣㡣㑥〸ㄲ搰㜷挳㠲捦㈹愸㜳〹㥦㙡ち㜳㑤㘱㥥㕤㔰ㄵ㈸〸㥦昱㑥㍥昷㈲㠰扥て㈶ㄴ㕥〰〰挱㙥㍥ㄱ攳㉦㘳攳㉥㜶㤸㠴㤲慡㠴㕦昸㍣っ㔷ㄳ㥦㈸扣挲攷㌸㑦㍥挷㝡昲㠹愱ㄳ㠲〴昴㙥㔸昰㔹㠴㍡㤷㜰戵㈹搴㤸挲㘲扢愰敡㔰㄰㍥挳㥤㝣ㅥ攷昴㥥㠰〹㠵敢〱㈰搸捤㈷㙥晣㌳搸昸㉣㍢捣㐴㐹㉤㠳㕦昸㍣〷㔷ㄳ㥦〴扣挲愷搸㤳㑦㝦㑦㍥㐹㜴㐲㄰晣㙣ㄷㄶ㝣ㅡ㔱攷ㄲ㕥㙥ち㉢㑣㘱愵㕤㔰愷愱㈰㝣㡥㜴昲㜹㤹搳㝢〵㈶ㄴ㍥ㅤ〰㠲摤㝣㔶ㅢ晦挹㙣㝣㡤ㅤ昸ㄴ㉤㜵㈶晣挲攷㜵戸㥡昸晣っ㕥攱搳挳㤳㑦㌷㑦㍥㘷愳ㄳ㠲〴昴㥢戰攰戳〶㜵㉥攱㜳㑣攱㕣㔳㌸捦㉥愸戵㈸〸㥦㐳㥤㝣摥收昴摥㠱〹㠵㉦〰㠰㘰㌷㥦㜵挶㕦挱挶扤散戰〰㈵㜵ㄱ晣挲攷〳戸㥡昸㕣っ慦昰搹摦㤳㑦搸㤳て㙦㡢㈳〸㥥扦ちぢ㍥㤷愰捥㈵扣摥ㄴ㌶㤸挲愵㜶㐱㕤㠶㠲昰改攰攴昳〹愷昷㈹㑣㈸㝣㌹〰〴扢昹㙣㙣昲戳昱㉢㜶㔸㠴㤲扡ㄲ㝥攱昳つ㕣㑤㝣慥㠶㔷昸攴㜸昲挹昲攴挳扢搴〸㠲㥦㥡挱㠲捦㈶搴戹㠴㌷㥢挲ㄶ㔳戸搶㉥愸慤㈸〸㥦㠰㤳㡦捡㐵㤴㉣㤸㔰昸〶〰〸㜶昳搹㘶晣㝣攲㤵捥㘳㠷㝡㤴搴㡤昰ぢㅦ晥ㄹ挵㈶㍥㌷挱㉢㝣㍥晦扡昹散愹昹晣攰㔳㜸搳㑦㤴㙥㐶㈷攱㔳㠰㔰攰㜳ぢ敡㕣挲摢㑤攱㔶㔳攰㕤㘱㉥㙡〷ち挲攷摦〸搹㜴㝥㔰挸改㠵㘱㐲攱摢〱㈰搸捤㘷愷昱㈷搹搸㠹ㅤㅡㄹ昰㑥昸㠵㑦㘷戸㥡昸摣つ慦昰㜹捦㤳捦㍢㥥㝣敥㐱㈷攱㜳〸㐲㠱捦扤愸㜳〹摦㘷ち昷㥢〲㙦搲㜲㔱扢㔰㄰㍥㙦㌹昹㜴攵昴扡挱㠴挲て〱㐰戰㥢捦挳挶捦攷㔱改摥散㜰㍡〳㍥ち扦昰㈹㠲慢㠹捦㙥㜸㠵捦㕦㍣昹扣攲挹攷㌱㜴ㄲ㍥㐷㈰ㄴ昸㍣㡥㍡㤷昰ㄳ愶昰愴㈹㍣㘵ㄷ搴戳㈸〸㥦㤷㥣㝣晡㜱㝡晤㘱㐲㘱摥つ㈵搸捤攷㌹攳㍦㥢㡤〳搹㘱つ㑡敡㜹昸㠵捦㘰戸㥡昸扣〸慦昰㜹捡㤳捦ㄳ㥥㝣㕥㐲㈷攱㌳っ愱挰攷㘵搴戹㠴㕦㌱㠵㍦㥢挲㕦散㠲㝡つ〵攱昳㤸㤳捦〸㑥敦㔸㤸㔰㤸㌷㈷〹㜶昳㜹摤昸搷戲昱〴㜶戸〰㈵昵〶晣挲愷〴慥㈶㍥㙦挲㉢㝣ㅥ昰攴㜳㥦㈷ㅦ摥㜰ㄴ㍥攳㄰ち㝣摥㐶㥤㑢昸ㅤ㔳㜸搷ㄴ摥戳ぢ㙡㉦ち挲攷ㅥ㈷㥦〹㥣摥㠹㌰愱昰晢〰㄰散收昳㠱昱昳攱㑦㝡ち㍢㕣㠲㤲晡㄰㝥攱㌳つ慥㈶㍥ㅦ挳㉢㝣㝥攷挹㘷扢㈷ㅦ摥晦ㄳ㍥攵〸〵㍥㥦愰捥㈵晣愹㈹㝣㘶ち㥦摢〵昵ㄵち挲攷㘶㈷㥦搹㥣摥㐹㌰愱昰搷〰㄰散收昳㡤昱昳㔹㑥㝡㉥㍢㕣㡥㤲晡づ㝥攱㌳ㅦ慥㈶㍥晢攰ㄵ㍥搷㝡昲搹散挹㠷㘴㠴㑦〴愱挰㐷戱㠲㈵捣摢㙦㔲挸㌶〵摥㙦攳愲昲㔰㄰㍥搷㌸昹㔴㜲㝡㔵㌰愱㌰敦愴㜹昱搱挶㝦つ挲攸ㅡ㜶搸挴㠰敤攰ㄷ㍥㑢攰㙡攲㔳〰慦昰戹搴㤳捦㝡㑦㍥ㅤ搰〹㉦攴㘴㈲ㄴ昸ㄴ戲㠲㈵捣扢㘱㔲搸捦ㄴ㜸晢㡢㡢敡㠴㠲昰昹愵㤳捦㌲㑥慦〱㈶ㄴ收㡤㉤㉦㍥㥤㡤㝦㉢挲攸ㄵ散挰㐷㈵愹㠳攱ㄷ㍥慢攰㙡攲㜳〸扣挲攷㍣㑦㍥攷㜸昲攱捤㉡扣㤰㈲㠹㔰攰搳㤵ㄵ㉣㘱摥㥣㤲㐲㜷㔳攸㘱ㄷ㔴㙦ㄴ㠴捦搹㑥㍥㘷㜲㝡㘷挱㠴挲扣捦攴挵愷挸昸昹攰㈴㝤㉥㍢昰挹㐷慡㉦晣挲攷㝣戸㥡昸ㅣ〱慦昰㔹改挹㘷戹㈷ㅦ摥㍢挲ぢ㕦㜵ㄱち㝣晡戱㠲㈵捣㝢㐵㔲㌸捡ㄴ㡡敤㠲ㅡ㠸㠲昰㐹㍡昹㕣挴改晤〲㈶ㄴ收㙤ㅦ㉦㍥扣ㄳ㈴晥ㅤ㠸慣㌷戰挳敤㈸愹愱昰ぢ㥦㕦挱搵挴㘷ㄸ扣挲㘷戱㈷㥦㙡㑦㍥扣㤵㠳ㄷㄲ〸ㄱち㝣㐶戰㠲㈵捣㕢㌷㔲ㄸ㘹ち扣㔷挳㐵㥤㠰㠲昰㠹㌹昹㕣挹改㕤〵ㄳち㡦〶挰㡢て㙦捣㠸㥦㡦㌵搲㕢搸㠱捦㈵㔲愵昰ぢ㥦敢攰㙡攲㌳づ㕥攱㌳捦㤳捦愹㥥㝣㜸㘷〵㉦攴昳㈱ㄴ昸㑣㘰〵㑢㤸㜷㔲愴㌰搱ㄴ㜸敢㠴㡢㥡㠲㠲昰㌹搹挹攷㐶㑥敦户㌰愱昰㔴〰扣昸㑣㌳晥㕤〸愳㙦㘵㠷㠷ㄸ㜰〶晣挲攷㌶戸㥡昸昰ㄶ㠷昰㤹敡挹㘷戲㈷ㅦ摥攸挰ぢ改㜵〸〵㍥戳㔹挱ㄲ收㡤つ㈹捣㌱〵摥挹攰愲收愲㈰㝣捡㥣㝣敥攴昴敥㠲〹㠵㜹㡦挲㡢捦㝣攳攷㐳㠷昴晤散挰愷〶㠵㜹〳〳㉦㍣㍣㑡㈶㤱换㙢昰㈳晤㝦昴敤戸㕡摤て㍦㡤㑣昹㈳㘴攳昰㐷挵㤸㑦㄰挸挶㈳ㄶ慣〷ㄳ攴㘴ㅤ晢晤㘲昱㕡㉥㝦㄰换㜷敥㘸㜰晤㉦攲㜰㉤㌵摦收㘰挴敥㜸敢㕤㈰㕣挸㉢昳昸摦㝤攱昰愳ㄳ攰攳㌲㕡㙣㈰摦晥㍦㍣扡㌰㙡㝡捣㔷㍤搷㤷攴敥㌹搳晤愷〷慣ㅥ挶㥥㌲㕡昱昲㝣ㄱ敡㝡て捤ㅢ㌴㝦㠷㔱㈳㐱敢㉦㜸㜲㐲摡ㅦ昶㌹搶㙥㜰晦㘱ㅦ㔵㠷㐸戲昱敤挶㥣戹㤶昹づ搷挳㡢ㄷ㜲昸攰搵㡦挳ㄴ㘴㠵攳昴㘰㔱㜲㈵ㄷ〵摤攴㐱㈵捣㙢户搲攷㐹挲戳ㄵ慦戵㜲搵慢㈱ㄸ㥢㝡㡢㐴㑦愳㔱㥤〶㜷ㄱ〳散愱昹㤶㐶愶㝦戴㍤换戴改ㄷ摢つ敥扦㠲㄰㕥㡤㐸㜸攱㙦㤱㔹㠳昲扡愶っ摡摦㌹攸㡢㘸㉣㕣㠳㈶晣摦㠶昵挲换㥢搲愳搵敢㘵㉤㝡ㄴ㜱㍡㝢㘸㥡搷㑢㕦㍦㘲㠷搹つ敥扦㙥㄰㕥㠷㐸㜸〵昴慢㤸〱搴扣ㄸㄵ㈱搶挷㐹散㌵㌴ㄶ㕥㠲㈶㤹㈶攰㡥㈵挳〶挷敢㥣搲愳搵挴㉥㐳㡦㈲〴㜷ㄳ敢敥㐷慣㥢摤攰晥慢〵攱㡤㠸㠴ㄷ㉥㘹㘰〶㈰㜶㌵㉡㐲散㔰㈷戱户搱㔸戸〹㑤㌲㑤〷㉢ㄴ㌳㄰摢㙣㝡戴㥡搸㔶昴昰㈲搶搹㡦搸㠱㜶㠳晢慦ㄱ㠴户㈱ㄲ㕥戸㜲㘲ㄱ扢〹ㄵ㈱㜶㠰㤳搸〷㈴㜶ぢ㥡摡㐶㙣扢改搱㙡㘲扣晥改㐵慣搰㡦㔸〷扢挱晤㔷〶挲㍢ㄱ〹慦㠰晥挴㈲㜶㌷㉡㐲慣扤㤳搸㘷㈴㜶㉦㥡摡㐶㡣㤷㐰愵㐷慢㠹昱㐲㘸ㄱ愷戳㠷愶㜹ㅦ换昳㈳ㄶ戴ㅢ摣㝦㍤㈰晣㌰㈲攱㠵㍣㐲捣〰㥢攲㙥㔴㠴㔸㡥㤳搸㜷㘸㉣㝣ㅣ㑤㌲㑤挰ㅤ㑢㠶㑤㤱搷㐲愵㐷慢㠹㍤㡢ㅥ㐵〸敥㈶戶敦㉢㥦㠳晡㝦散〶昷㕦〵〸㍦㠷㐸㜸攱㘱㐰戸㝢〵㘲㉦愲㈲挴扥㐵㡦愶㐳㜱㉥ㅡぢ㕦㐶㔳摢㠸昱愲㘸摢㠸扤㠶ㅥ㕥挴扥昰㈳昶戹摤攰㝥摡㝦昸㜵㐴挲ぢて戱戶㠸扤㠹㡡㄰晢搴㐹慣㠰挴摥㐶㔳摢㠸昱敡㘸摢㠸敤㐵て㉦㘲ㅦ晡ㄱ晢㤷摤攰㝥㡡㝦昸〳㐴挲㉢愰㍢㕡挴㍥㐶㐵㠸扤敦㈴搶㠹挴㜸攵戳㙤挴㜸㤹戴㙤挴扥㐲て㉦㘲敦晡ㄱ㝢挷㙥㜰㍦㥤㍦晣つ㈲攱㠵ㅦ昵㕢挴昶愱㈲挴摥㜲ㄲ敢㑡㘲ち㜳㙣ㅢ㌱㕥㉦㤵ㅥ慤摥挷昲〰㉦攲㜴昶搰㌴ㅦ㍣㕥昷㈳昶㌷扢挱晤搴晤戰㐶㈴㈱搶摢㈲㔶㠰扡㄰晢慢㤳㔸ㄱ㠹昱㕡㈸㕥㙤㌸昳攰㠵㔳改搱㙡㘲㥤〰㉦昲㈰昶戲ㅦ戱㤷散〶昷搳昴挳扣敡㉡挴晡㔹挴づ㐱㕤㠸扤攰㈴㜶ㄴ㠹㜵㐵ㄳ㕥㙤㈰挶㉢愸搲愳搵挴㜸ㅤ戵挸㠳搸戳㝥挴㥥戱ㅢ摣㑦挹て昳昲慢㄰ㅢ㙣ㄱ㍢〲㜵㈱昶㤴㤳搸㔰ㄲ敢㠷㈶扣摡㐰㡣㤷㔲愵㐷慢㠹昱㠲㙡㤱〷戱摤㝥挴晥㘸㌷戸㥦㝥ㅦㅥ㡣㐸㐲㙣愴㐵㡣ㄷ㔳㠵搸㈳㑥㘲愳㐸㡣㤷㐹昱㙡〳㌱㕥㔳㤵ㅥ慤㈶挶㉢慢㐵ㅥ挴ㅥ昴㈳昶㠰摤攰㝥慡㝤戸〴㤱㠴㔸愹㐵㡣㔷㔵㠵搸㝤㑥㘲攳㐸㙣〲㥡昰㙡〳㌱㕥㕣㤵ㅥ慤㈶㌶〵昰㈲て㘲㜷晡ㄱ扢挳㙥㜰㍦慤㍥捣㉢戳㐲㙣㤲㐵慣ㅣ㜵㈱㜶扢㤳搸ㄴㄲ㥢㡤㈶扣摡㐰㡣㔷㔹愵㐷慢㠹捤〵扣挸㠳搸慤㝥挴戶摢つ敥愷搰㠷攷㈳㤲㄰㉢户㠸㐵㔰ㄷ㘲㌷㍢㠹捤㈶㌱㕥㐱挵慢つ挴㜸戹㔵㝡戴㥡㔸つ攰㐵ㅥ挴戶昹ㄱ扢挱㙥㜰㍦㕤㍥扣〴㤱㠴搸㕣㡢ㄸ㉦戸ち戱敢㥤挴收㤳ㄸ㉦愵攲搵〶㘲扣敥㉡㍤㕡㑤㡣㔷㕦㡢㍣㠸㙤昲㈳㜶㡤摤攰㝥㙡㝣㤸ㄷ㙤㠵㔸愵㐵㙣㌵敡㐲散㉡㈷戱㈸㠹昱㥡㉡㕥㙤㈰㜶㤶改搱㙡㘲扣っ㕢攴㐱散㌲㍦㘲扦戶ㅢ摣㑦㠳て㥦㡦㐸㐲㙣㠹㐵㙣ㅤ敡㐲散㔲㈷戱㍡ㄲ扢〸㑤㜸戵㠱ㄸ慦挴㑡㡦㔶ㄳ摢〰㜸㤱〷戱㡢晤㠸晤挲㙥㜰㍦攵㍤晣㉢㐴ㄲ㘲〹㡢ㄸ慦挵ち戱ぢ㥤挴ㅡ㐹散㑡㌴攱搵〶㘲扣㈴㉢㍤㕡㑤㙣ぢ攰㐵ㅥ挴捥昷㈳㜶㥥摤攰㝥㝡㝢㤸搷㜳㠵搸㘹ㄶ戱㙤愸ぢ戱㜳㥣挴㔶㤳搸㡤㘸挲慢つ挴㜸㙤㔶㝡戴㥡ㄸ慦搰ㄶ㜹㄰㍢搳㡦搸ㄹ㜶㠳晢愹散㘱㕥搸ㄵ㘲㙢㉣㘲㍢㔱ㄷ㘲愷㍢㠹㥤㑢㘲扣敥㡡㔷ㅢ㠸昱㈲慤昴㘸㌵戱晢〱㉦昲㈰戶挲㡦搸㜲扢㈱敤㘹敢扣挲摢搲搳搶㤹攷ㅤ㑤挸挳㔴ぢ㌱㘸㙥㡣㤹改敤㘲㤶㥢ㄷ㘵攵㈹㥡戵㤲搶摤ㅥて㐶㙥㔸ㄲ㙤㤸㡣㘷㠰攳㜱挸攵㌵昶㕦㐴㥦㠸㘷㠳昳改㘲收搱扢㕡㙡散ㅣ㡣㑤㙢挰戳㜸昳㘲ㄳㄳ㜸㑥㘴㔵㝥摤昴㐸ㄲ㝦㙡扣晥挷㤰㘵㡣㐴晢ㅣ㕥扣挶㐵搵㙣㍣〱㈹换㌳挷晤ㄹ㌴扢㥦戳收挸慦㙥搶挳㍣㉢㌰㡢捦㔳晥㝥㌹挶挱㜵搸挴㍡㥢挷㠲昷愸㑡㜹㕣㜸㡥㑡㘲㌵㕢㌹㈱㘷〵昶挹扣㤱㌸慣㉦㐲ㅦ昹愶㈴搷㠹㘱㐲晡㘲扡昸㙢ㅢ㌱㠱摣㕤搸っ摣攴昸慢㠳昱㘴㥦扢愲愶㉡㔹ㅤ慣㡥搶㉣慡㐶愶㐷扢㜶㘴㙣㤶昰㙥㜴㤵㕤攳ㄲ挶㕣㑦戳〱㈶愴㜸攵㔹昶㤱㕡㝢ㅦ㘱㉥㙣㍥㥥㈴昵戸㘹㔸㘲㌷ㅣ㠱〶晤㙢㜴㔲㑦愲㠹㥢㘴昰㌲搴づ㐰㙥㝢扣㈱㥡攰摦㠰㕥㙡晥〶㜴㤶慡㌶㈴昷づ㍡戸㤹攴㐶づ捣ぢ搱㑡㔶ㄸ㐹㕥㐹㔷㌳㐹昵㌴〲㤳㘸昹挶㝢㐶㝦㌷㜸㝥㠹㝡摥㡣㜶㌵㤰晥慡㉥㌴〳〶㥣慡㙥㘲㜴㝥晦㙣㔶㜵㡢㙢挰ㄷ敤〱〹攲愲㕥㌵〳㕥㤷㜱挰㜹㥥〳㙥㑤ㅦ㜰㥢㙢挰搷摣〳昲ㄲ慤攸㜹㘳挶〱㑦昲ㅣ昰愶昴〱㙦㜱つ挸慢扣㤴搴㉣㙡慦ㄹ昰搶㡣〳㑥昷ㅣ昰戶昴〱㜷戸〶晣挰㍤攰㈷㘶挰㥤ㄹ〷㉣昳ㅣ昰捥昴〱敦㜶つ昸㤹㝢挰㙦捣㠰昷㘶ㅣ㜰慣攷㠰昷愷て昸愰㙢挰敦摣〳㘶〳㈰敢㜰㔷挶〱㡦昷ㅣ昰攱昴〱ㅦ㜵つ㤸㡢㝡捡㍡㙣〷㠷っ戸ㅢ〵晦摤㘲戸攷㠰㡦㌳㝡敡㙥昱㈴㕤㡥晤戰〰昵㤴〱㍢挲㈱〳㍥㡤㠲晦㠰㠳㍣〷㝣㤶搱㔳〷㝣㡥㉥挷㠰㥤㔰㑦ㄹ昰㄰㌸㘴挰攷㔱昰ㅦ戰扦攷㠰㉦㌲㝡敡㠰㉦搳攵ㄸ戰㉢敡㈹〳昶㠶㐳〶晣㌳ち晥〳ㅥ收㌹攰慢㡣㥥㍡攰㙢㜴㌹〶㉣㐲㍤㘵挰㝥㜰挸㠰慦愳攰㍦㘰て捦〱摦㘰昴搴〱摦愴换㌱攰㔱愸愷っ㌸ㄸづㄹ昰㙤ㄴ晣〷散攲㌹攰扢㡣㥥㍡攰㍦攸㜲っ㌸ㄴ昵㤴〱㐷挲㈱〳敥㐵挱㝦挰〳㍣〷晣㠰搱㔳〷晣㤰㉥挷㠰愳㔰㑦ㄹ戰ㄴづㄹ昰㘳ㄴ晣〷散攰㌹攰㈷㡣㥥㍡攰㘷㜴㌹〶ㅣ㠷㝡捡㠰㤳攰㤰〱扦㐰挱㝦挰㝣捦〱扦㘲昴搴〱扦愱换㌱攰ㄴ搴㔳〶㉣㠷㐳〶晣づ〵晦〱戳㍣〷摣挷攸愹〳㉡晣愰捣㌹攰㙣昷㠰㜳捤㠰搹㐰晡て昸敤㤷㕥愷㌵戹㡣㥥㍡㘰㥥㙢挰昹敥〱㉢捤㠰㍡攳㠰㥦㝢づ搸㉥㝤挰〲搷㠰㔱昷㠰㑢捣㠰㠵ㄹ〷晣挸㜳挰晤搲〷散攸ㅡ戰捥㍤㘰挲っ搸㈹攳㠰晦昴ㅣ戰㜳晡㠰〷扢〶㙣㜴て㜸㥡ㄹ昰㤰㡣〳扥攵㌹㘰搷昴〱扢扢〶㕣敤ㅥ㜰㡤ㄹ戰㘷挶〱晦收㌹㘰敦昴〱㡢㕣〳㥥敢ㅡ㌰昷㈲㌸㕡㝤㠲慦㜰㉡昴㍤㝦㕦搷ㄷㄳ㔱㍣㌳㘷っ㝤㌸㙢㈸挸㥢攷搶㜲㉥晤㌲㔸昱晥ㅦ㝦昱㤳㥦ㄵ㔴㍣摦㤶㠶㤷散〶晥〰㈸ㅦ㝦㜷㘱㠳㘹㜸搱㙥㘰昶㡡敥㡦愰㠵㍣搳㙥㡦㕡摥㜳㜸ㅣ昳搳搹㙦愹㐷戲摥㔲㜷㘷㝤ㄴ愸挵㔸戵㉡㍢愰㜸㌲㑤搶晡㈸㑥攲㑡㤴㘴㑡挵愸昱散㥡㙦挵昳㕦挱ㅣ㑤っ㑦㝤〵㌳㠰㌵戶昳扤搵㘰〶搲换戳㔵挱っ㜲㘲㙥㌲㤸挱昴摥㘲㌰㐳㥣ㄸ㥥ㄸ捡㔸㐳改摤㘱㌰挷㌸㌱㍣㤷ㄳ捣㌰㝡㜹ㅡ㈷㘳つ㜷㘲敥㌷㤸ㄱ昴昲捣㑢㌰挷㍡㌱てㅢ捣㐸㝡ㅦ㌵㤸攳㥣ㄸ㥥攴挸㔸愳攸㝤搲㘰㡥㜷㘲㜸㕥㈲㤸ㄳ攸攵㈹㠹㡣㌵摡㠹㜹搱㘰㑡攸攵㔹㠴㘰挶㌸㌱慦ㅡ㑣㈹扤慦ㄹ捣㔸㈷㠶ㅦ搸㌲搶㌸㝡摦㌴㤸昱㑥っ㍦㘳〵㌳㠱㕥㝥扣捡㔸㈷㍡㌱ㅦㄸ捣㐴㝡昹㠹㈸㤸㌲㈷收ㄳ㠳㤹㐴㉦㍦挴〴㌳搹㠹攱㠷㡦㡣㌵㠵摥㙦っ㘶慡ㄳ挳捦ぢ挱㑣愳㤷ㅦㄵㄲ㘷扡ㄳ挳㐳扣㘰㘶搰换愳扢㘰㘶㍡㌱㍣㉡ぢ愶㥣㕥ㅥ㤰〵㌳换㠹攱㠱㔴㌰戳改攵㌱㔴㌰㈷㌹㌱㍣昶〹㘶づ扤㍣散〹收㘴㈷㠶㠷㉢挱㥣㐲㉦㡦㔴㠲㌹搵㠹攱ㄱ㐶㌰㜳改攵挱㐵㌰昳㥣ㄸ搹搳戱㠳㌴攵㕦愱ㅣ〸㜳㡦㤷㙦搲㍦㐱愱㈰扢㤰㍢敢ㅣ㌴㘴慤㔴㤵ぢ慡ㄶ㉣昸戲㌰愷㐷㤷㥣㤳㐷户摦戸攷㠹扦慦㝦㘱摥愸㜷扦扤敡慡ㄷ摥㕡晦搴户昷㉤ㅣ戵晢摡㙢ㅦ㈹摢昴搴摦昷㡦㙤捥扡攳换挹㥢㑦ㅦ戸攴昴㘵戱搹㐷㑥㌸晤㤴挵㌳〶㑥摦慦㕦㜶㜶㕥㕥摦㡥㡦ㅤ㜴㜸昸慣㘵㜷愹㕤㝦敥㕣慦㘴敦收㌴㉡㌰ㄲㄷ㡥ㅥ收㕥㉥搳㔸㠰㠲㡥挰ㄴ㘴㈹搹挹搱㥡㍡㘳敥散〲慤㈴㉡㕢挹㙥㥥㠶攲敥㉥愸愸㠵㤲ㅤ㍤つ挵ㅤ㕥㔰㡢㉣㤴散敡㘹㈸敥昲㠲慡戱㔰戲戳愷愱戸搳ぢ㙡㠹㠵㤲摤㍤つ挵摤㕥㔰㜵ㄶ㑡㜶昸㌴ㄴ㜷㝣㐱挵㉤㤴散昲㘹㈸敥晡㠲㕡㘶愱㘴愷㑦㐳㜱攷ㄷ㔴挲㐲挹㙥㥦㠶攲敥㉦愸㐶ぢ㈵㍢㝥ㅡ㡡〷〰㐱慤戰㔰戲敢愷愱㜸〸㄰搴㉡ぢ㈵㍢㝦ㅡ㡡〷〱㐱㥤㘶愱㘴昷㑦㐳昱㌰㈰愸搵ㄶ㑡づ〰㘹㈸ㅥ〸〴㜵愶㠵㤲㐳㐰ㅡ㡡㠷〲㐱晤捣㐲挹㐱㈰つ挵㠳㠱愰搶㔸㈸㌹っ愴愱㜸㌸㄰搴戹ㄶ㑡づ〴㘹㈸ㅥ㄰〴㜵扥㠵㤲㐳㐱ㅡ㡡㠷〴㐱慤戵㔰㜲㌰㐸㐳昱愰㈰愸㜵ㄶ㑡づ〷㘹㈸ㅥㄶ〴㜵㤱㠵㤲〳㐲ㅡ㡡〷〶㐱㕤㙣愱戸昳换㈷晡㔲晢㠳㝢っ扡攴攳㤱ㄸ摣㐹〹㉣挸㔱摣㌳〵ㄳ㑦挵㈸敥慤搲㔰㙦㌷昰㑦㌸敡つ昰㉡敥愲搲㔴敢敡挳扤㔲ㅡ㤶戸ㅡ戸㈳㑡挳㘲㔷〳昷㍤㘹愸㜱㌵㜰㜷㤳㠶㙡㔷〳昷㌰㘹㔸攴㙡攰㑥㈵つ㌱㔷〳昷㈳㘹㠸扡ㅡ戸敢㐸㐳㤵慢㠱㝢㡢㌴㔴扡ㅡ戸㠳㐸挳㐲㔷〳昷〹㘹㠸戸ㅡ戸ㅢ㐸挳〲㔷〳户㝣㘹愸㜰㌵㜰㘳㤷㠶㥦戸ㅡ戸㝤㑢挳㝣㔷〳㌷㘹㘹㤸攷㙡攰㔶㉣つ㜳㕤つ摣㜰愵攱㔴㔷〳户㔵㘹㌸挵搵挰捤㔳ㅡ㑥㜶㌵㜰㡢㤴㠶㌹慥〶㙥㠴搲㜰㤲慢㠱摢㤰㝣慣摤㠴㠲ㄲ攳摥㤴摢晤㍦㘰戱㘴㥥"]
["Decisioneering:7.0.0.0","Decisioneering:7.0.0.0"]
["CB_Block_7.0.0.0:1","CB_Block_0"]
["㜸〱敤㕢つ㜰ㅤ搵㜵㝥㜷㥦昶改敤㤳㘴ぢ晦㘰㙣っㄱ搸〹〴ㄱ㘱㤹昸㠷㄰搷搶㡦㈵ぢ㙣㑢戶㘴ㅢㄲ攸昳敡扤㕤㘹昱㝢扢昲敥㝢晡㈱愴㘹㐸㕢㈰㈱㙤㠷㘹㔳愰愴愵戴㠴㡥㍢㐹㈷戴㘱摡㑣㌳ㄹ㘲㈶㘹ㄲ㤳㌰〹㤳㈶㤹㑥敢㘴㌲㘵㌲愴㠵㑣㍢搳㜴㠶㤶㝥摦搹㝤搲晢㤵㘵搹捤戸㌳㕥昳㡥敥扤攷摥戳昷㥥㝢晥敥搹㑢㑣挵㘲戱户昱昰㉦㥦㈶ㄶ㌶㡥捥〵〵㉢摦搵攷攵㜲㔶愶攰㜸㙥搰搵攳晢收摣㝥㈷㈸挴搱㈱㤱㜶㠰て昴㜴攰摣㙦㈵搳搳㤶ㅦ愰㤳ㅥ㡢㈵㤳㠶㐶㉡搱慦扤㔴㌱㌸捡㘰戳㠱㕥㌱㈳〱搰摡っ㌰搶搷㍢㍣㝥ㅦ㕥㌲㕡昰㝣敢收㡥愳㈱愹㕤摤摤㕤摤㕤㕢㙦摢扡扤㙢换捤ㅤ㝤挵㕣愱攸㕢扢㕣慢㔸昰捤摣捤ㅤ㈳挵昱㥣㤳戹搳㥡ㅢ昳㑥㔸敥㉥㙢㝣换慤攳收㝢㜷㜶扦㜷摢㌶晢戶摢㜶戶㈶㐱㜹愴慦㜷㥦㤵㥢〲扤㡢㐵搵〰搵㠳㝤扤㈳扥㘵㕦㉣㥡㍡昹搲摤㙦㘵ㅣ㌲搰戲㝣挷㥤攸敡敢挵㝦㘵㕣㐱㙤㐷搷昰攸愸攵〶㑥挱㤹㜶ち㜳挲挳晣㜰㘶晣愸㤹㉢㕡㠹扣㑣㈹㤹㍦㙡晡〷捤扣搵㤶㍦ㄲ㔸㠷㑤㜷挲㘲㑤捦てㄶ㥤㙣ㄳ㌶㌶晥敥㝡㉦㡡㤸搴㌵摣搷摢㌷㘹晡〵㈱㐹〶摥㔲慦户扣愹慢㙣㉡㌲㐶㕡挹ㅥ搵ㄲ㠹づ摦挹晤㌵㔲〴㉤〰㠹㔶㠰慢〷晤搳㝦㘲㍢ㄹ慦㈳㙢㜵〸㤵㜱㈷攷㘴㑤搴戶慡愶㝦㠷㈰㤶ㄳ攰㌰㉤㙤㙡改㜱㉤㥤搱搲㔹㉤㙤㘹㘹㕢㑢㑦㘸改㐹㉤敤㘸改晢戴昴〹昴㈹㍤挹收㘶㉤㝡㘶摣晦ㅡ㙣摢昴改㍤㝦㌵昳昴户晥攳挱愹捦攸㤴扤捥㝡㉢慡㘵昴㤸㙦戹搹㕦ち㡢敢㙥㐸挸㘲㤹挴戹㤸扢〲㡢㌲㔶〲㈴摡〱搶㤷㌳㜷っ㙢㌸㝤捡捤㌸㘶搰搱慤搴ㅢ㘰㉤搹㥢㠹㝦㈱晦㥤攱攲摥挷晦昳㐷㡦㍥晦㝢㍢㝦㐷攷㍡摦戳㌴扥っ㐳捦㜳收㉦㐷昸敡㙥㔵挸㤹㘸ㅡ攷攲捤㉡昲㘶㌵㜹戳〶㘰㘳㌹㙦㐶扤㜱摦㥡昲〲攷昴㜳愷晦搴㈳㝢㕥㡦搸㜳敡㤱ㄷ㍦晤㘲晣㌷て㍣昵慥慦晦昵昶㝢㜶㡥㈹ㅡ㉡戱㕤㔷㤲摣㍡㤲扢ち㘰ㄱ㌹〶戵搷㈲㙡㕢㑦慤昸户慦晦㝣摢搰ㄷㅥ㝥㜶攲愵㈳㥦晤㘹敢〶っ㍤〸㐵敢㍡㘸ㄵ㉥㤲㔵搲愹㘰㜵攵愸慥㘲㔳〹昵㝣㘸ㄷ晡慤㈰㘳搰㘸っ戹㔹㙢㌶㠱ㄲ㡣㐹㙢扥捦㜳ぢ搶㙣愱摦㉣㤸捤昹ㄱㄳ捡㔰㌰搰愹㔳㐶㠵㈵㡥㙣㤳戶搲攸㔴㔴〳㠵㜶㈹㤶㔱㘹㤱㠶㤰㤲㠲㝦㠹㌷㠵㌰㤹愸攷㘸昶㤹挱㘴挱ㅣ捦㔹㥢慢愴㤲㝣㠳挹㍢㔲㜰㜲㐱ㄷ㐸づ晡㕥㜱㡡ㅣ扤㘸㜴㐰换㈰㠳ㄲㅢ〱挴㉤昲㉦㕥戰挷戸〶㝦㔲㠲㌴㠸挴〶扦㑤捣〲慥昵㍡㔴づ㐵搶慦摦㌷㘷㘰挹ㄷ戶㜸㙢搷ㄶ晥㍢户㉢㠳㈷戳户搹㍢散敥敥散戶㉤收慤愶㑥ㅢ㜸扥㤶㤸〲摦㥡㍦收戸㔹㙦㐶㜴㘶㔵ㅥ戶㔶ㄴ㘶㙣㙥捡㤲愶㔶㝢捣昴㈷㉣㤸㝢㝦愸㝦㡤摤攷昹扥㤵㌳ぢ㔶㔶ㅡ攸攸搷㔵㌶〶〳扥㤷㘷晢挶㕥㌳戰ㄶ戴慦搳づ㕦搴敢ㄵ摤㙣㜰㜵㝤攴㘸〱愴㌷㔴攳ㄶ㠸搴っㅢ㠵㉢戴〲㤹改戵搵挳㐴㑥㝢㘶㥤㄰㝤㑤ㄵㅡ捥搰ㅢ㙦㡣ㅤ昰慤㤳昳搸㥡ㄹ昵㈰摡㤹戶㠸慦㔹㘵㠸ち攷搵搱㌷改〵㤶㉢搳敢捣㡦㌸㤹ㄳ㤶㍦㙡㌱㔶戲戲戲搴戵㐴㔹㔰㥤㡣ㄵ㜴づ㤳昵昰挶搹敢换㕢敤扤戳〵搸㘸㉢㡢昹㈲㑡㈹捣㡤㔱攸慦慣攸ㄲ扥ㄳ㠸昵ㄵ捤〳㕥愶ㄸ㔰挱㝣㉦㔷㠹改挹㑥㥢㜸㘷昶㠰㤷戵㥡㥡戴㌸㈲戱㈶㍥㌱㜸晦㌸戴㙥㑢㤵㑥㐹愸㐱摡㐱戹㑦㉦㤳ㅣ㍡昵㕢㤷㌴愸㔲扣㌸慥㥥㜶捦㠷㤱敡慡㑡㕤改㍡っ敥㠱㑢㌹㡢㡡愴㔵㉢㝦搹㐴ㄷ愴㠶㉦愹㙢晡挲ㄵ㤵昱㡣㜲换摥㌷㌶㕥㡡㤰㥤㤷㡣晦摢捥㥡戶㍡㕡晤摥㘹㤸搷㝤愶㥢捤㔹晥攲晣攲㡣㡣敢〹㌶〱愴㔲㌱晤ㅦ㘱㠴ㅡ㜲㤱昱㡥㥡㔵㜳晡㡣㤳㉤㑣㈶㈶㉤㘷㘲戲㠰㌶㠴攸挹㈴㔹㑣换挹摦㌷㘰㤱㝦㡡㕦捣㜸㈷挱扢〰㔲愰㉥㘶㉥㤱㌲㙥㤴㝡㑣㌱搴㤰㔸㡥㤱㐶㤵つ㙣摦㘳㜴ㄲ㙤㉣㠲搳ㄹ愶㉣戲㔹㔵昱㑥㡤〹㙢挹㑢㡦㕥戰㉡㘸换㡦㍡攲户晡戹慦㉤昹ㄱ换捦㠰㡤㑥捥㑡攵攷挵戰㐶㠱㉦㥢愹㑢搳㑣挵攳㌴㔰ㄵ㘶敡愶挶㙡㉡㔲㔰㘵愰ㄶ㔵㥣㐵㤱㡢搸㠳〵愱愲㐵愷昶摤搰㜸㔶昳㔲㐷晦捡扥つ昵昲戲㜵慢㤷㔴㔰㘲摤㙥〱攳㡣㉤〴摤〴㕢〱昴㤷㘱攴㤶捡㜸㕡戱收㘹㐶戱改㜴㉣㐹㤲㘲〵捦㠰〴㙤攵㈴ㅡ昸㝢〹㔹㠹㥦㠸挵摢㠶㥡戱㥤㘰〷㐰㤹搵扢㉤慣㉡ㅥ㈲挴敡搱ㅥ㔵㔹扤㌷㜷ㅢ敦㈷摡㔸〴愷昳〰㜲㍥㘷ㄹ㕡搰搶㈸愲ㄲ㉦㜶搹㡣〵晦㑦愲慤㑡ㄳ㜶㜳㘳㘳ㄱㅤ㘰慢㡣搸㘵㡢挱㤴攳㜹挶㐳㝢愰㉥敡换㤱㝥ㅦ挳㐱晤㘵㌴㉣攸㜷㉦㙡㐶ㅦ㐱㍦㐰㤹㝥て㠴㔵挵㔳扤攸㌷て昵㔵晡㡤㔳摦㄰搱挶㈲戸搶〳攸㠱㠳㘹扦㤷㌷ㅤ㜷攱扣㜷㐱改㑢挵㌴〳捦㝤挶㐱㠲㘱㠲ㄱ㠰㔴㑣晤㘵戴搴ㄷ㔰攵敦昷㤱扥昹ㄵ挹㑦ㅣ㘶慦㔱昶㉡㕢收ㄱ愹挷㥡㜸㝡慤攷〷攷捦摡㑣搵愵昶㝢㘶㜶挰捣㈰ㄱ摢ㅣ愵㘱㤳㝤㕥㝥ちㄹ〰扦㥤㍤晢㜰愸挰㘱㘵摡挹㕡㝥㤲つ愳挸晥㌶㈱ぢㅢ㈴攴㐸ㄶ攰㘸ㅦ㡦改㝡㑢戲摥扢㠶㑡戴㌶㐷愱㙦㜹㜶㜹愸㠶晥捦づ敤摣捤散㜱㉡㈵㥣㌸㡡愲㜱っ㐰㘷〸㝣摥挷ㄸ〶㥦㔷收㐷㈷扤㤹㝤㠸㠳慤㈰捣㜲〶㝤扥㔳㔸㔷摢㡣㔴㠵㤹㕦㉦敤㠳扥㠵㤳慢㍦㠶〳㥣慣㤱㈳㌶搴挵挸愰つㄲ〸㤴㘹㜶愷㝤搴戱㘶ㄸㄵ扣愳ㄶ㠵㌴㙤㕦㌱㈸㜸㤲㔹戹戶ㄶ摦敦ㅤ昴ち晤㑥㌰㠵慣摢收㍡攸㄰㜳㙣搲㜲ㄱ愲昸㌸㝢㥥慢㤳㌷㌵㘵㘵敢捣㜱搴㉢㈲㠲ㅥ敡扦ㄴ㡥慤搸愹昰㔱㜲㘲㔵㐹㤵搰ㄴ㥥攵㥤㤸搴㝡ㄲ晢搰㥡捦つ晥攸晥摦搸捤㙣㥥㠲㠲㐰㐵㜴㥥愲㤶㝢戲挵〱愴㉣㥦戲㤶昹昶〳昸㐶攱㑣攵慣㕥搳㠷㘰㝢㝥㘰攴㑢挵㔰昰㈴摢ㅤ愶敦㐳㙤戹ㄴ㤸㡤戸㍢㑣っ㜴㌵㜶㔷㘵ㄳㄷㄹ㉣㠵戸㙡㑤搵〹㕥搶捤昸㜶㤹㝢愵晦㌹慣摢㜹㑥愴㌶攴挳晢㘳㑡㝦づ愴敡捥㡦ㄱ㘱㤳换敦㈲ㄲ㈸愶㑥戸摥㡣㉢㌳搷〳㈶愹㈴㉥㙣㙥收㌲攸ㄸ攴搹㠶昴㠹㠸㑤㑣攷ㄹ㜹㐹戹〹〶㜲㉢敤㜹つㅦ㜳ち㌹慢挵づㄹ挸㜲搲㠶捥攲㐰㤶㙤戶挷㈶㝤换敡㙦戳〷㝤㈷㥢㜳㕣㡢っ㐶㐶㡥ㅦ㘳昶㕢ㄳ挸ㄱ㡤㈰㔵捤慦㜰㙤昶㤸㙦扡〱㉤戲㥢㤹㕢㔵㔱ㄳ㤹搲敤㕥挷つ昰ㅡ戱㉡㉣慦戴㘹昴戰扥㘲摥ㅤ㌴愷㠲㑢㐱攸挰捤搲ㄳ慡戸愶㌴㑤㈵戵攴㌲攵㈶㤶昸〰㤹㉤㜲㕡晡㥣昴扥づ㈴㤱㌴搱㝥㡤攷〸扡㐵㈸㍤戳ㅢ㡢㈴㈱慡㌲㐶㥣㘷慢㝣㕣㡢㔲㜹昱㝡㡥㙤㍥愵㈵㘷㤸て㘲㡣㘲搲㐴〴改㥥愸挰㡡㘲㡥㠴㥥戸捡戵摤㡢㈶攳㔷〱㜴㥥㝦捥攳攸㑢挷㔸挷㤸㕦㜶㌸㔱摥搵㕥㕡㥥ㄴ㕣挴收㠸㈴㕥㠰愳愱戱㠸㕣㡢攲ㄱ㔶戶㍦㡤〲つ㡥昸ㅤ㥥㘹愵昵㌸ちっ㙤昸搳㈹㥣㑢捥㐲昰㈵㙤昹㔰扢㐳㈷愲攷㤹㥤㐸攵昷扡挵昰晢㑤㐲㠲ㄳ㜷ㄵ㥢㍢㉢扡愶挲㈶挲㤵㘱㜱㝥㔰㑢㠴㠲愹㜰搷㠷㜱ㅡ㤳搱挴㜷㉥㤰㕥㕢㡤愱㘹㜱㥢戱㐰晥戰捡㙢ㄷ㜱㈲㜸㉢昵〳摥㝣㐹扤㤲㘱㐶挰挴㄰㌱挳捡㔸㈸昲㕤㑡昱散㑥㙢ㅣ㤳慣㈳㐲㑦㉤㐶㕥㤶㘹扢摡㡥㍡㌵摥挸〰戴㘶〱敥ㄸ㍣㌲㜴㤱愲㜴㥤㈹㠳㐵㜶㑥散昷㝣㍥㜹㉤㍡慦〸㙤㍡摢挴㠷㡡㘹㘶慤摡㑦愴㙣改㐳㌷戱㘲愱㌸㠰㠴㝦慢扤摦ㅣ户㜲〳㥥㥦㌷ぢ㉢挲ち㤹㥥㌷㜳㐱㠴挳㈶攵㑤晡〰晡㡦搱㡣㐹㔷搳㔳㉣㜸〷ㅣ搷戰〱㐴㙥愲㈶㜳ㄶ㑤收慣㌴戵摡㠷昹〵㈷ㄴ㉢搰昲㈶㑣挴扡㤳㜹㈷㤳㘴㠵㕦㔹㉥〹攷㠱扤ㄷ㘹〳㐳昹㤴昴戶愳㑡昶挲捦㠴搸敥㉥㐴攳㘴ㅤ户ㅦ㉥㐶㔳〹晣㔳换㑣挰㐳敥攴㤴㘸搸愰愶㔳㠱ㄱ㤹〲攲㜹戳㜴㠷收捤㡦愰㐵摣㡤㘲ㅡ㠹㘸㘳㈲㉡戰愲㤸㌵慡攳〷㤸㥡㌲ㅣ〰㝤て挰㜹攵て㤸㥣㑦搸㐷㕣愷㠰㡤攷㘶て㌸㠵晥〰搲〲㠰愲㈴㤲㉥㝢ち㝣㡡戳㉦攸㡢㥡ㄲ㘳㡥ㅤっ挳㤶㜷㔶㠹㕣搹㌷慡㌲扥搳敡㕤㠰㕦ㄱ㜱㡢ㄹ㈷㐰㠵て㕣㡣㤱挳㕦〴㌳慡ㄷ㝦㐳ぢ挸っ㈴愷㔵㘳〱㤹晢㄰ぢ攸ㄲ摦て㐰慢㌵㉦挵㔳㈸㥦㕢㡡〷㌸〲㍦攳㘴㔴㄰㈹ㅥ㐲愵㡥ㄴ晢散㠸㑣㐰㑣㌱㜹㜱㍤ぢ㡤㡥㘰㡡㤹つㅥ挳搴愳㠸搶ㄹ晣愳㡣戹㝤〲㈵挶敦昵攲㙦收㐱敡收㔳挳っ捣晣挵愹愱㉣㍦〸㠵㌷愵㕡㜹㔳ち摦つ攴㍡㔴㔲㉡㠸戰摢昲挷㍣晦挴戸攷㥤攰㙤㠸ㄵ㔲ぢ㈶㉤慢挰慢㑢㉤昹昰㕡㄰换搰昰㜸扣攲㕡㔲㜴敥㈱㤲昹ㅦ搹愲挴っ㑡昱〱㍦㈳㌵昵㄰收捦晢㌶敦㌹㜵㜷散㔳ㅦ㝥晥㡥㠷㠳搷晦攰㜳㑦摥晦㠸晡慤〸昱挶㑤扤摦晣㥦㠷㝥㜸攷㕦㕣㝢挳㡥㉦ㄶ㕦昹㐳㜵ㄸ攳㘵㌷ㄳㅦ㐲㘹㘳㔵㌴摢㌳㠵ぢ㙦㘶㜸㕦〵晢㕥ㅢ摡㉡收㝥㘴慢ㅦ㐰㐱㌱昳㈳㝢昶攱愸挰㑡㍢戳㈸㌴㕡㠹㕦〳㔸搱搷㥢㉥ぢ㜸ㄳㅦ㐱摢ㄵ㘸ぢ㔷㕥㘲㘰㍢㤳㉥ㅣ㈳㤷戸㡣㡦愲愴㈴挶㘵搳㠳〰愵愷㥤戱㉥㉤戳昱㌱㠰戶㜸㍢攳㕡ㄹ挸㤷ㄹ愴摥捥㈸㔷㥡㤸㡦㌱ㅥ㘲㔳㈹㐴㌲ㅥ㘶搳㈳〴ㅦ㈷昸〴㤱挷〱㠴攴愳㙣晡㈴㐰㥢戶搲㡣ㅡㄳ㑦㍥挱攷㙦㜷愳㡥攷㤵攸敦搹摤㉦㥦攱昳戳摤㡡㙥㕦㤸㔰㍥㑦㥤愶晢㥣摥㠲㙦㑤㈱㠰㜴㜱㌱㜱㉥㘷ㄹ㔲愴愰㠴㈵㘶扥㐲戴ㅣㅤ㜱戹慥愹㍡㝦㍢㍦昶㍡㤰㙡愹㝢ㄶ㈵㈶㡢㥦㝥ㄲ㐲搱㜰㍣㔷戰昰㔵㠳㘳昸㈴㝥ㄷ㘰捤〱㈷攳㝢㠱㘷ㄷ㍡㐶㜱㌰挴㡤㍡摦挱昲戶昴㈸てㄴ㉢㜴㘸ㄳ㌸搱㑥㌷㈴晣㝣っ〵㙣ㄱ㕤㑥搵ㄶ搱〱㐹搳㙡ㄴ㡣㑦〱攸戴㍤㑢戳㜵捤攸搹㕥收㠰ㄸ收〴㔷搸㠷㡡㘶づ扡㌸㙣挳ㄷ戱改㔲㠸㈳㥡㥡挴㠸㔷㝦㕡攲㈵㈳㝣㕣扥搳昲㕤㉢搷〵㌳㉥㑢昸攰扤晣㔲㕥捤㠳捡扥搱摡〲昶㕣㕥慥㉡愵㍢搸戵愵扤愵㔲㈸昸捥㌸㝥㈹攳㜱㐲昸〶晡〸昶愹㔰㔱㈵㕥㠰慤㑦〲㜰㤷㌹㐸搱ぢ㔰㈹㤴㠵搷㔳ㄴ㔱㡥㈵㥥〲㘸㉣㕦㤹扡昲㐵〷㈱昲昵㐷㈸㐰扥攸っ慡攴㡢慥㐱㥡搶愱㘰㍣〳愰挴㘰戱昶㈰㐰改㘹愷攱ㄲ㕡㝦㠶㐲㕢㕣㝤ㄴ㝦㘸晤ㄳ捦〲㕣㌳收㘵扤愰〳晦昵昸㈷㡢捥㌴ち戸㐲㡡散挸戸㤹㥢昴っ㜶㐹㝣〶挰攸摤㍢㌶摣㌵㥢ぢ㘶搵摤㤸㌱㉤昲昷㥥㥤晤㠷㝦㝡晥户㠷㍥晢搶㜳晡摥摢扦㝢愵扡㉢㐲㔴㕦ㄹ㙤㉦㑤㐷愷㐱扢扤戱戳㉦㌳愲㥤搵㤷㝡昶攲㤲捥ㅣ搷ㅢ㐷㥥㕣㤷攰扡㐹㝢摦昲㘸挹愱㠱㡢挲㑦㍦㠶㔹㕦〰㥤㑡昹㈱挵㜷㤰昲㈹〰㐵扢㑣㑥ぢㅢ㐳㐰㕥慡搱㐶ㅣ㍣ㅣ㈱㙡㉥㤷搲愶㙦㙡扣搸昹ㅢㅤ㐹昴㑢攰攲㈱昲愶搱㌵挴㈴㙥ㅥㄶ㤰㜸㜷㉦〹㕢㠱敤攳敤愹㠶㐶㍣戱捣攳㠴㍡〴捥㠹㤹摥户慦㜴愱㔰㡢捤晢戵昰㄰㐱㥦㐸㐶慡㤱㔲攷捦扦㄰ㄳㅤつ㌵〹㈸㍡扦戰㌳㝤愷㜴ㅥ㉥㜵摥晡昶㥢㔵㥤捦㤶㍡搳挷㑡攷㠳愵捥慦㙦㕤㍦摦戹攴㐶㈳捡㜴挱㈲ㄵㅢ㔱㌰ㄸ敤㠴㤱捥ㅤㄸ㕢㌷搲ㄹ㡡㄰搳㉢㌷㝦晦敤敥ㄷて㍣晥戱戳敢㑦㝥晥慥㌷ㄴ晤㜸㍤㑡〳㡤㈸敤㡤㄰㌵㌱ㄳ摤ㄸ㤵㔳昵愳〷㌵㐲㠴昸㑢㙣愱攷慡㈷挴㝢㈲㕡㌵㘶㘰㜷㠴愸戹〲㑣㤳㉡愶昴㉢㈸搰㘰昲搷㑥ぢ㉡收改㌴ち挶㑢〰㙤㥡愲搹㤳昹摣づ㘲昳昳昹㉡㕡搵㌳〰昵收戳愳搱㝣戶㐷㠸敡㑢挴㡡昶㔰㕥戲慤晣㈵㘷搰慡㔳㝤慢㠵㤴愱捡〰㉤㔰搵㑤戰㤶㤶敢搰㌸晡挴ㄷ昷晣昷慤昷昶㈸㌲㡤挳㑢つ敤㕣慤㉣昰㘵ㄴ㡣㙦ㄱ㝣ㅢ㈰愵㜳挱㡢㘴㈹挳扣挳挲昵㑤㠶㝡扡捤搰愹挵づ㙦㑦搲㡥㈱㜸㜲㜲㌹搱昸㔶愴㈰㝣㕣愰摣㡦搴㌷㤲ㄸ昰扥㔱〴㡡㤴㌸㉦㈱㤷㍥㌹ㅡ㔲攳攰㠴㍤散攳ㅢ㘴戳㍤ㄴ㈰挱㥥扤愴㙣〵㈲挱㈶㜲㍢㌲ㄹ㕡昵㜶挸㤲挹昹㐵㔲㐷ぢ晣㈸摤㕢搴㤸戹㔸㕥㔴㤱㜸〵㉦㙢㉢㍦㍦昴㘸敡ㄶ㠸㡥搸㥤㜲㠵㌷扥㠳㥥挶㜷〱㤴慣㐰㈱㥥㜸㤵㑤愲昱〴㌱㐵㐱愷〰㈴扥〷㔰㐱戵㔷㔳敦㉥㔱㉤户㘶挶昷搱搳昸〱〰㜲㉦㠴愰晡㐳㌶㤵㔱愵㠶㤴ぢ㥦愲㌴㔷㌴㔰〸㐵攸㌷㐷㐲晦㝥㌴㈴戵㠴愲㘰ち㘲㔳㠴搸㈵〸愵㈸慣㠲戸㍥㐲散㐶㠳昱捦〰㍡搷戹㘴昶㜳捥慢戱㙢搱晦〹挵㍣㔸㘷づ搷づ㤷昰㉤攰㉣㠶㉡昲戳㥥戵摢㠸㘹搵戵㥢㔷㐷㠸ㅡ扢挹扤攰㙣㡣㝦㠹ち挲㑥戲㔷㌶敥㌵戶㤲捦昵摥戶戶搱摢搶㐴㠸ㅡ摢捡㍤㤲户晤㙢㔴㘰㘵㈵昹㈷㈷挲㔹㤵㌹㥥㍤㝥晣ㄷ㉢㥢㍡㌶㌴摤戵愷昵㠹戳摦昸昱㘳慦摥戳敢戵户㥥㝡敡搵㥦㍣㜶收慤扦ㅢ摦昵戵㘷㥥㜹改㡥㍦㍥昳攳㔵昶搳摡ぢ扦搸晦昴〳摤㈷ㅥ㌸㘹ㅦ戹㘹昰㠱扢敦㍢搴㍤㜲㐵㘷㍣摥摣㝣挳敡扦扦敡挶昶㕦㍦昹㌷敡挵ㅦ慣㜳搵搹攸㙤㤵挱㈰㔷㉣挶攸つㄴ㄰っ捡㕡㔱慣散挵㤹㑡慦㥦㠷扤搸㔹㐴㘰〵ㄶ㐹㜳摣㡢㠶㈴扥攵ㄱ㉦㠸戶㑡㐴换晦〲慥愹〱㔲","㜸〱敤㕣㕢㙣㈴㔷㤹敥㔳敥㙡㜷戵敤戱㌳㜶㉥ㄳ挲挴㈴㠴㕣㍣㌸攳㐹㠶㤰挰㌰昸㤲戹〴捦搸ㄹ㝢㈶㈰㐰㍤攵敥㔳攳捡㜴㔵㌹㔵搵㥥㜱㠸㤴ㄱ㠴换㉥戰㐸㔹㔸㙤㈰㐰ㄴ㔰㈴㕥㜶攱㠵㑤ㄶ㕥戸㐸㈰ㄴ愴㝤㘰㠵㤰㜸〸〸戱て扢㕡㡤挴ぢて㐸昰㝤愷慡扡慢扢摤㘵愷㤳㠰㠳㝣㈶晤晢搴戹搵㌹攷扦㥥晦㍦㤵㥣挸攵㜲㝦㐶攲㕦愶㍣㌳㌷㉤㙤〴愱㜴㈶㘷扤㕡㑤㔶㐲摢㜳㠳挹㘹摦㌷㌷收敤㈰散㐳㠳㐲搹㐶㝤愰㤷〳晢㜱㔹㉣慦㑢㍦㐰㈳㍤㤷㉢ㄶつつ昵ㅣ㠴扦㤱攴挱㘰慦挱㍣挰昲散捣挲捡愳ㄸ㜵㈹昴㝣㜹㘰晣㕣搴昷挸搴搴攴搴攴愱晢て扤㙢昲攰㠱昱搹㝡㉤慣晢昲㠸㉢敢愱㙦搶づ㡣㉦搶㔷㙡㜶攵〳㜲㘳搹扢㈸摤㈳㜲攵攰㍤㉢收扤敦㥥扡昷昰㘱敢晥晢摦㍤㠸㔷攷㑥捦捥㉣晡搲ち㕥愷㌱㜵㑥昹摥㌹㔹戱戹㌶㈹㝤摢扤㌰㌹㍢㠳晦㔲昳挷搳㝤㤳㑢慢㔲㠶㝣戵昴愵㕢㤱㠱㠱㡥〳捥㜴㄰搴㥤㌵㙥㥥攱ㅣ挳㔲㉢㘶㄰敡捥慣慣搵っ㈷ㄹ戵攸㉣㘰敦㙡收挶愰戳㈴摤挰づ敤㜵㍢摣㈸㌸换ㄸ愸㍡攴㥣つ攴ㄹ搳扤㈰㑦㥢㡥搴㥤攳㜵扢㥡㡦㔲慥敦昶㘴㠸昴挴搴昲㈷愷〳㘷㜶搵昴搵㡣〲㙥㑣㐶摢㘳㝥愵戵敤慤摤挷攵搴搵ㅢ㌸收㙤摤摢愱收㥣改㌷㕡㑥㜴㙦ㄹ㉦扥㜵〶㜷㜷㙦㥦摡愳搶㍥㜷㜶敦愳戶戲戵戵ㄸ㠸改㕢敤㈸ㄶ㘳ㄴ〸晡〹㡡〴㐴愰㔱㈲ㄸ㈰ㄸ〴㄰昹㍦㠰㑢搲ㅤ㔹愵㤵㑤慤扣愲㤵㉢㕡戹慡㤵愵㔶戶戴昲〵慤扣慡㤵㙤慤晣愸㔶扥㠸㌶㐹㉡昶昷㙢㜱ㅡ㄰敦㝦改㠱㍢㝦㜹攲捡晥㝦㝣愶晦㠷㌳㕦ㅥ摣㠳㐶て挷㤳㥡昳捤㑢㈰戵㈶ㄵㅦ㥡㍣挸㝦㕢㜳〵㤸挲㍡㙣摤㘷㑤㑤㔵てㅦ㌴敦㌱㜵㉥㉢〳昹㉤㠴㌲㠲戶㠳搶㈳戶㕢昵㉥㈹摣摤㌴㘳〶戲戹㜱ㄳ㜱摤㡣㔷㜷慢挱㕢㌶慦㕣ち捤㔰摥搸㕥搷ㅣ愴愳摢ㄲ搸㑡〶敡㝤晢摢扢㥤㌳㙢㜵㌹㝤搹㡥慡摦摡㔶敤㉣晡摥㑡昷摡㘳扥㝣慣㔱摢㌱愳㘹〸戵㜵㌵㜶挷㉡愳慡㘸㕥攳戳慢㕥㈰㕤㌵扤〹㘷搱慥㕣㤴晥㤲愴㐸㤴㔵戵搴㙢㔹ㄵ㜳晤挴㠲㡢㠵㠲㕢慢户愴㑢慤〷㉦㠷㘰㘶㔹挵㝣搷愴ㅦ㙥㉣㥢㉢㌵㜹㕤㑢㤳攸㥤愸搸搷㔲㝣捣慢搴㠳㔹捦つ㝤慦搶㕡㌳㕤㕤㌷㈱㘹慡愷扣慡捣攷㜳㑡㈸㐰攰昶昵〹㤱扢慢㍢㉦㈸㐴愴㔰㑣㐶扥愱㤵散㈶捦㘰㜵㔸㐵㑤㤲㈶戵户㙦㌱ㄸ攷慢㘴㑣〶〷愶搶㐴晤挱㤷摥戱挵戰つ捣扤戱㡤㌵㙤㌴㕥晤㠳敢搲つ㑦㤸㙥戵㈶晤㑣敤㈷㌸㈳㘳ㄸ㐰扦ち㠱搰㜵昷愸敡挴㘵戱愱㕦戲慢攱㙡㘱㔵摡ㄷ㔶㐳㤴㐱㐳ㄶ㡢摣摡㡥㘴㕣㠳㈲㘳㉦挱㈸㐰愹㤴㉢㡣戱㔱愱㠴㤴搳㈹㥤㌲㜸戹㐵㤰戳㕦ぢ㉦て㕡挷散㕡㈸㈳愱㍣㙣〱㈳㤱㔶㔳攸ㅢ㈲㠹晡㘶㈵㔲ㄸ㘳搶㉣愸搴戴摤㜰愳挹户ㅤ㕣ㄲㄱ搱慥㉣搸㜱戲㠰愲愰㔵ㅥ㘴昰ㅡ㠸愶㑤ㅡ㘴㌷㑥ㄱㄱ搹㈰㐳戳㘳攴㔶㈲㘳晢っㄹ㠱昶㘹㈲㘴敢㠳摤㘵〴㠹扤㤳㐸搹愹㉢㍦敥㑡戳捤㙣昹㐸㥡㕤㡢㡤㌳慥㈳戸㥥攰〶㠲㝤〰攲昷㤰㜰㤴㜲挸户㈶攳㉤㜸㌶㙥㈲㜸㉢〰攴㤳㐱㤹ㄳ㡢㉡摡㔰摢戱㈳搹㙥〸㜶戲㌲㡡㈳㔱㐴换戸㘱㘷づ㌹ち搱戱搵戹㌳㜴㙤㕥改搸㜷㜴愷捤昴㜲㐸㤱ㄹ㑤搳㙢摤愲㘹㝡㈳搸戴㐷扤㜵㌳扡ㅡ攳〴㙦〳㈸ㄹ户㄰㐲戹搰攰摤㥥㐵㑦㤳昲㑤㘱ㄶ㐵挶㔰㡦ち㍥㈶㘴ㅥ〱㌲㠴㕣挷昱㘵搷㠶愶㌹㌸㘱扤改㙤攸〳摤昹㍢㐶㝡㥢摥摣搵㍢昴ㄷ扤㑡㉢晡㔶戰㤷昸㜵㔷ㅤ㜳ㅢ慡㡤㜷㄰摣づ搰愶㘳㜸晡㝥戵㥥〲㘵ㄶ㍢㈹捣敤愵搷㐵㔹戹换ㅢ㙢㔲㘹愰㐱㙢搹昴㉦挸㄰ㅥ㡣㤳㜳戰㠵㍤摦㤷㌵ㅣ㙡慢慡㠰攷㤷敢㕢ぢ㠳㘳扥攷戰㝣搷㐶づ摥ㄴ㡡㈱㥦搷晡㜲㙤㌶㜲㠶慤㤹昲㌹愵㈸㠷㍡昸㥥敥㐲㈲搵愹㤵扣搸㉦晢㝣戹㉢㐹㝡㤰㈴㜷㘲㕢㡤扢〰㈰㈵挴㝦㜷㤵㈸〷搸散㥤慡㔹慢挵㑡て㕦挶改愴捤㠷搸㈱㐷〶㈲㠷敤っ晣〷挱㤰戳㘴㍢つ㘱㌱攰㉣㑡扦〲摦㠲㕤㤳愵挸㉤㑢㔱戳㉢㉢摥㈴戲愲慦慦攳㍣㥤攱㕦㔳㜴搲㈶㈵㌲戹㍤戳㌲攳㉣摥㈴㉡扡㈱㈹㔴㌲㕣㐳つ〹㐴捡㘳摢㕤ㄱ搳㠳㠸戹ㅢㅢ㘷ㅣ㈴㤸㈲㌸〴愰晦ㅣ㤲㘶扢ㅢ捦㜰㔸晦㍡㕤摡攵㜲慥㐸㌴㈸ㄷ攱换㕤㠵搵㘱扥收㕤〴昷〱戴㤹㍦㜴㐰㘶㄰愲㐲㜹㡡㄰㔵ㄸ挳㍡㘷换㑢愴㠱㍤ㄶ〲㑢戳昵㈰昴ㅣ㐶㤶㠶慣㌹敦戴ㄷ捥搹挱ㅡ㈲㔱愳㔶㥣㜹㘴㔵扡愰㉥ㅦ戶㑦㕢㤹户戶㈶慢㠶戵攴搵㈱摡㑥捥敤㠴㠳㌹戶〳戶愴㍡㥢㙢〲愹户昳㌱㠶㄰搸㘹攵㙦愵㌷㜶㕢摥㙦ㅥ晡㠶㥢㍢扡㙣㠷㌵㌹㘰㐵㑣挷㝣搱挲㉥㈲㜲㔰敤户㤶㔷㝤㈹攷㠶慣攳扥㕤慤搹慥㈴㌲㘰㘳㌲㔸㌷㉦㉦㈰㑡戰攸㌱〶攸戹㐳搶戲㙦扡挱㥡挹㠰攲挶摥㤶㈷ㄵㄶ搱慤ㄹ摢つ昰ㅡ㠵㐵收㠷慤愵㔵敦ㄲ㈲戶㜵挷㍤㙥慥〵㍢〲㉢㈴晡㈸㈹搴〸㑤㘸㥡㈸㙡挵㕥昱挳〳㜹㉥㐷摥换ㄳ㈸㕣攵㜴晡捣㌳戴㌷敤晡㌸㐶㐳㍢㥤㜳ㅡ㐴昴愸㔱搸㤷㈹㠵挹愹挶晤散昳〰挰㐳挷捦㥥㙣㐶收㕥㔳捣㕡愷㤷㍦㐳挶㉢戲㘸〴㐲攸愳摢ㄳ㤱ち换㐸㌹攰㐰㘰㥣㑦敤攴㔷戲㔴ㅢ㔲摦㥥㘶昶ㄸ㈲㐹㠳搶扣戹㈲㙢㠸㐷㍢㘶戸㈷㝡愰ㄹ敢㤸戵㈰慥㥢昵ㅣ挷㈴㘹㤱㉣㤷㉡㈶㈹㜸扡ㅥ㝡愷㙣搷戰〰ㄴ晤挵㐵收㘵ㄴ㤹㤷㔵搱愰㜵㠶愱㐱㤵攷㔸摥〵搳户挳㔵挷慥ㄴ昹挰昰摤㡥愰㐹㌰㌹㈵㙦㤲ㄲ㤹㌱摥㘶捤㥦㠵挹ㄶ㑣〲摤㤳㤰愳摣㍡愲ㅦ㤴慢㠹〲晥㠹ㅥㅤ㑢㄰㌰捡㔳㙡扣ㄷ愳改敡㜶〴㐴㡥㑡㔷㤳㍢ㄸ㔷㥦㐴㐹㈴㠴㠸昵っㄲ㠱㔷㌰㈵攴改攲㉥㔸㘷㕤㍢〴昶㠸戱㘳㜶㌸ㄷ〰攵〰挸慡攳敤㡤ち慢愹㑥ㄳつ慤㜰㜳㘷㔵㡢㥡搸摦㔹㥦搶ㅢ㙦摦愴㍡搲㈸㈹㐵戲㔵㈳愵㔹㌶㤹攳㑥㔲㌵㐲㈹敥㐴摢㠸㉣户㘹㜳摦㈹㐵㕥㠳㘲㔲㌴㤳㌳摥愷〸〵㠱摥㔸㐷搱㘷㥦㑤ㅥ愹㠸つ㙤㠰ㄲ昵㔴㔴㌶ㄴ㠷〴㑦攲摡㐹㔵㤶攲㈷昰昷㥥㌸扢㔰て㕢㙡捣换愳㜱捤㜴慤戶攰挲㑡愸㤸㝥㜵㠷戰㌴搶ㄶ㘹ㄸ挵㥤扤㙡晦㘸㝢㔳㡣ㄸ戳㈱挳㈲ㄹ㝥㘰戰㈱㤸㉢ㄵ㔱愵㜵㌶挴慤㙥ㄴㄷ昹㜴㑡㥡慥挲挰㔲㔸㥤㤳敢捡っ㙢㕡昲愳慡㐳攳戴愸攴愸㘱㑤慦〴㔰改㈱攵㜸㥣㔳っ㙥㔸㘷攸㤶挲㈵〶㠸摤㌸户㔸〹ㄱ摡㙤っ挰㤳挱捥挱づ㜶㈴ち㥤搰㍡愳〴㉤㘴㄰㙥敢㈲挸㍢㍤㘲ㄴ㠲搴㔲改晦㡦㡡㉦㍦挳昴慤愳戹㈴ㄳ㌳ㄱ挳㕤ㄹ搶〳㤰㥢㡥㑣㤲㡢㐶㤳㠰㜹㈴搹㤴搰ㅡ㑣捡㘸㘲っ搱攴昳㐳摣攲㘱㉣㙢㤸㙣㔳挳㍤户搰㠶㌶慤㙤散戱㑥扡㤵㕡扤㉡㤵㉡㑥㘴戵搲挸㍢〲㕦敡ち㘰挴㑤ㄹ晢ㄲ㙦捡㐹ㅣ愵戸㘴㈲愹㜷扢摢㌸㡡敥㑡挸㘱㡣㐸昵㌱〰㤹攱㤶㔳〱戱㡥㝢ち戴て昷㌶㉦㌰愸换㜳㄰㘹ㅤ㐵㤴㘵昳戸㡦搷㠸㈲㉢㙥㑢㌵㥢昷收㍤摡散愹愲ㄳ㜶㔴戴㈳㜰㠴㜵㐶〲慦㔰㠰㌱搲㈳㜷㜰㤰摣搵㌸扡㝢昵㐹昵㤸扢ち㔴㈸っ〸挶㜸㜹ち捡㘱㔷挱㐸㌴戸戵愶搵㉤ㄸ晤愵攵㙤㑣〳〸㠶㠱㘹搰愲㘵㘴攰捣㈲扦戵㠱㜳㌳㕡㘵㐴㐸搳挱㔴挶㈸㐷攱戰〷搲挰㑤㍣㐸㉦㝢㔰㐲攱㤸扡ㄸ㤶摣㑤㥣㜰㜰〴昲晣敢摡ちㄷ捤㄰搷㕦摣㝤㙤挵搳搵㉡捤㕤昸攷㜶〴㔶㜱㜵㈳㌲㐷挷摡㉥㘵愹㌵搱扥扢戵慤㈲扥㉣㜸㘸㙥昲㠴ㄹ㔶㔶㤷挲㡤攸攲㔶慦㈴愱㝦ㅦ晥㠸㑤摦㑥㥢㌹敦昲㈲敡㍡昷扥㜴搱昵㉥戹㙡㕥㝡挰㕢㝦愰㄰㕣愱散攷㈴㑢戹㍦攳㥦㑡㕡㑥晦ㅥ㐶摣捥戴㌹㐰搳㐱挲㜱㔴㡡愴挱㌸昲ㄹ㜴〲摢扤㜱㙢㠰㜴㌲搶㐶㈷㑡㄰散ㄲ㡡㝢攱㜵㈳ㄴ昱㥦㐰㉢㠹㈵㍡㤲㘳捦㕦〰敢㡢㤷㔰㐲㠴攳㌹ㄶ㈳晡摢㤰换㐰㥤ㄲ攴昱ㄵて㕥〸昹晢挱㔲挲捤㥢戲搳㕦㠱㤹挵㡢敤㈸摡㑦ㄴ晤㐷〷㡡〴慦㠱㈸晥㝤〸㤹㈴改っ捦扥慡㐰㌸搷戴㝢〰㝤挳㉦晣晥つて愰昳㌱㜱㈸ㅢつ愱戶摢昰摣㌰ㄱ晡㍡㑣〴〶敦㤵㠹㜰ちㄹ挱㈸㝥㘴㈲挴㍥㤰〵ㄴ㙣㙤㈲㌰戶㤷㘱〸愶㐲慤㈹户〶㑦㘰搷㌹昴㡦㥤挰挵㕢ㄹ㈰㥥て愵ㄵ捣挲㈳㜵㝤㘷昱愲改㥢捥㍥㔵㝥摣㤷㔰㘶晥㌲㙥㜲慢㉥散㜱攳愶㌵慡搳㈶扥㡡挴换扥敢㑦搹摥晤㜵㘰㉡㑡㤱晢㕥ㄴ㐵攱㌵㜸㑡〴捦つ戹㡦㡤晤摢昱摦㍣晥搴㔱摥㔶㡢㘹㔵扦ぢ昹㕥㐲昶戴㈷㄰搴㑤㕤ㄴ戹㤶ㅦ收㥣挲㈷㑡昶㕡㑤捥㤸扥戲㠲〲挳㐹戲ㄱ攱愵〸㌳㈲扥㥤㘰㘲攲摥㐳㘴㘲㑥戶戹㍢搵㠷㑤捡㐵㌸㤹㥡戸昲改㈵㘱㐳搱㔵㤱昵㘸㙤敡摦㠶㉡㝡㤵ㄳ㘹戵ㄲ㜹敡㘴ㄲ攲摦摢㜵摤㘱敡扡攸㈰挳戰㝦㈲愵㄰㝦㈰㠵愴て㌲扣㄰愰愴搴ㄹ㘴昴扢〱㌲㈲㙢敤㈱㕥晡〳㜶㠵㠰㙣㕣晡敢昱㈳ㄶ散㈲戰㤸昸攲㝢㍤搱搲ㄶ㑤㔴ㄳ㐳戵捡愶㔹㐲㐶ㅤ㕥㔸㌰㤵㤴㉥㈳㤳㈴晤㄰㜲摢㜶㐷昱㈵㐳㑥ㄴ㜸㡢ㄸ㕢㜷攸㙢㉢㌹て扡㜵摣晣㠰㥥㈹㈸㠵攱敥㘵㌱づ愴㉡㐶ㄷ㌵㉤㐵㐵㠴挳㔱戶搱㘹㈰慥㠲捥㜲昷攱㔴㡡攰ㅦ扦ㄴ㘲晤㐴㜳攸㙢摢㙢愸攳摣㝥㉣㤰㍦搸㕦晢㌳ㄸㅢ㙦㈵挷㐰挲㙥慢㔵㌱扡ㅥ㝥ㄶ㕤戸攸㥣㌰㥡㔹昵㉣づ攳㑦挲㔹㝤㕡㠷晥㘷昴㕡㜱搶㌹昶㘶ㄸ扢㐵晦㝦㄰〵㕢敡㝦挱搸㥢㐲攴㠷攲っㅦ㜴挶㑦戶っ搹㜰㐷攰搹㐶昰㐶ㅤ㡣つ㤵㘵挸㍢捡㉤攱攳搵愸㕡㐹㜰昸扤昲敤㔷㈳ㅡ㝤㘹摢づ㜴ㄵ㠰㡣つ改㉦㐰〴㜵敤摦㉡户㤲搳㙤攱挳攸㌸㜶捡慥昸㕥攰㔹攱昸ㄲ㠲扥攳晣昶捣㠲捤㌳㉤扥搹㉥搴㙥挵㑥っ㝥ㄴ㝤㑥㉦㐰㘰㥦㤶攱敢ㄵ㡢㘴㘴㘱㝢㤱っ㝥㠷㌴㤲ち㉦㔱㍢〴搷㔸て搷捤ㅡ㍥㕤㕤㠰慦㌳㘴搱㡥㔰㜶㤱挷戹晤㠶〶户づ㜷戴㍥〰㝦㤰慣㑤㈲㌸愶㤶昰攱㡦㜲㕦摢昷愰戵㙤扣戶㠰㉤㝢昳戹㤵昴攷㠱搳敤扤愵㤵㘴昸㑥㝥㤱㕣㌲捡㠴戸戴㝦ㄴ㝦户敦愰攵㘸愳愰昳昸㠳㙥㍡挲㈶㙡㜰㥦㙤㈳晡㝤ㅥ㕤挵㌴〱㝥㠶ㄹ㘷昸㈰攸攵㈳㉢㡡慦㘱㔹㘴〰攴㜳㠵ち㐰㜷慡㝥㜶㌳慡ㅥ㜹㠸㍤㤱〴捦ㄸ㈴挷㤲昸ちㅡ㜲扢愲㘵㠳㈵戸㙣愱捥ㄲ挸ㅢ㐹て攴㜳㠲㘷〹㌵㤱㝦㐵㠷挶㐴㙣㤴㜶㥦挸扦㙣㌶ㄱ㐱㉢㐰㉤㌴㍤晥㐸愲㐵㡣ㅡ慡つ㠷挰㈵昰〰㐶ㄲ㘵㌲㑣昹㐸愱㔳㠸㘲っ㉦ㄱ㐵㐸晦ㄵ晦㝤攵攸捦㕦㘶晡扦愳㐲㐹㐴㔴戵慥㠲ㄲ㔱慤攲ぢ改㔵昸㈸敤扥㡡捦㙦戶㡡ㄱち㑢捥挴〸〱㠶晡㐴ㄹ㝦搴慡敡挸㜰㐳昹ㄳ攷〹昰㙢㤹挵㠸㠹ㄲ搵昷ㄲ㌲攸换㥤㔷慤㉥㈳㤳昴搵戹ㄱㄹ㕦昹㈸㐳㠹㌷㈲改搴㈹㐴㕥搹㐲愴ㅥ㡢㑥散㡥摤ㄱ㐲〲㑢攲㘷戳㕤㘵㝢愱挷㔰扦昸㜴㠲㤸ㄳ㈷㤲㑦愸戴㌸昸〴挲㠸㑣㔳ㄲㄲ㌷㔲㝣㉡㘹晣㥤敦㌶㝤愷愸㐰〲昵㐴㡤㐹㜰慡昱㈷㤳挶㠷昰㜹㤶㙡㤳攳㔵〲愶㔷㤲挶㈴㑣搵昸愹愴昱晦ㅥ摡搷㘸㥣搰㘱㌴戲㑥㈲挹㌰㝡搵㌱㈰昵愹昶㌰㥡敢ㄶㄵ改㠰ㄵㄵ㔳㠴慡ㄸ㜲㑤愹搲㐱摣ち昱昱戱昴㍣㉥㌹攱㉥〸愴㙤昴晦㑣㌸㠹换㑦㜳㘶㘸攲㕢攸㜵㐴㥤㝤㐳㍤戱㜳挱㕡昰㔱搰㙦㥤っ㜰戸慡敥㈸ㄲ㠱㕤㤰㡦昶㜷ぢ敦㝣㠶つ搹摣㡦㈴㕡愶昱㌲㐹㙦㕡㐴㐵㔸昲攲攳〹㘶㜳㔷㥡㌴㘳㍣〹攴㐰㑣〲㌲㘳㕣〱㡣㈲㌲㘳㉣ㄸ㈱晦㉢收晥㌸㉢㍥㐱昰ㄴ㐰㐹㤰搹㐹〷㠵㑦〲㡣挱㕣挵晦戳㈲ㄸ慦捡昱㌵㕦慥摢挱㡦扥攱㘹攲昱攴㡤㘹㕡㌲㍥捤㕥㥦〱攸㠳㌳㔷挴㤴㔸㌲晥〱㈵改㌷㔳㝡愸㌷㝦㤶ㄵ㥦㈳昸㍣㐰㐹攷㡣户扤㜵㕣㔸㡦㝡散㥦搰㔵㕣㈱挰捦昸㐲㥣攱㠳捥捤㜸㑦㜷换㤹〷攳攴㌳㝦〴㍥㕢扥攷㝦㄰摦攷㙦㜰搱㝤昸摦㤳攸捡捣捦㙢て昴㌶ㄶ㌹㠱ㄶ扡晡慤㘱戳㕦挳㌸㕣㔷㌳㥥挲ㄱ愹㔹㡡㕡㐱㄰改㕣戰昰昰〶扥攵㠸慡㄰㠲㠴愰㉡摣戸攲㈸ち㡣㝦㘶㔳攲㤸㜸㌲扥挸㈷愲㔶㙤攲㤷攲っㅦ〴昱慡扡㍦ㅡ㜷㑦㕥㐸㕣慢ち扢敤㠵挴扦慡㔸㑤扦昰ㄹづ愶㤰㠵㑣慢㙡㈲搲ㄴつ㝤〵㤹愱扥㘱捥敤ㄱ晣戴换愲㜲扥㝡晥晣ㅦ㠷昳攳㌷收㍦昸晥挱㘷㕥昹搹㙦㥦晥挵㐷㡥晣捦㥦㥥㝤昶ㄷ扦㝢晡攵㍦㝤㝦攵挸㑦㥥㝦晥挷て㝤晤攵摦敥戵㥥搳扥晢挷昹攷㥥㤸扡昸挴㘳搶搹扢㡥㍦昱愱㐷ㅦ㥥㕡扣㘶愲慦慦扦晦昶搱㥦摥㜰挷挸㤵挷㕥ㄴ㍦昸搵昵慥㔰换挵ぢ㕡愷挱㘵慢㘹㝣ㄵㄹ㑣㠳㌳㝥㐳愷挱攵慡㡤㕡㠹㌷㙡〶〵㐵㜸㌸㌸〱㔵㘱戶㔶っ晣〵敥㕡戴ㅢ"]
["Decisioneering:7.0.0.0","Decisioneering:7.0.0.0"]
[null,"CB_Block_7.0.0.0:2"]
[null,"㜸〱捤㕡㕢㙣ㅣ搵ㄹ摥㤹摤㔹敦慣搷昶㈶づ户〰挱戴㠴㐰ㅣ㔶㜱㐲㐸〲㡤㠸扤㡥ㄳ㈷㑥散㘴㥤愴〸搰㘶扣㝢㈶㥥㜸㉥捥捣慣㘳㈳㉡晡搶昶愹㠸㠷搲㔰㕡㈸㤵㡡㑡慢㔶敡㐳搵㔲㕥㕡㤰㕡戵愹㐴㈵愴㕥㥥㉡ㄴ愹て愰㌶㔵㕦㜸愰愵摦㜷㘶搶摥㕤慦㥤㘰㔲挹㈷昸摦㜳㥦㜳晥摢昹捥㝦㐸㈸㠹㐴攲ㄳ㈴晥㌲愵㤸戹慢戴㄰㠴挲㈹ㄴ㍤摢ㄶ㤵搰昲摣愰㌰攸晢挶挲㤸ㄵ㠴㐹㜴㐸㤷㉤戴〷㕡㌹戰㥥ㄱ㤹昲㥣昰〳㜴搲ㄲ㠹㑣㐶㔷搱捥㐹昸㤷慦ㄷ㜴㡥捡愵㐰㈶㡢㐳攳㔳ㄷ㌰㙢㈹昴㝣戱愳敦㑣㌴昶挰挰㐰㘱愰戰㙢晦慥㐷ち㍢㜷昴ㄵ㙢㜶㔸昳挵〱㔷搴㐲摦戰㜷昴㑤搴愶㙣慢㜲㑣㉣㑣㝡㌳挲㍤㈰愶㜶敥㥥㌲ㅥ摥㌷昰昰㥥㍤收晥晤晢㜲昸㜴攲㐴㜱㘸挲ㄷ㘶㜰戳收㑣㜳捥昱攲㔰攱㠴〸㙦搶㥣ㅤ㤸ㄳ㔳づ㝢㡥㘱戹㌷㘹㔲㡤扣摤㍤㉣㉡ㄶ㠵㈰㠴㙦戹攷ぢ㔸㜶ㄳ愳㔱摡㕢ㄸ〱挷㉢㐶㄰ㄶ㠵㙤㥦ㄲ㈶ㄷ㤳㜳挸㌳攱ぢ户㈲㠲㙥攷搰㝣㐵搸㜱㜳㤰㜱捥ㄸ晥〹挳ㄱ㈹㘶㝡㥣㐸㙥愳㔵攱㠶㔶戸搰攵㥣づ挴㈹挳㍤㉦搸㐵㜳づ搷慣㙡㉡愵愴㔲㠹攴戶㜶㡢㤱戲㈹㡣昸㤵攲戴攱㠷戲㐴愹つ戴敢摢愰㈱㜲攱㑤换愲ㄶ昵戵㡣愲㤸㑡㤶㜳㑣昸慥戰昹ㄱち慦扦愵㤳攴㐹挴晡㐵收搴㜷㐳㕥㈸㥤戱摥换慤愰㐲捦㤰攸㈰改㉣㐸搷攰㉣㤴搰㜸晢昵户扦攷昵つ改㥤㙣捣㠱㈸愹㝦挳㠲ㅡ〷戳㐹㉤ㅢ㙡㜹㑡㉤㔷搴㜲㔵㉤ぢ戵㙣慡攵昳㙡㜹㕡㉤㕢㙡昹㠲㕡㥥㐱㥦㝡捡㜴㜴愸㜱晡攷昶愱摦晦昷㉢㝦㍤昶挳㉤摢昶扥㔹㝢昷㕢戹㙥㜴㍡ㄹ㉦㙣搸㌷㉥㐱扡㑢㡡戳慢戰㤳晦慥㙦㌱㌰ㄸ㜳㡦戹搷ㅣㄸ愸敥搹㘹散㌶㌴㙥敤㐶攵戴〹㝤㜳收㔹换慤㝡㤷愴攰㜲收㠸㘵㠷挲㤷㠵ㅥㄳ㍦㤱昲挹㜲㤷㜹㘸ㅥ㔶㕢㠹㘴扣挹㉣ち㍦㠴戶㠷ぢ㑢㠲扦㙢挸〸挴㔲戱㍦㥥㝢挸慢戹搵攰捥昶㡤愵搰〸挵收搶戶愵㐹㤶つ㉢挱ㄲ㐴㈰㤷戴愵㜵搸ㄹ挳慥㠹挱㜹㉢㙡扥扢愵ㄹ㌶攱㑤慤摣㍡攲㡢㡢㡢慤换㔶㌴〸㠷㌹㈷攷㕥戶换愸㈹㕡㔷㕦㜱摡ぢ㠴㉢㤷搷敦㑣㔸㤵ㄹ攱㤷〴摤慤愸捡慤摥挲愶搸㌰晢挷㕤㙣ㄴ愶㔶晤㕣㘳㉤ㄹ㉤摣慡愸㘲扤戳攰昲挲愴㌱㘵㡢㕢㥢扡㐴摦㐴挳ㅤ㑤搵㈳㕥愵ㄶㄴ㍤㌷昴㍤扢戹㘵戰㍡㘷挰ㄹ㔴㡦㝢㔵㤱㤲㈹ㄱ㔱㈵㤱㑣㉡㑡攲㠱㜶㔶挵戹〳摡㕤㠳㤲搰扡㔷敦摣愰㐴散摣搶㕥ㄷ㘷㐶愶㐱挹搸晦挱㔵㔷搲愸㠴散扤㜳搵摥㙤㤴㤴㠳㙥㙦㌶扣挲㈹挸〷㜲戰〵慤㔲扤㙦攵㈹㤷昴昲㍡㉢㙤㤰ち㑦㔷昶㕥㠵㘹㜲摡㐵摤晢晦㜶㔶搵摥㜸昷㠷收攰昲㡦ㄸ㙥搵ㄶ晥慡搸㐰攱㡡昴ㅥ㤲㍣挹〶㤲㡤㈴扤㈰摡㠷㜰㤳㉢㜲㤴㙥㕤㤹㔷ㄶ戴㑢㔶㌵㥣㑥㑦ぢ敢晣㜴㠸㍡㘰㡡㑣㠶散愶挳散〱愰㜸ㄷ攷摤㔵愲ぢ晤ㄶ㤲㕢㐹㙥〳挹㘶ㄳ改摢昱ぢ㘷慤摦挱㥦捤㈰扤㐷つ㥣〸㐶㕦㔵昴㠱搳㜳㔶〰摦㥤㑤㘸昴改㥦晥攴㈱㥡搱攵㐱〷㈴ㄲ㘸づ捥搳㈰㤹㙣挷㤱㈳㐶㌰ㅤ搲ㄸ㔷㙤攴㤶昵㍢㐹敥〲挹摤つ㜲攲㠸戰㘱捡㌷ぢ挴㘸㍣㠹慥㝢㔸㔲㐲户㍡愵〵户㌲敤㝢㉥㈰摤戰ㄱㅡ㠳ㄵ㈰㠲㐰㌱搲捥㤸㔷慣㠵㘹攷㠸㠵㥦㥣㜳㑡捣ち㈳㉣挲㔵㠷㕤捥ㄸ搰㠴昴愵愳搵㜹捤㠹㠰挰戰〸㉡㍡ㄱ挳㈸㕣搳㝣ㅡ㌹昸摡㥣㐳㘷㈳收㐳㑥摤攱㑣ㄸ㐰ㅣ愱㡥㑥晤㜲㔴㤴攳挸㉥㔹㔷ㅦ㥤㡤㑢㤸㈱㉦戳つ戳㜴捡㡡㘸愶〴㔹㤹㠰㜷㑡㈴㔳㌱㙤戵愲搳愱㘵〷㠵㤸扤㠵㘱て㠸㔲㐸㔰㑢戶愷搳㔰戲昴慡挲㙡㌵㜶㐲㡥昱捡㔴㌴㉤㤶㜲搸昷㙡戳㠴ㅤ㌷㙢ㅥ捥㤵搰户㠰扣昲慦㌷ㅥ摢晡敤㥦㝣ㄲ晦㍥〷㌳㤲㐹㈷㉡搱愹昳㉣攲㐷㈶晤㕥晣㘴㔷㙢搳㠸㕡摡㝡摢ㄵ搰ㄱ捤㍡攷㘰户㤳扥㤰㜰㉦㈳ぢぢ戳愲换㌹敢昹㌳㔳㥥㌷㐳攱㜷换㔲㌰㉤㐴㐸っ搵ㄹ㐳㐶收ㄵ㐵㐹㈶㥢㌰㔲〳搸㈲晡㑡㙦〵戹㝢搲慢㝡㐱ㅦ晥ㅢ昴㉦搶慣㌹㘴㘰戹㤳扥㌱㘵搸搳㕥晡㝥㜴㐹ㄲ摤㙤㐳㐶ㅦ㍡㌴㌹㕥㤸户㠳㜹攵捦搸㍥㌱搸㐳㙦㍣㤱昸挶㤷㝥㝡昴慢挱〷㉦晥昸愵㘷扥愶晣㈹㙥㘸㐵㔵ㅡ㝤㔴慢㠶㐸㝣戸㜸摥㌴㥣㘴昴㍥㘹昳戴㙢㠵㐱愷㌹㔸ぢ扤ㄱ㉢ㅣづ挲㥣〹㠲慣ㅣ戲㔹扡收㠶㐱晤收ㄹ㑢㕣㥡〴㡦敥㔹摥〴攸㕣慣〵愱㈷㤵㝦换昲昶㘱敦㠴ㄷづ㕢挱慣㙤㉣摣搷愶㌹㙡㌹㍢㉤㕣㘰〵ㅦ㤰攱㝡㥤扣搹㔹㔱㙤戳挶㤲㔷昳㉢㘲㜴㜸㍤愰つ㈵戲攲〴ㄴ〵㌶慣㙣㕤昹㜴㙤攰㍢㔵㔳㠵㜲㈹㙢㍢慣搲摢㌱ㅥ扡搴㑦㡡㡦攲ㄴ搱㜷㈰㡢挳㐴攳ㄱ戶扡㡥㌴〰ㄸ㍡摡慣〹戹㐶㜵㕤㌱㐲ㅥ㜵〳慢㉡戲㜱改戸攵㜶挷搹昱㕡搸搴㘲捣昷挶㉤㠳戶㍤敥㐲昶ㄵ挳慦慥〷戱㘰㘳㐸㤱㑣㤴㌴晥慤㡤搳搱㌴㠹挴戵㝡慣攱摡㜳昰㔲て愱㥡扣㈶㔲㘸敢㤱ㄶ敤ㄱ㤹〶晣㐷晢敤㈲扢ㄷ慢㌳㉣ㅤㄷ㠶㉢愵㔰ち慢挳㘲慥㕢昶㄰搰㜰㕣㔹㙤搱摢㕣㤴〷㤳㙥づ㑥〵㥥㕤ぢ㐵昷㘲㑥㕡扡㙥㥥〲㜰㈰㤶捦㉤收㈶㉡㈱㙥㍢㡢昳ㄱ愷慦ㅦ〹㠱㈳愹㔸㑡㡡㤴㔳㝡ㄵ攵㙤摥〴㡤㘸㡤㔲挵㤱㙢捡昴㡦挷㤵㤷㉥㌳晤攰昱㐴㍤㤳㘵㑡㘸挴ㄷ㌷づ搶㘹㐹扤昵㍢㘴攴攲愴昷捡搵敢㠸㤳扢㑣改昸㜰ㄹ㘶戴愲㠷愶㘳㈳㤴ㄴ攲㝥㙥摢ぢ摤收愸㕢戱㙢㔵㌱㘶㑣〹扢敥戴㍤摦㔹㈷昲㤲㔱戶㐸㔶慢昰㈵扥挱㡣㈲搴㔶扦ㅡ慣搹捦㈵昴〲搸㉡戱〲收挸敡㍢㔱愲㘸㠸换㍦昵捤㠸戰㘳攳搲扤㕥〶㠱攰摡㤶㔵搱愷ㄱ㈱㉥㕥慥愴挵㌵㜴ㅢ昳挶㍣㕣㝣慢つ㔵㐷慣愸㙡摤搸㤵ㄴ㔳㍡㥤㕥敢〹〳㕥㈱㕤㡢攱ㄹ㥣㕥㔴㝥㥣晣愷〴㜸㠹㘹挵㤶つ㐸㐴ㅥ晥搲〹昲㌸敡愱〷㡢㤰挳愴ㄵ摡愲搳㤴敤㌲㥦愱㐹㤰㥢ㅤ收攴㌴㜰摡㜰㤷㜹搸户慡戶攵ち愲㄰〴㘲ㄸ㜸ㅢㄳ攷ㄱ㌲㤸昰〲㡢㜱摤㉥ㄳ搸捡つ㘶〹挷㉢ぢㅢ㥢㑡㔲㔸㥡㌹㘴戹㌰愰攸㥢捣昷㤸愵㘹敦ㄲ㐲挳㌵挷㍤㙣捣〶敢㐲㔰扣づ㐶㈹戲㉡㔵㔱㔵㈵愳㘶搶㝡㔶㐹昴㑣㐰㤰搸㠵㘹㔵㤲㔸㕣扣㙥慥㘲戳㤴㔴ㅣ戴愱捤㜲㕤㑤㈱搶戶户挵挵搸㍡晤戰捥㡦攵㜶㠳ㅣ㍤㝣㝡㜴㈹搴昷㤹〲攴ㅡ㉦挸慢ㅣ〷㔲㌵ㄶ攳ち㔴挹敥㐸㕤㔸㐷敤搱愵搴㔹㙡㔵挱慣㈹晢㔰ㅢ㜱㠲戲㍢戳㈳戸敤攵㘰晣㜰扦戸㈵挳敦㜶㐷〵㘲㍡挷戰㠳戸慤攸㌹㡥㐱昵愲㙡㤶攰扢㐵㐶〲㙣㜸ㄳ摤〴㤱㍡ㄸ㔷ㄹ昳愸㌲收㘵ㄵ㡥㘴挶ち㘵㥥㜳㜹攷つ摦ち愷ㅤ慢㤲㘱㠱昱扣㜵愱㤷㔰㈱㜹㌳〵㐳㤹愴㜲〲慤戶摥挸愳㑢㈴挴㕤挰〵㠲慣愳昸愱扤慡㍣挷㤵㌵〶㘲愰扥搲攱敢㝢㌰㥢㈶㥦㘲㜸㌷㘶㙡〰㘱愸㤱㡥㐸㘱捣㠴捤晡㈳㜱㠶㠵ㄴ挳ㄳ慢摥㡢㜹㜷换㡥㜹㐶㜵〴㈱㕦捦敦㠸ㅦ㜴㌲㄰㉤摤㡡㥦㘷㉣愴㠸㘰㈲㠲㤴㜳挰挲㝥㠶ㄵ㈵㐴ㄹ㔲㡣愲愴㈳ㄹ㤲㌷〹㑤敢捣戴晢搶㘸㝤慥晢攲㍢㘳攳挳搴攸戲昹㍦㍣戹て摥㤵摢㈲㤴搰昷㤲散〳㔱ㄸ㘵攱㝥㕡㍡散㘷㠷㐷㐱㌴㕥戶㕢慤㘴挵戸〱㥦㕤㌴㠷昱㡣㡣挳敤〰㜲愴ㄱ攵㐰㕣〴㉣㐹㜷㘶ㄸ㔷搰ㅦ〳昹挳㤵㉢〷昰㤳㔰敥〵愹㝦㥦㙡ㄱ㉦昰ぢ挸敡散愱昱ㄶ㜲㘳搷ㅥ㜲㍤摦㜰ㄷ愵㡤〶ㅢ捣㤳㌵挳挶摢捣㌸昰㔰挸慡昵㘰〴愹〸㤵戶㍥㌶㌴㍦搹攰㐶㈷户昰攴搳っ㝢戴昲愰戹㙦扣户㠰㍤搷㠶㕡戳摡慦ㄱㄸ戸戱慦搰ち㍡收ㄸ挳㉡㤷ㄱ摢㐱㠹㠲捦敡㔴㌱㥣摦ち㙦㡢搲㙣づ㈲㐳㈳㤳㠶挶㝢㡤慣ㅤ㐴愶㥥㌴㘲戰㔵づ㡦ㄶ挰挷昱扤㑢慡㑥愷搶㙦昳〵戶㥤㡤㌴㥦㈱㐳ㄸ慡㄰攳㉤㕢㠳挲攳㐵搶づ挷ㄹ愹挷㜴ㄱ搷昵㑡㔲㘷㑤晡愷㔲戸㘰攳㑣㘰㤶㜱㥦㈸㐷㈳挰㑤ㄷ㜵㔸戴攷〳攴愶㕡愳扤㡢㘳ㄹ㔲改摣搴ㄲ㕤㤷挳搸㐲昷愷晤ㄲ㈲㕡㜱㍣㜷戰㈴ㄵ㡥㘱㑡㡦㠰㙣㍡㙥㔵㝣㉦昰捣戰慦〴㙣搳挷昷ㄶㄳ㈸㜷㔰晢〵㘶㙣晢㑤㙥㉣攵昲ㄹ㔳ち㍡㍢攳㝡㤷㕣戹ㅡ㉤攰戳㤳攴㔷㐷〷㍦㐳散㉢搳攷挱挵㍣㕤㈵〷敢㐷㐰扡㤲㜹晡ㅡ愶㍣晤つ㔳㥥捥㠵㈹㑦〷挳搴㐳㤷挰㔹愸㑡㌷㌵攵改㐸㈸捤昴㈸㐸㜷㜱愸摣㠰㐶搲㐷㔱户〱㜵捤慦戸改㘳愸捥愱㕡扡攱㔳㜸挵挹搳ㄳ㜱㤶攸昵昳㌸㜳っ㤷㉢㔴㜸挹㠸㜱㘴搸㠱㝦昹㠳㈰㤲〳ㄳ挸攸㈷㐱扡搴晣㈰㝥㤸ㄴ愹㠷挸攸㡢㌵㈸攴㠷㐱攴㤸ㄲ㌲㕤㐹㡤捣㝢㙣攵㘸㑦挳㉥晡㘱㈲㑤㉦㕥㠷昰㠲戵㐰㡢㑢攲㌰搱攴㈶㔲敡愳㙢㥢㡢づ㠸〸㑣晥晤〸扡昲ㄹ收㈱愳㤶昴㤳㌳摥㠳㍦晤㌴㠸㐲㤶㌲〲慢㙦㈵戹㥦㠴昱㑣攵㜵㝣戲㙤ㄴ昳晢㜱㐳㙢ㄴ㌳㑦㐹㐸㐶㍥挹㐹㥥㈲㜹ㅡ㈴慢㔰ㄸ攴慡昲ㅡ㠶㜲㉢て愰㤰挱捤㡦〲㤲つ摦㡤ㅢㅥ㐴㠵㝥づ㐴愳㌰戶慦捣戹〸愲㉤扤愹㌲〲愳㤹戴晥㑥㌳㝡搲㈴晦㘴愴换㤶愶㤳〳㕡昳昱慡㌹㠶ぢ〸㌰ㅡ㥥攷㘳搵挳挵㠴愷㘶ㅤて攸戲挴挱㘹㜳摣〷㐰攸㌰㐷〳㕣㜳慡ㄹ㍣ㄳ㠴㜸㘵㜶搷挳㈹〶㘷㤶愲㥥㐱搳ㄸ㥤㔴摢晡ㄱ㍡㠸㔶晣搰㜰㤷㕢攲㐷晤㍥慦ㄲ攴慤敤っ㑢ㅢ昸搸㈶㘸㍣晥愷づㄹ㈵㥦慤扦㙦愹捡㜷㈰㕣㍡扢散〷扢敥昸㠴㙢收愹愴㔷昰㈳搵㑤㤱ㅢ㐱慣㔳ㄷ慣攲〳㠲㈴〹㡤晡搹扡㌳扡昵ㄱ㡥㘸㜹㤹敢散攴㜶㑢㤷摦㍣昸㥦摤㑦て㉡㔴㐱愹㔹㤷㘳捤愲㌷捡愸㘹㠵㙡㈹ㅢ扥ㄹ㌷搰挱㘴㠰㠲愹慡戲攱挵戸㠱ㅥ㐶扦〰搲㜳づ㠴㈶搲昱㐷㔵挱㠳摦㔵攵ㅤ昵慡昲㤶㝡㉤㘱挳戰㙣〵㔰㤱㥢戹㘱㔶搳ㅡ搷㜸㤲捥㘰愸㐲㌶㜱づ摤〶㈱㉢昸搷挳㤵㥥㘵㘱㕥愹㥣慢㥥㍢昷㔱㑦慡㙦㜳敡㡢〷㜳㤷晦昶扢昷㕦㜸敦愹〳㝦晦昸攵㤷摦扢晡挲㤵㡦摦㥡㍡昰㥢搷㕥㝢攷攸㉢㔷摥摦㘸扥慡晥散愳戱㔷㥦ㅤ㤸㜹昶愲㜹㝡晢攱㘷㥦戸㜰㜲㘰㘲㐳㝦㌲搹搱戱慤昷户户㍦㤰晦昲挵㥦㉢扦晡换㙤慥㈲扦㡤て攸づ〸ㄳ㙤㍤捦㌵㐸愳㜷㤱搱㍤㄰㜸㕣昶㘰㘵㔷㑡㘱戵㘴敢昳㌱㕢㠷㔰㤱㐱㙣㥢㕤㘵挳搷攳〶㐶ㄴ㜴ㅦ㐴㈱㤱敡ㄱ戰㈴〹摢〶㐱敡愹昳㝦㡢攴㥡攳"]
[null,"Decisioneering:7.0.0.0"]

{"sheet":"Plan1","index":1,"n_rows":1002,"n_cols":29,"rows_kept":1002,"cut":false,"hidden":false,"merged":[[2,25,2,28],[17,13,17,14],[18,13,18,14],[34,1,34,5],[27,13,27,16],[28,12,28,16],[22,13,22,14],[23,13,23,14],[0,19,1,19],[0,17,1,17],[2,14,2,15],[2,21,2,23],[3,20,4,20],[7,10,8,10],[19,13,19,14],[20,13,20,14],[21,13,21,14],[0,18,1,18],[17,8,17,11],[7,0,8,0],[17,1,17,4],[33,2,33,5],[0,20,0,28],[0,0,0,14],[7,11,8,11],[7,4,7,6],[6,0,6,6],[7,12,7,14],[6,8,6,14],[7,1,8,1],[7,2,8,2],[7,3,8,3],[7,8,8,8],[7,9,8,9]]}
["Exercício Extra 2",null,null,null,null,null,null,null,null,null,null,null,null,null,null,null,null,"Simulação nº","Aplicação A","Aplicação B","Tabela de Frequências"]
[]
["Um investidor está em dúvida onde aplicar seu dinheiro (R$ 40.000,00)",null,null,null,null,null,null,null,null,null,null,null,null,null,"Contador de Simulações",null,1000,1,43734.460361537109,51584.374152686862,null,"Aplicação A",null,null,null,"Aplicação B"]
[null,null,null,null,null,null,null,null,null,null,null,"Aguarde estamos gerando a série de APLICAÇÕES ...",null,null,null,null,null,2,39552.262806931591,48235.616478656149,"Limites Superiores","Intervalo A",{"$f":"P19-P18","v":10282.182925495399},"Amplitude A",{"$f":"W4/20","v":514.10914627476996},"Intervalo B",{"$f":"Q19-Q18","v":19074.377579102642},"Amplitude B",{"$f":"AA4/20","v":953.71887895513214}]
["Sua dúvida está entre duas aplicações, cujos comportamentos (rentabilidade mensal) estão nas tabelas abaixo:",null,null,null,null,null,null,null,null,null,null,null,null,null,null,null,null,3,42019.383484614082,37472.420132258019,null,"Absoluta","Relativa","Acumuladas","L. Superiores","Absoluta","Relativa","Acumuladas"]
[null,null,null,null,null,null,null,null,null,null,null,null,null,null,null,null,null,4,44163.058073080174,43626.734158192427,{"$f":"P18","v":38009.024318713477},{"$f":"FREQUENCY(S3:S1002,U6:U26)","v":1},{"$f":"V6/SUM($V$6:$V$26)","v":1E-3},{"$f":"W6","v":1E-3},{"$f":"Q18","v":33578.857240420541},{"$f":"FREQUENCY(T3:T1002,U6:U27)","v":137},{"$f":"Z6/SUM($Z$6:$Z$26)","v":0.14345549738219895},{"$f":"AA6","v":0.14345549738219895}]
["Aplicação A",null,null,null,null,null,null,null,"Aplicação B",null,null,null,null,null,null,null,null,5,42855.569627872253,37520.322291299824,{"$f":"U6+$Y$4","v":38523.133464988248},0,{"$f":"V7/SUM($V$6:$V$26)","v":0},{"$f":"X6+W7","v":1E-3},{"$f":"Y6+$AC$4","v":34532.57611937567},35,{"$f":"Z7/SUM($Z$6:$Z$26)","v":3.6649214659685861E-2},{"$f":"AB6+AA7","v":0.18010471204188483}]
["Rentabilidade","Probabilidade","Prob. Acumulada","Intervalo de Nº Aleatórios","Matriz de Busca",null,null,null,"Rentabilidade","Probabilidade","Prob. Acumulada","Intervalo de Nº Aleatórios","Matriz de Busca",null,null,null,null,6,45055.241064455528,37955.057022138928,{"$f":"U7+$Y$4","v":39037.24261126302},0,0,{"$f":"X7+W8","v":1E-3},{"$f":"Y7+$AC$4","v":35486.294998330799},49,5.1308900523560207E-2,{"$f":"AB7+AA8","v":0.23141361256544504}]
[null,null,null,null,"Limite Inferior","Limite Superior","Rentabilidade",null,null,null,null,null,"Limite Inferior","Limite Superior","Rentabilidade",null,null,7,42443.821701630382,39520.214012742596,39551.351757537792,4,4.0000000000000001E-3,5.0000000000000001E-3,36440.013877285928,65,6.8062827225130892E-2,0.29947643979057592]
[-0.02,0.05,{"$f":"B10","v":0.05},{"$f":"CONCATENATE(0,\" até \",C10*100)","v":"0 até 5"},0,{"$f":"C10*100","v":5},{"$f":"A10","v":-0.02},null,-0.03,0.25,{"$f":"J10","v":0.25},{"$f":"CONCATENATE(0,\" até \",K10*100)","v":"0 até 25"},0,{"$f":"K10*100","v":25},{"$f":"I10","v":-0.03},null,null,8,42872.718715358402,39805.309918839986,40065.460903812564,24,2.4E-2,2.9000000000000001E-2,37393.732756241057,45,4.712041884816754E-2,0.34659685863874345]
[-0.01,0.1,{"$f":"C10+B11","v":0.15000000000000002},{"$f":"CONCATENATE(C10*100+1,\" até \",C11*100)","v":"6 até 15"},{"$f":"F10+1","v":6},{"$f":"C11*100","v":15.000000000000002},{"$f":"A11","v":-0.01},null,0,0.2,{"$f":"K10+J11","v":0.45},{"$f":"CONCATENATE(K10*100+1,\" até \",K11*100)","v":"26 até 45"},{"$f":"N10+1","v":26},{"$f":"K11*100","v":45},{"$f":"I11","v":0},null,null,9,42855.313704151253,41833.225317567783,40579.570050087335,14,1.4E-2,4.3000000000000003E-2,38347.451635196187,44,4.607329842931937E-2,0.39267015706806285]
[0,0.15,{"$f":"C11+B12","v":0.30000000000000004},{"$f":"CONCATENATE(C11*100+1,\" até \",C12*100)","v":"16 até 30"},{"$f":"F11+1","v":16},30.000000000000004,0,null,0.01,0.3,{"$f":"K11+J12","v":0.75},{"$f":"CONCATENATE(K11*100+1,\" até \",K12*100)","v":"46 até 75"},{"$f":"N11+1","v":46},75,0.01,null,null,10,44163.058073080174,39047.1135394335,41093.679196362107,29,2.9000000000000001E-2,7.2000000000000008E-2,39301.170514151316,58,6.0732984293193716E-2,0.45340314136125659]
[0.01,0.45,0.75,{"$f":"CONCATENATE(C12*100+1,\" até \",C13*100)","v":"31 até 75"},31.000000000000004,75,0.01,null,0.03,0.15,0.9,"76 até 90",76,90,0.03,null,null,11,43296.942517833158,51983.69575176097,41607.788342636879,81,8.1000000000000003E-2,0.15300000000000002,40254.889393106445,67,7.0157068062827219E-2,0.52356020942408377]
[0.02,0.25,1,{"$f":"CONCATENATE(C13*100+1,\" até \",(C14*100)-1)","v":"76 até 99"},76,{"$f":"C14*100-1","v":99},{"$f":"A14","v":0.02},null,0.05,0.1,1,{"$f":"CONCATENATE(K13*100+1,\" até \",(K14*100)-1)","v":"91 até 99"},91,{"$f":"K14*100-1","v":99},0.05,null,null,12,44613.610929860835,34661.631069105548,42121.897488911651,55,5.5E-2,0.20800000000000002,41208.608272061574,44,4.607329842931937E-2,0.56963350785340316]
[null,null,null,null,null,null,null,null,null,null,null,null,null,null,null,null,null,13,45510.34450955104,41496.224713379728,42636.006635186422,84,8.4000000000000005E-2,0.29200000000000004,42162.327151016703,51,5.3403141361256547E-2,0.62303664921465973]
["Simule os próximos 12 meses para cada aplicação e determine qual a aplicação é mais interessante. ",null,null,null,null,null,null,null,null,null,"Saldo Inicial =",40000,null,null,null,null,null,14,44577.927179294704,43639.48333001924,43150.115781461194,80,0.08,0.37200000000000005,43116.046029971832,60,6.2827225130890049E-2,0.68586387434554974]
[null,null,null,null,null,null,null,null,null,null,null,null,null,null,null,null,null,15,43301.445902511987,43655.943295443096,43664.224927735966,102,0.10199999999999999,0.47400000000000003,44069.764908926962,75,7.8534031413612565E-2,0.76439790575916233]
[null,"Aplicação A",null,null,null,null,null,null,"Aplicação B",null,null,null,null,"Mínimo",null,{"$f":"MIN(S3:S1002)","v":38009.024318713477},{"$f":"MIN(T3:T1002)","v":33578.857240420541},16,43716.966577392501,41048.394169443251,44178.334074010738,206,0.20599999999999999,0.68,45023.483787882091,41,4.2931937172774867E-2,0.80732984293193721]
["Mês","Saldo inicial","Nº Aleatório","Rentabilidade","Saldo Final",null,null,null,"Saldo inicial","Nº Aleatório","Rentabilidade","Saldo Final",null,"Máximo",null,{"$f":"MAX(S3:S1002)","v":48291.207244208876},{"$f":"MAX(T3:T1002)","v":52653.234819523183},17,41586.708644772509,43184.804897502167,44692.44322028551,108,0.108,0.78800000000000003,45977.20266683722,26,2.7225130890052355E-2,0.83455497382198962]
[1,{"$f":"L16","v":40000},{"$f":"RANDBETWEEN(0,99)","v":29},{"$f":"B20*VLOOKUP(C20,$E$10:$G$14,3)","v":0},{"$f":"B20+D20","v":40000},null,null,null,{"$f":"L16","v":40000},{"$f":"RANDBETWEEN(0,99)","v":28},{"$f":"I20*VLOOKUP(J20,$M$10:$O$14,3)","v":0},{"$f":"I20+K20","v":40000},null,"Média",null,{"$f":"AVERAGE(S3:S1002)","v":43538.939850473347},{"$f":"AVERAGE(T3:T1002)","v":41879.900400911079},18,44591.484328046543,39032.391279639203,45206.552366560281,63,6.3E-2,0.85099999999999998,46930.921545792349,31,3.2460732984293195E-2,0.86701570680628282]
[2,{"$f":"E20","v":40000},{"$f":"RANDBETWEEN(0,99)","v":23},{"$f":"B21*VLOOKUP(C21,$E$10:$G$14,3)","v":0},{"$f":"B21+D21","v":40000},null,null,null,{"$f":"L20","v":40000},{"$f":"RANDBETWEEN(0,99)","v":55},{"$f":"I21*VLOOKUP(J21,$M$10:$O$14,3)","v":400},{"$f":"I21+K21","v":40400},null,"Mediana",null,{"$f":"MEDIAN(S3:S1002)","v":43714.911250683566},{"$f":"MEDIAN(T3:T1002)","v":41708.152124249857},19,42427.013931593538,43571.035949048703,45720.661512835053,60,0.06,0.91100000000000003,47884.640424747478,34,3.5602094240837698E-2,0.90261780104712053]
[3,{"$f":"E21","v":40000},84,800,40800,null,null,null,{"$f":"L21","v":40400},34,0,40400,null,"Desvio Padrão",null,{"$f":"STDEVP(S3:S1002)","v":1659.2990891618917},{"$f":"STDEVP(T3:T1002)","v":3462.2637200750528},20,43730.173089665572,38657.225577048492,46234.770659109825,43,4.2999999999999997E-2,0.95400000000000007,48838.359303702608,22,2.3036649214659685E-2,0.92565445026178017]
[4,40800,5,-816,39984,null,null,null,40400,40,0,40400,null,"Nº de Simulações",null,1000,1000,21,48291.207244208876,44861.246236860352,46748.879805384597,22,2.1999999999999999E-2,0.97600000000000009,49792.078182657737,23,2.4083769633507852E-2,0.94973821989528806]
[5,39984,66,399.84000000000003,40383.839999999997,null,null,null,40400,63,404,40804,null,"CV",null,{"$f":"P22/P20","v":3.8110691139023038E-2},{"$f":"Q22/Q20","v":8.2671250096853929E-2},22,45505.793475100072,41598.851661751993,47262.988951659368,12,1.2E-2,0.9880000000000001,50745.797061612866,22,2.3036649214659685E-2,0.9727748691099477]
[6,40383.839999999997,67,403.83839999999998,40787.678399999997,null,null,null,40804,30,0,40804,null,null,null,null,null,23,43305.605804620849,41431.138977136805,47777.09809793414,3,3.0000000000000001E-3,0.9910000000000001,51699.515940567995,13,1.3612565445026177E-2,0.98638743455497391]
[7,40787.678399999997,23,0,40787.678399999997,null,null,null,40804,10,-1224.1199999999999,39579.879999999997,null,null,null,null,null,24,46880.160819541488,40275.826882998008,48291.207244208912,9,8.9999999999999993E-3,1,52653.234819523124,13,1.3612565445026177E-2,1]
[8,40787.678399999997,15,-407.87678399999999,40379.801615999997,null,null,null,39579.879999999997,6,-1187.3963999999999,38392.4836,null,null,null,null,null,25,44600.137619360015,43993.889841701952,null,0,null,null,null,45]
[9,40379.801615999997,23,0,40379.801615999997,null,null,null,38392.4836,16,-1151.774508,37240.709091999997,null,"Comparação em 1.000 simulações (trials)",null,null,null,26,44586.934640838292,43587.470097450037]
[10,40379.801615999997,1,-807.59603231999995,39572.205583679999,null,null,null,37240.709091999997,44,0,37240.709091999997,{"$f":"IF($P$20>$Q$20,\" A Aplicação A em média é melhor no período\",\" A aplicação B em média é melhor no período\")","v":" A Aplicação A em média é melhor no período"},null,null,null,null,27,44171.804965152478,42422.591298618368]
[11,39572.205583679999,71,395.7220558368,39967.927639516798,null,null,null,37240.709091999997,92,1862.0354545999999,39102.744546599999,null,null,null,null,null,28,43292.698135662984,40578.228558040762]
[12,39967.927639516798,2,-799.35855279033603,39168.569086726464,null,null,null,39102.744546599999,61,391.02744546600002,39493.771992066002,null,null,null,null,null,29,45046.138995553621,39067.552076508066]
[null,null,null,null,null,null,null,null,null,null,null,null,null,null,null,null,null,30,41174.877915340308,49050.919447217188]
[null,null,null,null,null,null,null,null,null,null,null,null,null,null,null,null,null,31,43712.6810204297,41511.876283285768]
[null,null,null,null,null,null,null,null,null,null,null,null,null,null,null,null,null,32,45055.241064455528,41496.224713379728]
[null,null,null,null,null,null,null,null,null,null,null,null,null,null,null,null,null,33,43734.460361537102,41112.878637456117]
[null,null,null,null,null,null,null,null,null,null,null,null,null,null,null,null,null,34,42036.197963799597,44918.593761905882]
[null,null,null,null,null,null,null,null,null,null,null,null,null,null,null,null,null,35,43725.800072356607,38657.225577048499]
[null,null,null,null,null,null,null,null,null,null,null,null,null,null,null,null,null,36,45510.344509551047,41048.394169443243]
[null,null,null,null,null,null,null,null,null,null,null,null,null,null,null,null,null,37,45496.872082488058,52003.302992025667]
[null,null,null,null,null,null,null,null,null,null,null,null,null,null,null,null,null,38,43279.62374082602,48116.61621965115]
[null,null,null,null,null,null,null,null,null,null,null,null,null,null,null,null,null,39,42426.844172949743,45425.774742035406]
[null,null,null,null,null,null,null,null,null,null,null,null,null,null,null,null,null,40,42838.427400021108,38240.033736662539]
[null,null,null,null,null,null,null,null,null,null,null,null,null,null,null,null,null,41,41170.841558324777,43088.222077094819]
[null,null,null,null,null,null,null,null,null,null,null,null,null,null,null,null,null,42,44167.474820562216,41149.913559659806]
[null,null,null,null,null,null,null,null,null,null,null,null,null,null,null,null,null,43,43284.125324150977,37159.690067334901]
[null,null,null,null,null,null,null,null,null,null,null,null,null,null,null,null,null,44,45032.803987246669,40266.519994787181]
[null,null,null,null,null,null,null,null,null,null,null,null,null,null,null,null,null,45,40779.521272196784,44050.128598116062]
[null,null,null,null,null,null,null,null,null,null,null,null,null,null,null,null,null,46,41595.111697640714,45497.135802013079]
[null,null,null,null,null,null,null,null,null,null,null,null,null,null,null,null,null,47,45505.883148458051,37068.014806078187]
[null,null,null,null,null,null,null,null,null,null,null,null,null,null,null,null,null,48,45938.053872378849,36816.405311474758]
[null,null,null,null,null,null,null,null,null,null,null,null,null,null,null,null,null,49,44591.39378021632,42779.613106577039]
[null,null,null,null,null,null,null,null,null,null,null,null,null,null,null,null,null,50,40755.137541021824,49127.975383511293]
[null,null,null,null,null,null,null,null,null,null,null,null,null,null,null,null,null,51,43738.748053729418,44063.001499774349]
[null,null,null,null,null,null,null,null,null,null,null,null,null,null,null,null,null,52,44141.065294429915,40251.337971978326]
[null,null,null,null,null,null,null,null,null,null,null,null,null,null,null,null,null,53,44167.387784655977,38752.831216378647]
[null,null,null,null,null,null,null,null,null,null,null,null,null,null,null,null,null,54,45037.307718018485,38180.055250260557]
[null,null,null,null,null,null,null,null,null,null,null,null,null,null,null,null,null,55,44595.765485488897,45354.52561000202]
[null,null,null,null,null,null,null,null,null,null,null,null,null,null,null,null,null,56,42842.62724584464,43571.035949048717]
[null,null,null,null,null,null,null,null,null,null,null,null,null,null,null,null,null,57,42431.173442763298,46380.575332149252]
[null,null,null,null,null,null,null,null,null,null,null,null,null,null,null,null,null,58,45510.34450955104,40717.716017542705]
[null,null,null,null,null,null,null,null,null,null,null,null,null,null,null,null,null,59,44158.552098376254,41948.941007420195]
[null,null,null,null,null,null,null,null,null,null,null,null,null,null,null,null,null,60,44163.058073080174,39852.809873245875]
[null,null,null,null,null,null,null,null,null,null,null,null,null,null,null,null,null,61,43292.698135662999,50567.958193007405]
[null,null,null,null,null,null,null,null,null,null,null,null,null,null,null,null,null,62,43712.681020429722,47224.815325878393]
[null,null,null,null,null,null,null,null,null,null,null,null,null,null,null,null,null,63,39964.011998000184,43434.463092465958]
[null,null,null,null,null,null,null,null,null,null,null,null,null,null,null,null,null,64,45492.140371747206,45033.508833079999]
[null,null,null,null,null,null,null,null,null,null,null,null,null,null,null,null,null,65,41595.111697640721,40224.406773919225]
[null,null,null,null,null,null,null,null,null,null,null,null,null,null,null,null,null,66,40750.979277830207,36451.886447004719]
[null,null,null,null,null,null,null,null,null,null,null,null,null,null,null,null,null,67,43721.513649449793,45808.07086610204]
[null,null,null,null,null,null,null,null,null,null,null,null,null,null,null,null,null,68,42859.942645181218,45354.525610002005]
[null,null,null,null,null,null,null,null,null,null,null,null,null,null,null,null,null,69,43738.74805372941,39852.809873245875]
[null,null,null,null,null,null,null,null,null,null,null,null,null,null,null,null,null,70,43712.6810204297,40657.303788482306]
[null,null,null,null,null,null,null,null,null,null,null,null,null,null,null,null,null,71,45050.824316973463,39903.754958459831]
[null,null,null,null,null,null,null,null,null,null,null,null,null,null,null,null,null,72,46884.756913739482,43502.695925993634]
[null,null,null,null,null,null,null,null,null,null,null,null,null,null,null,null,null,73,42443.738062334676,41097.377504969576]
[null,null,null,null,null,null,null,null,null,null,null,null,null,null,null,null,null,74,44162.881368189817,38706.642309706032]
[null,null,null,null,null,null,null,null,null,null,null,null,null,null,null,null,null,75,44617.984813285322,41914.7461736931]
[null,null,null,null,null,null,null,null,null,null,null,null,null,null,null,null,null,76,44171.804965152478,39422.7151924356]
[null,null,null,null,null,null,null,null,null,null,null,null,null,null,null,null,null,77,43721.338711263619,44433.828740118981]
[null,null,null,null,null,null,null,null,null,null,null,null,null,null,null,null,null,78,41969.063094789344,42384.410966449606]
[null,null,null,null,null,null,null,null,null,null,null,null,null,null,null,null,null,79,40351.459873145599,40678.585151827981]
[null,null,null,null,null,null,null,null,null,null,null,null,null,null,null,null,null,80,45510.34450955104,38611.150621274777]
[null,null,null,null,null,null,null,null,null,null,null,null,null,null,null,null,null,81,42851.284070909474,41085.371003346263]
[null,null,null,null,null,null,null,null,null,null,null,null,null,null,null,null,null,82,41586.708644772516,45880.032489455763]
[null,null,null,null,null,null,null,null,null,null,null,null,null,null,null,null,null,83,43297.115757921747,39493.771992066002]
[null,null,null,null,null,null,null,null,null,null,null,null,null,null,null,null,null,84,39180.403919608019,40350.886111899432]
[null,null,null,null,null,null,null,null,null,null,null,null,null,null,null,null,null,85,48281.73977234136,46728.813090510695]
[null,null,null,null,null,null,null,null,null,null,null,null,null,null,null,null,null,86,43305.69114230635,36758.659748786435]
[null,null,null,null,null,null,null,null,null,null,null,null,null,null,null,null,null,87,42405.716012142104,43682.503568087603]
[null,null,null,null,null,null,null,null,null,null,null,null,null,null,null,null,null,88,43292.871358768913,49541.428641689359]
[null,null,null,null,null,null,null,null,null,null,null,null,null,null,null,null,null,89,43716.966577392501,39903.754958459824]
[null,null,null,null,null,null,null,null,null,null,null,null,null,null,null,null,null,90,43305.69114230635,43473.589322856526]
[null,null,null,null,null,null,null,null,null,null,null,null,null,null,null,null,null,91,43743.122365966017,38645.931960038819]
[null,null,null,null,null,null,null,null,null,null,null,null,null,null,null,null,null,92,42439.577319460222,45384.89154476759]
[null,null,null,null,null,null,null,null,null,null,null,null,null,null,null,null,null,93,45046.408002463431,35390.181016509428]
[null,null,null,null,null,null,null,null,null,null,null,null,null,null,null,null,null,94,39963.930846752846,42795.748745655423]
[null,null,null,null,null,null,null,null,null,null,null,null,null,null,null,null,null,95,43703.850175779102,41511.876283285754]
[null,null,null,null,null,null,null,null,null,null,null,null,null,null,null,null,null,96,43725.625117019612,35008.247379796609]
[null,null,null,null,null,null,null,null,null,null,null,null,null,null,null,null,null,97,42015.264341051225,40302.792508044426]
[null,null,null,null,null,null,null,null,null,null,null,null,null,null,null,null,null,98,42414.28455447634,41431.138977136798]
[null,null,null,null,null,null,null,null,null,null,null,null,null,null,null,null,null,99,40759.133142741528,46283.602268426337]
[null,null,null,null,null,null,null,null,null,null,null,null,null,null,null,null,null,100,40775.280169677477,42712.514409419375]
[null,null,null,null,null,null,null,null,null,null,null,null,null,null,null,null,null,101,44149.807830633996,48717.972643442714]
[null,null,null,null,null,null,null,null,null,null,null,null,null,null,null,null,null,102,44613.523014803992,41048.394169443236]
[null,null,null,null,null,null,null,null,null,null,null,null,null,null,null,null,null,103,43704.025043990012,43626.734158192412]
[null,null,null,null,null,null,null,null,null,null,null,null,null,null,null,null,null,104,45956.436446957632,41393.850952057393]
[null,null,null,null,null,null,null,null,null,null,null,null,null,null,null,null,null,105,44613.523014803999,36758.659748786435]
[null,null,null,null,null,null,null,null,null,null,null,null,null,null,null,null,null,106,44167.211062441609,38741.509668407598]
[null,null,null,null,null,null,null,null,null,null,null,null,null,null,null,null,null,107,45059.658244952043,47747.000249624311]
[null,null,null,null,null,null,null,null,null,null,null,null,null,null,null,null,null,108,43301.445902511987,45866.628746491988]
[null,null,null,null,null,null,null,null,null,null,null,null,null,null,null,null,null,109,43725.625117019619,41393.850952057372]
[null,null,null,null,null,null,null,null,null,null,null,null,null,null,null,null,null,110,43297.115757921732,42607.139985942784]
[null,null,null,null,null,null,null,null,null,null,null,null,null,null,null,null,null,111,43730.086915500942,39805.309918839979]
[null,null,null,null,null,null,null,null,null,null,null,null,null,null,null,null,null,112,48286.47327624062,42305.569049675818]
[null,null,null,null,null,null,null,null,null,null,null,null,null,null,null,null,null,113,45951.840803312931,37554.121000200001]
[null,null,null,null,null,null,null,null,null,null,null,null,null,null,null,null,null,114,39951.861739637126,39093.70873280309]
[null,null,null,null,null,null,null,null,null,null,null,null,null,null,null,null,null,115,42405.716012142111,42741.111454781123]
[null,null,null,null,null,null,null,null,null,null,null,null,null,null,null,null,null,116,46875.565175896802,37895.525514212823]
[null,null,null,null,null,null,null,null,null,null,null,null,null,null,null,null,null,117,47334.945714620568,43178.500203696902]
[null,null,null,null,null,null,null,null,null,null,null,null,null,null,null,null,null,118,43734.460361537109,37545.443040414852]
[null,null,null,null,null,null,null,null,null,null,null,null,null,null,null,null,null,119,43712.6810204297,36816.405311474758]
[null,null,null,null,null,null,null,null,null,null,null,null,null,null,null,null,null,120,42426.844172949721,44848.140129890351]
[null,null,null,null,null,null,null,null,null,null,null,null,null,null,null,null,null,121,40750.979277830207,35688.019173579065]
[null,null,null,null,null,null,null,null,null,null,null,null,null,null,null,null,null,122,42439.660950556798,41533.604957841788]
[null,null,null,null,null,null,null,null,null,null,null,null,null,null,null,null,null,123,44609.149568767847,41817.452586747713]
[null,null,null,null,null,null,null,null,null,null,null,null,null,null,null,null,null,124,42439.57731946023,40742.4886729305]
[null,null,null,null,null,null,null,null,null,null,null,null,null,null,null,null,null,125,46416.000811427213,43558.306773962329]
[null,null,null,null,null,null,null,null,null,null,null,null,null,null,null,null,null,126,43725.8000723566,45354.525610002012]
[null,null,null,null,null,null,null,null,null,null,null,null,null,null,null,null,null,127,45068.582716777149,39915.416152870021]
[null,null,null,null,null,null,null,null,null,null,null,null,null,null,null,null,null,128,44613.610929860828,43211.078529580518]
[null,null,null,null,null,null,null,null,null,null,null,null,null,null,null,null,null,129,42859.771154306356,39484.645820131118]
[null,null,null,null,null,null,null,null,null,null,null,null,null,null,null,null,null,130,41590.95218647096,39078.968904833324]
[null,null,null,null,null,null,null,null,null,null,null,null,null,null,null,null,null,131,44145.479842414163,37126.246346274296]
[null,null,null,null,null,null,null,null,null,null,null,null,null,null,null,null,null,132,46411.450669204729,44079.621208025092]
[null,null,null,null,null,null,null,null,null,null,null,null,null,null,null,null,null,133,42448.15270384484,40678.585151827974]
[null,null,null,null,null,null,null,null,null,null,null,null,null,null,null,null,null,134,44600.137619360015,42422.591298618376]
[null,null,null,null,null,null,null,null,null,null,null,null,null,null,null,null,null,135,39148.986368925849,46757.242896909294]
[null,null,null,null,null,null,null,null,null,null,null,null,null,null,null,null,null,136,43730.173089665564,43211.078529580518]
[null,null,null,null,null,null,null,null,null,null,null,null,null,null,null,null,null,137,45059.74703915944,43071.976164350133]
[null,null,null,null,null,null,null,null,null,null,null,null,null,null,null,null,null,138,39948.10511446694,37920.897470819007]
[null,null,null,null,null,null,null,null,null,null,null,null,null,null,null,null,null,139,45501.332560143215,42333.893635430031]
[null,null,null,null,null,null,null,null,null,null,null,null,null,null,null,null,null,140,44604.688653810968,40239.578638803301]
[null,null,null,null,null,null,null,null,null,null,null,null,null,null,null,null,null,141,44145.656477677367,41048.394169443258]
[null,null,null,null,null,null,null,null,null,null,null,null,null,null,null,null,null,142,44145.479842414155,42279.845994526557]
[null,null,null,null,null,null,null,null,null,null,null,null,null,null,null,null,null,143,40783.519264478375,41020.929680333473]
[null,null,null,null,null,null,null,null,null,null,null,null,null,null,null,null,null,144,45501.332560143208,41511.876283285754]
[null,null,null,null,null,null,null,null,null,null,null,null,null,null,null,null,null,145,41574.231384453051,42767.115143801995]
[null,null,null,null,null,null,null,null,null,null,null,null,null,null,null,null,null,146,44573.55722270425,42372.028461044974]
[null,null,null,null,null,null,null,null,null,null,null,null,null,null,null,null,null,147,44171.804965152485,44530.707520866003]
[null,null,null,null,null,null,null,null,null,null,null,null,null,null,null,null,null,148,43721.513649449793,48659.906437153346]
[null,null,null,null,null,null,null,null,null,null,null,null,null,null,null,null,null,149,44149.807830633996,44159.071768360001]
[null,null,null,null,null,null,null,null,null,null,null,null,null,null,null,null,null,150,44586.934640838292,41085.37100334627]
[null,null,null,null,null,null,null,null,null,null,null,null,null,null,null,null,null,151,40771.282985071091,43194.786295240017]
[null,null,null,null,null,null,null,null,null,null,null,null,null,null,null,null,null,152,43730.086915500964,43502.695925993627]
[null,null,null,null,null,null,null,null,null,null,null,null,null,null,null,null,null,153,42439.74712905199,47672.110336479134]
[null,null,null,null,null,null,null,null,null,null,null,null,null,null,null,null,null,154,42842.62724584464,39867.84157899722]
[null,null,null,null,null,null,null,null,null,null,null,null,null,null,null,null,null,155,44167.474820562224,44417.075482039945]
[null,null,null,null,null,null,null,null,null,null,null,null,null,null,null,null,null,156,44577.927179294704,41964.763333118433]
[null,null,null,null,null,null,null,null,null,null,null,null,null,null,null,null,null,157,43284.125324150984,41511.876283285768]
[null,null,null,null,null,null,null,null,null,null,null,null,null,null,null,null,null,158,42443.907888574438,38752.831216378661]
[null,null,null,null,null,null,null,null,null,null,null,null,null,null,null,null,null,159,44176.135534266701,43246.330935484744]
[null,null,null,null,null,null,null,null,null,null,null,null,null,null,null,null,null,160,43275.554210225411,41048.394169443243]
[null,null,null,null,null,null,null,null,null,null,null,null,null,null,null,null,null,161,44587.022503500295,47733.05107644567]
[null,null,null,null,null,null,null,null,null,null,null,null,null,null,null,null,null,162,42002.575731220226,36769.401842557687]
[null,null,null,null,null,null,null,null,null,null,null,null,null,null,null,null,null,163,44162.881368189825,39164.17252036]
[null,null,null,null,null,null,null,null,null,null,null,null,null,null,null,null,null,164,41178.995814921793,33578.857240420541]
[null,null,null,null,null,null,null,null,null,null,null,null,null,null,null,null,null,165,45059.74703915944,42741.111454781123]
[null,null,null,null,null,null,null,null,null,null,null,null,null,null,null,null,null,166,44604.776551458875,39879.492278332444]
[null,null,null,null,null,null,null,null,null,null,null,null,null,null,null,null,null,167,45487.68079519867,44935.536182938195]
[null,null,null,null,null,null,null,null,null,null,null,null,null,null,null,null,null,168,44617.896889609379,46641.889877267589]
[null,null,null,null,null,null,null,null,null,null,null,null,null,null,null,null,null,169,44158.552098376262,40188.204807822687]
[null,null,null,null,null,null,null,null,null,null,null,null,null,null,null,null,null,170,42876.837430317682,46338.832814350317]
[null,null,null,null,null,null,null,null,null,null,null,null,null,null,null,null,null,171,40755.054783308544,42235.627112615191]
[null,null,null,null,null,null,null,null,null,null,null,null,null,null,null,null,null,172,43284.125324150977,39458.227597273137]
[null,null,null,null,null,null,null,null,null,null,null,null,null,null,null,null,null,173,43279.882198445252,41561.412695256411]
[null,null,null,null,null,null,null,null,null,null,null,null,null,null,null,null,null,174,42427.01393159353,37218.065623650786]
[null,null,null,null,null,null,null,null,null,null,null,null,null,null,null,null,null,175,42851.28407090946,43519.104297865779]
[null,null,null,null,null,null,null,null,null,null,null,null,null,null,null,null,null,176,42859.942645181218,37955.057022138921]
[null,null,null,null,null,null,null,null,null,null,null,null,null,null,null,null,null,177,43297.11575792174,41149.913559659821]
[null,null,null,null,null,null,null,null,null,null,null,null,null,null,null,null,null,178,41199.677624319993,40641.974425191336]
[null,null,null,null,null,null,null,null,null,null,null,null,null,null,null,null,null,179,41191.435628481595,39437.584674827827]
[null,null,null,null,null,null,null,null,null,null,null,null,null,null,null,null,null,180,44609.149568767847,39422.715192435593]
[null,null,null,null,null,null,null,null,null,null,null,null,null,null,null,null,null,181,42864.229068088025,48267.911372355666]
[null,null,null,null,null,null,null,null,null,null,null,null,null,null,null,null,null,182,43716.966577392486,49076.594303686426]
[null,null,null,null,null,null,null,null,null,null,null,null,null,null,null,null,null,183,42829.773172263529,44010.483482377749]
[null,null,null,null,null,null,null,null,null,null,null,null,null,null,null,null,null,184,42439.577319460215,39915.416152870021]
[null,null,null,null,null,null,null,null,null,null,null,null,null,null,null,null,null,185,44176.135534266701,39032.391279639203]
[null,null,null,null,null,null,null,null,null,null,null,null,null,null,null,null,null,186,42435.416984461743,39422.715192435608]
[null,null,null,null,null,null,null,null,null,null,null,null,null,null,null,null,null,187,44600.137619360015,34671.76034187428]
[null,null,null,null,null,null,null,null,null,null,null,null,null,null,null,null,null,188,40783.519264478367,39082.287598271949]
[null,null,null,null,null,null,null,null,null,null,null,null,null,null,null,null,null,189,46416.000811427213,44050.128598116069]
[null,null,null,null,null,null,null,null,null,null,null,null,null,null,null,null,null,190,44604.776551458875,36408.440001202063]
[null,null,null,null,null,null,null,null,null,null,null,null,null,null,null,null,null,191,41594.863301087986,39508.668275702803]
[null,null,null,null,null,null,null,null,null,null,null,null,null,null,null,null,null,192,45510.344509551047,39093.708732803098]
[null,null,null,null,null,null,null,null,null,null,null,null,null,null,null,null,null,193,42418.442817667965,38288.91716002702]
[null,null,null,null,null,null,null,null,null,null,null,null,null,null,null,null,null,194,40771.446119469612,35701.480001178708]
[null,null,null,null,null,null,null,null,null,null,null,null,null,null,null,null,null,195,44171.804965152478,39067.552076508058]
[null,null,null,null,null,null,null,null,null,null,null,null,null,null,null,null,null,196,43292.871358768913,49586.056092172315]
[null,null,null,null,null,null,null,null,null,null,null,null,null,null,null,null,null,197,44171.804965152478,42368.430417494405]
[null,null,null,null,null,null,null,null,null,null,null,null,null,null,null,null,null,198,42872.718715358409,39790.301789923455]
[null,null,null,null,null,null,null,null,null,null,null,null,null,null,null,null,null,199,43717.052725702277,46325.295033956914]
[null,null,null,null,null,null,null,null,null,null,null,null,null,null,null,null,null,200,45965.447954646552,35744.082826674523]
[null,null,null,null,null,null,null,null,null,null,null,null,null,null,null,null,null,201,44604.688653810968,42728.624740172585]
[null,null,null,null,null,null,null,null,null,null,null,null,null,null,null,null,null,202,41166.970313958656,39867.841578997213]
[null,null,null,null,null,null,null,null,null,null,null,null,null,null,null,null,null,203,42019.551612922769,38288.91716002702]
[null,null,null,null,null,null,null,null,null,null,null,null,null,null,null,null,null,204,43284.125324150969,37126.246346274289]
[null,null,null,null,null,null,null,null,null,null,null,null,null,null,null,null,null,205,45956.345885744639,41845.450366908168]
[null,null,null,null,null,null,null,null,null,null,null,null,null,null,null,null,null,206,46411.359211346069,45395.381453310009]
[null,null,null,null,null,null,null,null,null,null,null,null,null,null,null,null,null,207,42872.63423088329,41511.876283285761]
[null,null,null,null,null,null,null,null,null,null,null,null,null,null,null,null,null,208,39568.170390396917,38611.150621274777]
[null,null,null,null,null,null,null,null,null,null,null,null,null,null,null,null,null,209,45956.436446957639,41458.878111137674]
[null,null,null,null,null,null,null,null,null,null,null,null,null,null,null,null,null,210,44609.149568767847,44777.797002542218]
[null,null,null,null,null,null,null,null,null,null,null,null,null,null,null,null,null,211,42431.173442763298,49172.230390863071]
[null,null,null,null,null,null,null,null,null,null,null,null,null,null,null,null,null,212,43301.445902511994,36462.53889149068]
[null,null,null,null,null,null,null,null,null,null,null,null,null,null,null,null,null,213,45510.344509551032,44089.809426599997]
[null,null,null,null,null,null,null,null,null,null,null,null,null,null,null,null,null,214,42859.771154306356,41057.881773930007]
[null,null,null,null,null,null,null,null,null,null,null,null,null,null,null,null,null,215,43721.338711263626,46746.438291110593]
[null,null,null,null,null,null,null,null,null,null,null,null,null,null,null,null,null,216,41187.31648491876,47299.002566449235]
[null,null,null,null,null,null,null,null,null,null,null,null,null,null,null,null,null,217,45505.793475100079,36816.405311474751]
[null,null,null,null,null,null,null,null,null,null,null,null,null,null,null,null,null,218,42427.01393159353,40754.394973018432]
[null,null,null,null,null,null,null,null,null,null,null,null,null,null,null,null,null,219,45064.164661418174,45367.779699524959]
[null,null,null,null,null,null,null,null,null,null,null,null,null,null,null,null,null,220,44171.804965152478,37218.065623650786]
[null,null,null,null,null,null,null,null,null,null,null,null,null,null,null,null,null,221,43721.252554507926,48736.348116386966]
[null,null,null,null,null,null,null,null,null,null,null,null,null,null,null,null,null,222,41998.458235314807,39493.771992066002]
[null,null,null,null,null,null,null,null,null,null,null,null,null,null,null,null,null,223,42435.416984461735,38645.931960038812]
[null,null,null,null,null,null,null,null,null,null,null,null,null,null,null,null,null,224,46420.551399742049,41057.881773929999]
[null,null,null,null,null,null,null,null,null,null,null,null,null,null,null,null,null,225,40379.804039596012,38671.806331627289]
[null,null,null,null,null,null,null,null,null,null,null,null,null,null,null,null,null,226,45487.680795198685,37929.662210201997]
[null,null,null,null,null,null,null,null,null,null,null,null,null,null,null,null,null,227,44136.561563658113,47604.296474575836]
[null,null,null,null,null,null,null,null,null,null,null,null,null,null,null,null,null,228,41170.841558324784,44848.140129890358]
[null,null,null,null,null,null,null,null,null,null,null,null,null,null,null,null,null,229,43301.44590251198,38214.448253688861]
[null,null,null,null,null,null,null,null,null,null,null,null,null,null,null,null,null,230,41166.805596991748,39128.924765091673]
[null,null,null,null,null,null,null,null,null,null,null,null,null,null,null,null,null,231,42855.569627872246,39520.214012742596]
[null,null,null,null,null,null,null,null,null,null,null,null,null,null,null,null,null,232,42855.569627872246,36849.569924406722]
[null,null,null,null,null,null,null,null,null,null,null,null,null,null,null,null,null,233,41187.316484918745,42750.990300690006]
[null,null,null,null,null,null,null,null,null,null,null,null,null,null,null,null,null,234,46420.551399742064,35302.871243884008]
[null,null,null,null,null,null,null,null,null,null,null,null,null,null,null,null,null,235,42418.612542696188,41948.941007420195]
[null,null,null,null,null,null,null,null,null,null,null,null,null,null,null,null,null,236,42439.577319460215,37906.599837688322]
[null,null,null,null,null,null,null,null,null,null,null,null,null,null,null,null,null,237,42842.711671188226,39915.416152870021]
[null,null,null,null,null,null,null,null,null,null,null,null,null,null,null,null,null,238,42859.771154306363,41484.101689487929]
[null,null,null,null,null,null,null,null,null,null,null,null,null,null,null,null,null,239,43725.625117019626,43165.885706999994]
[null,null,null,null,null,null,null,null,null,null,null,null,null,null,null,null,null,240,45059.747039159447,52112.259930718566]
[null,null,null,null,null,null,null,null,null,null,null,null,null,null,null,null,null,241,44613.610929860835,37955.057022138928]
[null,null,null,null,null,null,null,null,null,null,null,null,null,null,null,null,null,242,45487.86280088756,43626.734158192419]
[null,null,null,null,null,null,null,null,null,null,null,null,null,null,null,null,null,243,45046.138995553621,39431.827050209999]
[null,null,null,null,null,null,null,null,null,null,null,null,null,null,null,null,null,244,45050.824316973471,41446.765997967406]
[null,null,null,null,null,null,null,null,null,null,null,null,null,null,null,null,null,245,41603.434465038328,49969.908441565873]
[null,null,null,null,null,null,null,null,null,null,null,null,null,null,null,null,null,246,45505.793475100079,39484.645820131118]
[null,null,null,null,null,null,null,null,null,null,null,null,null,null,null,null,null,247,41166.805596991748,40287.59680910653]
[null,null,null,null,null,null,null,null,null,null,null,null,null,null,null,null,null,248,43297.201078876802,43139.639553513574]
[null,null,null,null,null,null,null,null,null,null,null,null,null,null,null,null,null,249,41599.189649767941,43194.786295240025]
[null,null,null,null,null,null,null,null,null,null,null,null,null,null,null,null,null,250,43708.395883578371,46715.16137830208]
[null,null,null,null,null,null,null,null,null,null,null,null,null,null,null,null,null,251,44162.881368189825,39493.771992066002]
[null,null,null,null,null,null,null,null,null,null,null,null,null,null,null,null,null,252,45501.332560143201,37955.057022138921]
[null,null,null,null,null,null,null,null,null,null,null,null,null,null,null,null,null,253,40383.842423838403,38657.225577048499]
[null,null,null,null,null,null,null,null,null,null,null,null,null,null,null,null,null,254,44582.56380124994,38645.931960038812]
[null,null,null,null,null,null,null,null,null,null,null,null,null,null,null,null,null,255,39951.861739637134,48565.266779422949]
[null,null,null,null,null,null,null,null,null,null,null,null,null,null,null,null,null,256,43271.138787900119,38254.457134582997]
[null,null,null,null,null,null,null,null,null,null,null,null,null,null,null,null,null,257,42443.907888574446,38997.262127487527]
[null,null,null,null,null,null,null,null,null,null,null,null,null,null,null,null,null,258,45041.723140343776,39816.942344359952]
[null,null,null,null,null,null,null,null,null,null,null,null,null,null,null,null,null,259,43266.811674021323,40266.519994787188]
[null,null,null,null,null,null,null,null,null,null,null,null,null,null,null,null,null,260,43284.125324150991,41898.942706382819]
[null,null,null,null,null,null,null,null,null,null,null,null,null,null,null,null,null,261,46880.160819541496,42301.976649561853]
[null,null,null,null,null,null,null,null,null,null,null,null,null,null,null,null,null,262,42431.173442763298,38752.831216378654]
[null,null,null,null,null,null,null,null,null,null,null,null,null,null,null,null,null,263,44591.305908940332,42356.052580769341]
[null,null,null,null,null,null,null,null,null,null,null,null,null,null,null,null,null,264,45514.806308032363,37579.264378355372]
[null,null,null,null,null,null,null,null,null,null,null,null,null,null,null,null,null,265,43297.11575792174,41484.101689487929]
[null,null,null,null,null,null,null,null,null,null,null,null,null,null,null,null,null,266,47817.764035932312,51134.584303694544]
[null,null,null,null,null,null,null,null,null,null,null,null,null,null,null,null,null,267,44595.765485488897,40590.086855900932]
[null,null,null,null,null,null,null,null,null,null,null,null,null,null,null,null,null,268,43284.125324150977,52147.150329510281]
[null,null,null,null,null,null,null,null,null,null,null,null,null,null,null,null,null,269,42401.558996554209,45384.891544767583]
[null,null,null,null,null,null,null,null,null,null,null,null,null,null,null,null,null,270,45050.824316973471,42741.111454781108]
[null,null,null,null,null,null,null,null,null,null,null,null,null,null,null,null,null,271,45059.658244952043,39816.942344359952]
[null,null,null,null,null,null,null,null,null,null,null,null,null,null,null,null,null,272,45041.723140343784,36734.065417368889]
[null,null,null,null,null,null,null,null,null,null,null,null,null,null,null,null,null,273,41599.356096793534,38308.958832304023]
[null,null,null,null,null,null,null,null,null,null,null,null,null,null,null,null,null,274,42443.991528204817,39841.166969112172]
[null,null,null,null,null,null,null,null,null,null,null,null,null,null,null,null,null,275,44600.316073803733,39915.416152870021]
[null,null,null,null,null,null,null,null,null,null,null,null,null,null,null,null,null,276,42023.753988321594,41964.763333118419]
[null,null,null,null,null,null,null,null,null,null,null,null,null,null,null,null,null,277,45037.487921670858,43262.642611462303]
[null,null,null,null,null,null,null,null,null,null,null,null,null,null,null,null,null,278,44604.688653810976,41381.757836417804]
[null,null,null,null,null,null,null,null,null,null,null,null,null,null,null,null,null,279,45942.557603150657,42741.111454781108]
[null,null,null,null,null,null,null,null,null,null,null,null,null,null,null,null,null,280,44167.474820562231,42289.61822714789]
[null,null,null,null,null,null,null,null,null,null,null,null,null,null,null,null,null,281,42439.577319460215,35358.329853594572]
[null,null,null,null,null,null,null,null,null,null,null,null,null,null,null,null,null,282,43738.748053729403,40578.228558040755]
[null,null,null,null,null,null,null,null,null,null,null,null,null,null,null,null,null,283,43297.11575792174,38706.642309706032]
[null,null,null,null,null,null,null,null,null,null,null,null,null,null,null,null,null,284,41590.952186470953,44490.629884097223]
[null,null,null,null,null,null,null,null,null,null,null,null,null,null,null,null,null,285,39572.127603157234,37895.525514212815]
[null,null,null,null,null,null,null,null,null,null,null,null,null,null,null,null,null,286,45050.824316973478,41861.233657947072]
[null,null,null,null,null,null,null,null,null,null,null,null,null,null,null,null,null,287,44167.474820562231,45384.891544767583]
[null,null,null,null,null,null,null,null,null,null,null,null,null,null,null,null,null,288,41590.952186470946,41898.942706382819]
[null,null,null,null,null,null,null,null,null,null,null,null,null,null,null,null,null,289,42418.442817667965,44473.855209807807]
[null,null,null,null,null,null,null,null,null,null,null,null,null,null,null,null,null,290,43730.173089665572,47150.744446041703]
[null,null,null,null,null,null,null,null,null,null,null,null,null,null,null,null,null,291,42851.284070909467,34976.739957154787]
[null,null,null,null,null,null,null,null,null,null,null,null,null,null,null,null,null,292,41586.708644772501,43168.522569328932]
[null,null,null,null,null,null,null,null,null,null,null,null,null,null,null,null,null,293,41162.770031302403,43558.306773962329]
[null,null,null,null,null,null,null,null,null,null,null,null,null,null,null,null,null,294,40775.523671836789,40188.204807822709]
[null,null,null,null,null,null,null,null,null,null,null,null,null,null,null,null,null,295,46880.160819541481,47316.842831443653]
[null,null,null,null,null,null,null,null,null,null,null,null,null,null,null,null,null,296,45055.241064455528,43194.786295240025]
[null,null,null,null,null,null,null,null,null,null,null,null,null,null,null,null,null,297,45501.332560143208,39867.84157899722]
[null,null,null,null,null,null,null,null,null,null,null,null,null,null,null,null,null,298,40343.469485051915,43970.874047243604]
[null,null,null,null,null,null,null,null,null,null,null,null,null,null,null,null,null,299,41570.073961314607,48174.034113928559]
[null,null,null,null,null,null,null,null,null,null,null,null,null,null,null,null,null,300,44171.804965152478,43211.078529580511]
[null,null,null,null,null,null,null,null,null,null,null,null,null,null,null,null,null,301,45059.747039159447,35358.329853594565]
[null,null,null,null,null,null,null,null,null,null,null,null,null,null,null,null,null,302,42448.069056014501,49127.975383511293]
[null,null,null,null,null,null,null,null,null,null,null,null,null,null,null,null,null,303,41586.708644772516,37989.247344749201]
[null,null,null,null,null,null,null,null,null,null,null,null,null,null,null,null,null,304,44586.934640838284,39128.92476509168]
[null,null,null,null,null,null,null,null,null,null,null,null,null,null,null,null,null,305,45510.34450955104,39093.70873280309]
[null,null,null,null,null,null,null,null,null,null,null,null,null,null,null,null,null,306,46420.551399742064,41845.450366908168]
[null,null,null,null,null,null,null,null,null,null,null,null,null,null,null,null,null,307,39544.588901189498,39555.814245563597]
[null,null,null,null,null,null,null,null,null,null,null,null,null,null,null,null,null,308,45064.164661418174,42422.591298618368]
[null,null,null,null,null,null,null,null,null,null,null,null,null,null,null,null,null,309,44613.610929860835,45296.621531189252]
[null,null,null,null,null,null,null,null,null,null,null,null,null,null,null,null,null,310,47348.962427736908,36451.886447004712]
[null,null,null,null,null,null,null,null,null,null,null,null,null,null,null,null,null,311,45514.806308032363,44948.66782991981]
[null,null,null,null,null,null,null,null,null,null,null,null,null,null,null,null,null,312,44149.984483214401,44520.417420105339]
[null,null,null,null,null,null,null,null,null,null,null,null,null,null,null,null,null,313,41179.160580664306,46697.54797029819]
[null,null,null,null,null,null,null,null,null,null,null,null,null,null,null,null,null,314,44604.776551458875,48185.168683050004]
[null,null,null,null,null,null,null,null,null,null,null,null,null,null,null,null,null,315,46397.434411102644,41549.270626849931]
[null,null,null,null,null,null,null,null,null,null,null,null,null,null,null,null,null,316,45501.332560143201,42317.932133446644]
[null,null,null,null,null,null,null,null,null,null,null,null,null,null,null,null,null,317,42410.043126020893,44918.593761905875]
[null,null,null,null,null,null,null,null,null,null,null,null,null,null,null,null,null,318,44609.149568767847,42343.678360200007]
[null,null,null,null,null,null,null,null,null,null,null,null,null,null,null,null,null,319,43292.871358768905,40239.578638803301]
[null,null,null,null,null,null,null,null,null,null,null,null,null,null,null,null,null,320,45068.582716777149,38671.806331627304]
[null,null,null,null,null,null,null,null,null,null,null,null,null,null,null,null,null,321,43712.681020429693,47108.30877604027]
[null,null,null,null,null,null,null,null,null,null,null,null,null,null,null,null,null,322,40779.604079592005,40693.92832397388]
[null,null,null,null,null,null,null,null,null,null,null,null,null,null,null,null,null,323,42859.771154306356,47256.433464139445]
[null,null,null,null,null,null,null,null,null,null,null,null,null,null,null,null,null,324,42027.873964202816,41496.224713379721]
[null,null,null,null,null,null,null,null,null,null,null,null,null,null,null,null,null,325,42418.442817667958,38671.806331627304]
[null,null,null,null,null,null,null,null,null,null,null,null,null,null,null,null,null,326,47817.764035932312,41549.270626849917]
[null,null,null,null,null,null,null,null,null,null,null,null,null,null,null,null,null,327,39959.934453668167,47604.296474575836]
[null,null,null,null,null,null,null,null,null,null,null,null,null,null,null,null,null,328,44595.76548548889,37545.443040414852]
[null,null,null,null,null,null,null,null,null,null,null,null,null,null,null,null,null,329,42872.634230883283,37579.264378355372]
[null,null,null,null,null,null,null,null,null,null,null,null,null,null,null,null,null,330,44180.55358962567,50567.958193007413]
[null,null,null,null,null,null,null,null,null,null,null,null,null,null,null,null,null,331,42439.830760483201,42251.557570743469]
[null,null,null,null,null,null,null,null,null,null,null,null,null,null,null,null,null,332,43284.210619507205,42333.893635430024]
[null,null,null,null,null,null,null,null,null,null,null,null,null,null,null,null,null,333,44141.065294429915,43993.889841701959]
[null,null,null,null,null,null,null,null,null,null,null,null,null,null,null,null,null,334,43284.125324150984,43682.503568087595]
[null,null,null,null,null,null,null,null,null,null,null,null,null,null,null,null,null,335,42868.431443486865,44050.128598116062]
[null,null,null,null,null,null,null,null,null,null,null,null,null,null,null,null,null,336,44171.804965152478,38717.953668283924]
[null,null,null,null,null,null,null,null,null,null,null,null,null,null,null,null,null,337,44600.31607380374,41112.878637456124]
[null,null,null,null,null,null,null,null,null,null,null,null,null,null,null,null,null,338,45055.329849958463,41496.224713379728]
[null,null,null,null,null,null,null,null,null,null,null,null,null,null,null,null,null,339,41179.241727993605,52653.234819523183]
[null,null,null,null,null,null,null,null,null,null,null,null,null,null,null,null,null,340,42007.029786542116,41883.145197585982]
[null,null,null,null,null,null,null,null,null,null,null,null,null,null,null,null,null,341,43297.115757921732,39140.359528542453]
[null,null,null,null,null,null,null,null,null,null,null,null,null,null,null,null,null,342,43292.698135662984,48579.459153501222]
[null,null,null,null,null,null,null,null,null,null,null,null,null,null,null,null,null,343,45960.941979942647,41112.878637456117]
[null,null,null,null,null,null,null,null,null,null,null,null,null,null,null,null,null,344,41582.383594126964,44417.075482039938]
[null,null,null,null,null,null,null,null,null,null,null,null,null,null,null,null,null,345,46880.160819541488,37920.897470819]
[null,null,null,null,null,null,null,null,null,null,null,null,null,null,null,null,null,346,42011.062814617129,33957.999958402703]
[null,null,null,null,null,null,null,null,null,null,null,null,null,null,null,null,null,347,41578.473652961657,43643.189314876327]
[null,null,null,null,null,null,null,null,null,null,null,null,null,null,null,null,null,348,44613.610929860835,45367.779699524937]
[null,null,null,null,null,null,null,null,null,null,null,null,null,null,null,null,null,349,44604.776551458875,38240.033736662524]
[null,null,null,null,null,null,null,null,null,null,null,null,null,null,null,null,null,350,42855.485177190938,43639.48333001924]
[null,null,null,null,null,null,null,null,null,null,null,null,null,null,null,null,null,351,44595.765485488882,38657.225577048499]
[null,null,null,null,null,null,null,null,null,null,null,null,null,null,null,null,null,352,41191.51927231517,42795.748745655437]
[null,null,null,null,null,null,null,null,null,null,null,null,null,null,null,null,null,353,43738.834244961596,45395.381453309994]
[null,null,null,null,null,null,null,null,null,null,null,null,null,null,null,null,null,354,42023.671176806391,40678.585151827989]
[null,null,null,null,null,null,null,null,null,null,null,null,null,null,null,null,null,355,41998.458235314807,38657.225577048492]
[null,null,null,null,null,null,null,null,null,null,null,null,null,null,null,null,null,356,45059.747039159447,35688.019173579058]
[null,null,null,null,null,null,null,null,null,null,null,null,null,null,null,null,null,357,44167.474820562216,40251.337971978319]
[null,null,null,null,null,null,null,null,null,null,null,null,null,null,null,null,null,358,43271.311924742578,37875.700133250488]
[null,null,null,null,null,null,null,null,null,null,null,null,null,null,null,null,null,359,43729.911943011481,45283.388230356883]
[null,null,null,null,null,null,null,null,null,null,null,null,null,null,null,null,null,360,43275.639488691464,39915.416152870006]
[null,null,null,null,null,null,null,null,null,null,null,null,null,null,null,null,null,361,42019.383484614074,41496.224713379721]
[null,null,null,null,null,null,null,null,null,null,null,null,null,null,null,null,null,362,47817.764035932312,36044.899365314857]
[null,null,null,null,null,null,null,null,null,null,null,null,null,null,null,null,null,363,43725.625117019619,38997.262127487535]
[null,null,null,null,null,null,null,null,null,null,null,null,null,null,null,null,null,364,45938.053872378849,44033.520009710701]
[null,null,null,null,null,null,null,null,null,null,null,null,null,null,null,null,null,365,38009.024318713477,35390.181016509421]
[null,null,null,null,null,null,null,null,null,null,null,null,null,null,null,null,null,366,43292.698135662991,39484.645820131118]
[null,null,null,null,null,null,null,null,null,null,null,null,null,null,null,null,null,367,40783.519264478367,41533.604957841773]
[null,null,null,null,null,null,null,null,null,null,null,null,null,null,null,null,null,368,43712.681020429707,38274.480769354952]
[null,null,null,null,null,null,null,null,null,null,null,null,null,null,null,null,null,369,44149.807830634003,43666.033588421997]
[null,null,null,null,null,null,null,null,null,null,null,null,null,null,null,null,null,370,44609.14956876784,41898.942706382826]
[null,null,null,null,null,null,null,null,null,null,null,null,null,null,null,null,null,371,44617.984813285322,39484.645820131125]
[null,null,null,null,null,null,null,null,null,null,null,null,null,null,null,null,null,372,44600.316073803733,40678.585151827981]
[null,null,null,null,null,null,null,null,null,null,null,null,null,null,null,null,null,373,44609.237475206399,42712.514409419375]
[null,null,null,null,null,null,null,null,null,null,null,null,null,null,null,null,null,374,45965.447954646559,43168.522569328932]
[null,null,null,null,null,null,null,null,null,null,null,null,null,null,null,null,null,375,46420.551399742057,42356.052580769348]
[null,null,null,null,null,null,null,null,null,null,null,null,null,null,null,null,null,376,44167.387784655963,41496.224713379721]
[null,null,null,null,null,null,null,null,null,null,null,null,null,null,null,null,null,377,44600.316073803733,43117.07066768549]
[null,null,null,null,null,null,null,null,null,null,null,null,null,null,null,null,null,378,44162.881368189817,45910.75026358918]
[null,null,null,null,null,null,null,null,null,null,null,null,null,null,null,null,null,379,45956.436446957639,39407.851316408662]
[null,null,null,null,null,null,null,null,null,null,null,null,null,null,null,null,null,380,43288.368865849428,38274.480769354952]
[null,null,null,null,null,null,null,null,null,null,null,null,null,null,null,null,null,381,45951.840803312945,41057.881773929999]
[null,null,null,null,null,null,null,null,null,null,null,null,null,null,null,null,null,382,44158.728785944288,40984.010843621152]
[null,null,null,null,null,null,null,null,null,null,null,null,null,null,null,null,null,383,45046.31923454177,37989.247344749201]
[null,null,null,null,null,null,null,null,null,null,null,null,null,null,null,null,null,384,41998.626279897209,40251.337971978326]
[null,null,null,null,null,null,null,null,null,null,null,null,null,null,null,null,null,385,42864.144600342508,42333.893635430039]
[null,null,null,null,null,null,null,null,null,null,null,null,null,null,null,null,null,386,45514.806308032363,45313.706536953017]
[null,null,null,null,null,null,null,null,null,null,null,null,null,null,null,null,null,387,43721.427492349358,37545.443040414852]
[null,null,null,null,null,null,null,null,null,null,null,null,null,null,null,null,null,388,44145.479842414141,37906.599837688322]
[null,null,null,null,null,null,null,null,null,null,null,null,null,null,null,null,null,389,42422.771230200371,47299.002566449242]
[null,null,null,null,null,null,null,null,null,null,null,null,null,null,null,null,null,390,44617.984813285329,36419.079749202407]
[null,null,null,null,null,null,null,null,null,null,null,null,null,null,null,null,null,391,44158.552098376247,43981.037130851102]
[null,null,null,null,null,null,null,null,null,null,null,null,null,null,null,null,null,392,43301.445902511987,43168.522569328918]
[null,null,null,null,null,null,null,null,null,null,null,null,null,null,null,null,null,393,44600.316073803733,41845.450366908175]
[null,null,null,null,null,null,null,null,null,null,null,null,null,null,null,null,null,394,42868.259918646683,39078.968904833331]
[null,null,null,null,null,null,null,null,null,null,null,null,null,null,null,null,null,395,43712.855923974654,48192.204423825373]
[null,null,null,null,null,null,null,null,null,null,null,null,null,null,null,null,null,396,42859.942645181218,41936.685723534007]
[null,null,null,null,null,null,null,null,null,null,null,null,null,null,null,null,null,397,41603.349984766421,40678.585151827981]
[null,null,null,null,null,null,null,null,null,null,null,null,null,null,null,null,null,398,43284.125324150977,39903.754958459831]
[null,null,null,null,null,null,null,null,null,null,null,null,null,null,null,null,null,399,41590.785773071017,37590.246279887295]
[null,null,null,null,null,null,null,null,null,null,null,null,null,null,null,null,null,400,45956.436446957632,43223.706233111981]
[null,null,null,null,null,null,null,null,null,null,null,null,null,null,null,null,null,401,44140.888677536903,40251.337971978326]
[null,null,null,null,null,null,null,null,null,null,null,null,null,null,null,null,null,402,42443.738062334683,46193.584333787061]
[null,null,null,null,null,null,null,null,null,null,null,null,null,null,null,null,null,403,45041.723140343776,48174.034113928545]
[null,null,null,null,null,null,null,null,null,null,null,null,null,null,null,null,null,404,43275.381056408733,41926.995046118609]
[null,null,null,null,null,null,null,null,null,null,null,null,null,null,null,null,null,405,45510.344509551032,38357.930364760003]
[null,null,null,null,null,null,null,null,null,null,null,null,null,null,null,null,null,406,41599.189649767948,47150.74444604171]
[null,null,null,null,null,null,null,null,null,null,null,null,null,null,null,null,null,407,45064.164661418181,41048.394169443243]
[null,null,null,null,null,null,null,null,null,null,null,null,null,null,null,null,null,408,43297.11575792174,38671.806331627289]
[null,null,null,null,null,null,null,null,null,null,null,null,null,null,null,null,null,409,45505.883148458051,39508.668275702803]
[null,null,null,null,null,null,null,null,null,null,null,null,null,null,null,null,null,410,40351.459873145599,39867.841578997213]
[null,null,null,null,null,null,null,null,null,null,null,null,null,null,null,null,null,411,43279.882198445252,40678.585151827981]
[null,null,null,null,null,null,null,null,null,null,null,null,null,null,null,null,null,412,44162.88136818981,42356.052580769334]
[null,null,null,null,null,null,null,null,null,null,null,null,null,null,null,null,null,413,42452.397943639196,43223.706233111974]
[null,null,null,null,null,null,null,null,null,null,null,null,null,null,null,null,null,414,46406.809524137818,43262.642611462288]
[null,null,null,null,null,null,null,null,null,null,null,null,null,null,null,null,null,415,39976.003599840005,41468.460591669311]
[null,null,null,null,null,null,null,null,null,null,null,null,null,null,null,null,null,416,43734.460361537116,39520.214012742596]
[null,null,null,null,null,null,null,null,null,null,null,null,null,null,null,null,null,417,44595.94392243879,42657.983383741339]
[null,null,null,null,null,null,null,null,null,null,null,null,null,null,null,null,null,418,41195.474004523618,41458.878111137681]
[null,null,null,null,null,null,null,null,null,null,null,null,null,null,null,null,null,419,45492.140371747199,36451.886447004712]
[null,null,null,null,null,null,null,null,null,null,null,null,null,null,null,null,null,420,42842.711671188234,41598.851661751985]
[null,null,null,null,null,null,null,null,null,null,null,null,null,null,null,null,null,421,45050.824316973471,37895.525514212815]
[null,null,null,null,null,null,null,null,null,null,null,null,null,null,null,null,null,422,41195.638836198792,49567.360246723292]
[null,null,null,null,null,null,null,null,null,null,null,null,null,null,null,null,null,423,45960.941979942632,43223.706233111967]
[null,null,null,null,null,null,null,null,null,null,null,null,null,null,null,null,null,424,44167.474820562231,45497.135802013072]
[null,null,null,null,null,null,null,null,null,null,null,null,null,null,null,null,null,425,44145.479842414141,37184.569364589515]
[null,null,null,null,null,null,null,null,null,null,null,null,null,null,null,null,null,426,41590.785773071017,36405.348358967996]
[null,null,null,null,null,null,null,null,null,null,null,null,null,null,null,null,null,427,44595.76548548889,38228.862001262161]
[null,null,null,null,null,null,null,null,null,null,null,null,null,null,null,null,null,428,45050.824316973463,44503.631514772082]
[null,null,null,null,null,null,null,null,null,null,null,null,null,null,null,null,null,429,43296.942517833151,38671.806331627296]
[null,null,null,null,null,null,null,null,null,null,null,null,null,null,null,null,null,430,45028.389439262421,42795.748745655423]
[null,null,null,null,null,null,null,null,null,null,null,null,null,null,null,null,null,431,44145.479842414163,41431.138977136798]
[null,null,null,null,null,null,null,null,null,null,null,null,null,null,null,null,null,432,44591.30590894034,33957.999958402703]
[null,null,null,null,null,null,null,null,null,null,null,null,null,null,null,null,null,433,44595.765485488882,37531.286968008251]
[null,null,null,null,null,null,null,null,null,null,null,null,null,null,null,null,null,434,44180.55358962567,41533.604957841788]
[null,null,null,null,null,null,null,null,null,null,null,null,null,null,null,null,null,435,42418.442817667958,42767.115143802002]
[null,null,null,null,null,null,null,null,null,null,null,null,null,null,null,null,null,436,40347.424727158286,40742.488672930507]
[null,null,null,null,null,null,null,null,null,null,null,null,null,null,null,null,null,437,45505.883148458059,37486.554001237644]
[null,null,null,null,null,null,null,null,null,null,null,null,null,null,null,null,null,438,43708.395883578371,40287.596809106522]
[null,null,null,null,null,null,null,null,null,null,null,null,null,null,null,null,null,439,40779.521272196776,47224.815325878386]
[null,null,null,null,null,null,null,null,null,null,null,null,null,null,null,null,null,440,43721.338711263612,41496.224713379721]
[null,null,null,null,null,null,null,null,null,null,null,null,null,null,null,null,null,441,45947.336162512693,42251.557570743462]
[null,null,null,null,null,null,null,null,null,null,null,null,null,null,null,null,null,442,42864.144600342515,39093.70873280309]
[null,null,null,null,null,null,null,null,null,null,null,null,null,null,null,null,null,443,40759.296228526022,42779.613106577031]
[null,null,null,null,null,null,null,null,null,null,null,null,null,null,null,null,null,444,44604.510181871716,35688.019173579065]
[null,null,null,null,null,null,null,null,null,null,null,null,null,null,null,null,null,445,42872.718715358409,39128.924765091673]
[null,null,null,null,null,null,null,null,null,null,null,null,null,null,null,null,null,446,47339.67968258883,43993.889841701974]
[null,null,null,null,null,null,null,null,null,null,null,null,null,null,null,null,null,447,43275.381056408725,41936.685723534007]
[null,null,null,null,null,null,null,null,null,null,null,null,null,null,null,null,null,448,42426.844172949735,42728.62474017257]
[null,null,null,null,null,null,null,null,null,null,null,null,null,null,null,null,null,449,42019.551612922769,44935.536182938202]
[null,null,null,null,null,null,null,null,null,null,null,null,null,null,null,null,null,450,44158.728785944288,47242.627608886745]
[null,null,null,null,null,null,null,null,null,null,null,null,null,null,null,null,null,451,46870.877619379193,41149.913559659821]
[null,null,null,null,null,null,null,null,null,null,null,null,null,null,null,null,null,452,39956.017197080226,41100.86760721363]
[null,null,null,null,null,null,null,null,null,null,null,null,null,null,null,null,null,453,47817.76403593232,48641.559785654747]
[null,null,null,null,null,null,null,null,null,null,null,null,null,null,null,null,null,454,43292.871358768913,39032.391279639203]
[null,null,null,null,null,null,null,null,null,null,null,null,null,null,null,null,null,455,44176.222587411212,41898.942706382826]
[null,null,null,null,null,null,null,null,null,null,null,null,null,null,null,null,null,456,45492.322395279807,42808.255076114117]
[null,null,null,null,null,null,null,null,null,null,null,null,null,null,null,null,null,457,44154.223252959295,41085.371003346263]
[null,null,null,null,null,null,null,null,null,null,null,null,null,null,null,null,null,458,40775.443320069564,42728.62474017257]
[null,null,null,null,null,null,null,null,null,null,null,null,null,null,null,null,null,459,40763.209463687905,39915.416152870013]
[null,null,null,null,null,null,null,null,null,null,null,null,null,null,null,null,null,460,43716.966577392479,45354.525610002027]
[null,null,null,null,null,null,null,null,null,null,null,null,null,null,null,null,null,461,45505.883148458044,40224.406773919232]
[null,null,null,null,null,null,null,null,null,null,null,null,null,null,null,null,null,462,42439.577319460222,42289.618227147897]
[null,null,null,null,null,null,null,null,null,null,null,null,null,null,null,null,null,463,42868.346967460187,39508.668275702803]
[null,null,null,null,null,null,null,null,null,null,null,null,null,null,null,null,null,464,45050.824316973471,41328.925786364518]
[null,null,null,null,null,null,null,null,null,null,null,null,null,null,null,null,null,465,44163.058073080174,40239.578638803301]
[null,null,null,null,null,null,null,null,null,null,null,null,null,null,null,null,null,466,46411.359211346069,41964.763333118419]
[null,null,null,null,null,null,null,null,null,null,null,null,null,null,null,null,null,467,42019.551612922769,44560.521889806165]
[null,null,null,null,null,null,null,null,null,null,null,null,null,null,null,null,null,468,45492.322395279807,41861.233657947079]
[null,null,null,null,null,null,null,null,null,null,null,null,null,null,null,null,null,469,43279.882198445244,45862.733957081575]
[null,null,null,null,null,null,null,null,null,null,null,null,null,null,null,null,null,470,39576.243563841592,42757.232571784327]
[null,null,null,null,null,null,null,null,null,null,null,null,null,null,null,null,null,471,43275.554210225404,40302.792508044426]
[null,null,null,null,null,null,null,null,null,null,null,null,null,null,null,null,null,472,43297.115757921732,42333.893635430031]
[null,null,null,null,null,null,null,null,null,null,null,null,null,null,null,null,null,473,44154.136243166417,47193.218342550004]
[null,null,null,null,null,null,null,null,null,null,null,null,null,null,null,null,null,474,45046.319234541763,38717.953668283924]
[null,null,null,null,null,null,null,null,null,null,null,null,null,null,null,null,null,475,42842.627245844655,42607.139985942798]
[null,null,null,null,null,null,null,null,null,null,null,null,null,null,null,null,null,476,45055.241064455528,44965.621594306387]
[null,null,null,null,null,null,null,null,null,null,null,null,null,null,null,null,null,477,45050.824316973471,41484.101689487943]
[null,null,null,null,null,null,null,null,null,null,null,null,null,null,null,null,null,478,39556.298752115981,42372.028461044982]
[null,null,null,null,null,null,null,null,null,null,null,null,null,null,null,null,null,479,42027.705802594799,38645.931960038819]
[null,null,null,null,null,null,null,null,null,null,null,null,null,null,null,null,null,480,43712.681020429714,42305.569049675818]
[null,null,null,null,null,null,null,null,null,null,null,null,null,null,null,null,null,481,43292.698135662999,41898.942706382826]
[null,null,null,null,null,null,null,null,null,null,null,null,null,null,null,null,null,482,43721.338711263619,39805.309918839979]
[null,null,null,null,null,null,null,null,null,null,null,null,null,null,null,null,null,483,44163.058073080167,41549.270626849924]
[null,null,null,null,null,null,null,null,null,null,null,null,null,null,null,null,null,484,44595.765485488882,39508.668275702796]
[null,null,null,null,null,null,null,null,null,null,null,null,null,null,null,null,null,485,43716.966577392493,46757.242896909302]
[null,null,null,null,null,null,null,null,null,null,null,null,null,null,null,null,null,486,41994.258389491282,40653.851351698111]
[null,null,null,null,null,null,null,null,null,null,null,null,null,null,null,null,null,487,46420.551399742064,44807.776803773442]
[null,null,null,null,null,null,null,null,null,null,null,null,null,null,null,null,null,488,42435.503154339087,36462.538891490673]
[null,null,null,null,null,null,null,null,null,null,null,null,null,null,null,null,null,489,42435.586777407145,41496.224713379728]
[null,null,null,null,null,null,null,null,null,null,null,null,null,null,null,null,null,490,42019.383484614082,43626.734158192419]
[null,null,null,null,null,null,null,null,null,null,null,null,null,null,null,null,null,491,45501.332560143201,46788.547984296478]
[null,null,null,null,null,null,null,null,null,null,null,null,null,null,null,null,null,492,44622.359125521929,52166.819221666628]
[null,null,null,null,null,null,null,null,null,null,null,null,null,null,null,null,null,493,44158.728785944288,45412.503709398006]
[null,null,null,null,null,null,null,null,null,null,null,null,null,null,null,null,null,494,39947.945274414153,49649.443488470693]
[null,null,null,null,null,null,null,null,null,null,null,null,null,null,null,null,null,495,42015.18154626563,41484.101689487929]
[null,null,null,null,null,null,null,null,null,null,null,null,null,null,null,null,null,496,44158.552098376247,48616.112521359908]
[null,null,null,null,null,null,null,null,null,null,null,null,null,null,null,null,null,497,43703.850175779102,36816.405311474744]
[null,null,null,null,null,null,null,null,null,null,null,null,null,null,null,null,null,498,45938.053872378849,45483.8439214108]
[null,null,null,null,null,null,null,null,null,null,null,null,null,null,null,null,null,499,42864.144600342515,39852.809873245882]
[null,null,null,null,null,null,null,null,null,null,null,null,null,null,null,null,null,500,46420.551399742064,36849.569924406722]
[null,null,null,null,null,null,null,null,null,null,null,null,null,null,null,null,null,501,44617.984813285322,47211.018707789997]
[null,null,null,null,null,null,null,null,null,null,null,null,null,null,null,null,null,502,43275.381056408718,39790.301789923462]
[null,null,null,null,null,null,null,null,null,null,null,null,null,null,null,null,null,503,45514.806308032355,38323.408227431726]
[null,null,null,null,null,null,null,null,null,null,null,null,null,null,null,null,null,504,40759.133142741543,36816.405311474758]
[null,null,null,null,null,null,null,null,null,null,null,null,null,null,null,null,null,505,46420.551399742049,38334.607592360313]
[null,null,null,null,null,null,null,null,null,null,null,null,null,null,null,null,null,506,44167.474820562238,41898.942706382819]
[null,null,null,null,null,null,null,null,null,null,null,null,null,null,null,null,null,507,43721.252554507912,38645.931960038819]
[null,null,null,null,null,null,null,null,null,null,null,null,null,null,null,null,null,508,45965.447954646552,42317.932133446644]
[null,null,null,null,null,null,null,null,null,null,null,null,null,null,null,null,null,509,42015.264341051232,46307.828620521534]
[null,null,null,null,null,null,null,null,null,null,null,null,null,null,null,null,null,510,44600.137619360008,48141.802031235246]
[null,null,null,null,null,null,null,null,null,null,null,null,null,null,null,null,null,511,45487.680795198663,39852.809873245867]
[null,null,null,null,null,null,null,null,null,null,null,null,null,null,null,null,null,512,41191.435628481595,42317.932133446644]
[null,null,null,null,null,null,null,null,null,null,null,null,null,null,null,null,null,513,43288.368865849421,39484.645820131125]
[null,null,null,null,null,null,null,null,null,null,null,null,null,null,null,null,null,514,43271.138787900119,44050.128598116062]
[null,null,null,null,null,null,null,null,null,null,null,null,null,null,null,null,null,515,43712.6810204297,38323.408227431719]
[null,null,null,null,null,null,null,null,null,null,null,null,null,null,null,null,null,516,44167.474820562231,44063.001499774335]
[null,null,null,null,null,null,null,null,null,null,null,null,null,null,null,null,null,517,44158.552098376247,42645.520954802123]
[null,null,null,null,null,null,null,null,null,null,null,null,null,null,null,null,null,518,43301.445902511987,41496.224713379721]
[null,null,null,null,null,null,null,null,null,null,null,null,null,null,null,null,null,519,41590.785773071017,39484.645820131118]
[null,null,null,null,null,null,null,null,null,null,null,null,null,null,null,null,null,520,43738.834244961603,44965.621594306394]
[null,null,null,null,null,null,null,null,null,null,null,null,null,null,null,null,null,521,44149.807830633988,44433.828740118988]
[null,null,null,null,null,null,null,null,null,null,null,null,null,null,null,null,null,522,41994.341143045887,39093.708732803098]
[null,null,null,null,null,null,null,null,null,null,null,null,null,null,null,null,null,523,42006.944486726272,38692.048420627063]
[null,null,null,null,null,null,null,null,null,null,null,null,null,null,null,null,null,524,45510.34450955104,37579.264378355372]
[null,null,null,null,null,null,null,null,null,null,null,null,null,null,null,null,null,525,43721.252554507919,37531.286968008251]
[null,null,null,null,null,null,null,null,null,null,null,null,null,null,null,null,null,526,45514.806308032363,39520.214012742596]
[null,null,null,null,null,null,null,null,null,null,null,null,null,null,null,null,null,527,42868.431443486857,42317.932133446659]
[null,null,null,null,null,null,null,null,null,null,null,null,null,null,null,null,null,528,45041.723140343776,36816.405311474758]
[null,null,null,null,null,null,null,null,null,null,null,null,null,null,null,null,null,529,42002.575731220226,43143.303090263464]
[null,null,null,null,null,null,null,null,null,null,null,null,null,null,null,null,null,530,44591.39378021632,48597.782381847661]
[null,null,null,null,null,null,null,null,null,null,null,null,null,null,null,null,null,531,43725.886238073603,40251.337971978333]
[null,null,null,null,null,null,null,null,null,null,null,null,null,null,null,null,null,532,42838.427400021101,42767.115143802002]
[null,null,null,null,null,null,null,null,null,null,null,null,null,null,null,null,null,533,45041.903361663171,39093.708732803083]
[null,null,null,null,null,null,null,null,null,null,null,null,null,null,null,null,null,534,44600.316073803733,48641.559785654739]
[null,null,null,null,null,null,null,null,null,null,null,null,null,null,null,null,null,535,40750.979277830222,46283.602268426337]
[null,null,null,null,null,null,null,null,null,null,null,null,null,null,null,null,null,536,42015.264341051232,45384.891544767583]
[null,null,null,null,null,null,null,null,null,null,null,null,null,null,null,null,null,537,45055.241064455528,37531.286968008251]
[null,null,null,null,null,null,null,null,null,null,null,null,null,null,null,null,null,538,43288.368865849421,43993.889841701974]
[null,null,null,null,null,null,null,null,null,null,null,null,null,null,null,null,null,539,41590.952186470953,43626.734158192419]
[null,null,null,null,null,null,null,null,null,null,null,null,null,null,null,null,null,540,43275.554210225404,40626.650841658411]
[null,null,null,null,null,null,null,null,null,null,null,null,null,null,null,null,null,541,43725.8000723566,42317.932133446659]
[null,null,null,null,null,null,null,null,null,null,null,null,null,null,null,null,null,542,41985.857437764462,37909.81897032378]
[null,null,null,null,null,null,null,null,null,null,null,null,null,null,null,null,null,543,43288.368865849436,50601.814645016631]
[null,null,null,null,null,null,null,null,null,null,null,null,null,null,null,null,null,544,44158.552098376254,43678.794244839584]
[null,null,null,null,null,null,null,null,null,null,null,null,null,null,null,null,null,545,43721.338711263619,37579.264378355365]
[null,null,null,null,null,null,null,null,null,null,null,null,null,null,null,null,null,546,44171.804965152478,46211.007656496637]
[null,null,null,null,null,null,null,null,null,null,null,null,null,null,null,null,null,547,43275.381056408733,41100.86760721363]
[null,null,null,null,null,null,null,null,null,null,null,null,null,null,null,null,null,548,45951.840803312931,42728.624740172578]
[null,null,null,null,null,null,null,null,null,null,null,null,null,null,null,null,null,549,42456.559943437591,37159.690067334901]
[null,null,null,null,null,null,null,null,null,null,null,null,null,null,null,null,null,550,43305.69114230635,39508.668275702803]
[null,null,null,null,null,null,null,null,null,null,null,null,null,null,null,null,null,551,42019.383484614074,37955.057022138935]
[null,null,null,null,null,null,null,null,null,null,null,null,null,null,null,null,null,552,44162.881368189817,43223.706233111974]
[null,null,null,null,null,null,null,null,null,null,null,null,null,null,null,null,null,553,42023.585843198409,44132.221727952689]
[null,null,null,null,null,null,null,null,null,null,null,null,null,null,null,null,null,554,45492.412042091775,42289.618227147905]
[null,null,null,null,null,null,null,null,null,null,null,null,null,null,null,null,null,555,41590.95218647096,41898.942706382819]
[null,null,null,null,null,null,null,null,null,null,null,null,null,null,null,null,null,556,43721.338711263626,44959.056913127701]
[null,null,null,null,null,null,null,null,null,null,null,null,null,null,null,null,null,557,45046.319234541777,43502.695925993627]
[null,null,null,null,null,null,null,null,null,null,null,null,null,null,null,null,null,558,45956.436446957639,37126.246346274311]
[null,null,null,null,null,null,null,null,null,null,null,null,null,null,null,null,null,559,44609.149568767847,38357.930364759995]
[null,null,null,null,null,null,null,null,null,null,null,null,null,null,null,null,null,560,42863.973092654822,34617.378598371681]
[null,null,null,null,null,null,null,null,null,null,null,null,null,null,null,null,null,561,44149.807830634003,36090.976680202686]
[null,null,null,null,null,null,null,null,null,null,null,null,null,null,null,null,null,562,42031.994344003222,40678.585151827981]
[null,null,null,null,null,null,null,null,null,null,null,null,null,null,null,null,null,563,45505.793475100087,43168.522569328918]
[null,null,null,null,null,null,null,null,null,null,null,null,null,null,null,null,null,564,46420.551399742049,39816.942344359944]
[null,null,null,null,null,null,null,null,null,null,null,null,null,null,null,null,null,565,42431.25705729927,39915.416152870013]
[null,null,null,null,null,null,null,null,null,null,null,null,null,null,null,null,null,566,44604.776551458883,36816.405311474751]
[null,null,null,null,null,null,null,null,null,null,null,null,null,null,null,null,null,567,45501.332560143208,49663.952694771695]
[null,null,null,null,null,null,null,null,null,null,null,null,null,null,null,null,null,568,45951.840803312931,37173.705980608764]
[null,null,null,null,null,null,null,null,null,null,null,null,null,null,null,null,null,569,43305.69114230635,43139.639553513574]
[null,null,null,null,null,null,null,null,null,null,null,null,null,null,null,null,null,570,43738.74805372941,37955.057022138921]
[null,null,null,null,null,null,null,null,null,null,null,null,null,null,null,null,null,571,42439.577319460222,43655.943295443089]
[null,null,null,null,null,null,null,null,null,null,null,null,null,null,null,null,null,572,44600.316073803733,40239.578638803301]
[null,null,null,null,null,null,null,null,null,null,null,null,null,null,null,null,null,573,44595.765485488897,35008.247379796609]
[null,null,null,null,null,null,null,null,null,null,null,null,null,null,null,null,null,574,42834.227965906808,47654.136122005955]
[null,null,null,null,null,null,null,null,null,null,null,null,null,null,null,null,null,575,42435.416984461743,41048.394169443243]
[null,null,null,null,null,null,null,null,null,null,null,null,null,null,null,null,null,576,44600.137619360008,41861.233657947072]
[null,null,null,null,null,null,null,null,null,null,null,null,null,null,null,null,null,577,44600.137619360008,45337.425213881746]
[null,null,null,null,null,null,null,null,null,null,null,null,null,null,null,null,null,578,45501.332560143215,37531.286968008251]
[null,null,null,null,null,null,null,null,null,null,null,null,null,null,null,null,null,579,41166.805596991748,44079.621208025077]
[null,null,null,null,null,null,null,null,null,null,null,null,null,null,null,null,null,580,43729.911943011481,39128.924765091673]
[null,null,null,null,null,null,null,null,null,null,null,null,null,null,null,null,null,581,47813.076479414733,46235.196010196232]
[null,null,null,null,null,null,null,null,null,null,null,null,null,null,null,null,null,582,40775.360521123199,44433.828740118974]
[null,null,null,null,null,null,null,null,null,null,null,null,null,null,null,null,null,583,45510.344509551025,40578.228558040755]
[null,null,null,null,null,null,null,null,null,null,null,null,null,null,null,null,null,584,43712.6810204297,40590.086855900932]
[null,null,null,null,null,null,null,null,null,null,null,null,null,null,null,null,null,585,42418.442817667943,45354.525610002027]
[null,null,null,null,null,null,null,null,null,null,null,null,null,null,null,null,null,586,42023.503032014538,41149.913559659813]
[null,null,null,null,null,null,null,null,null,null,null,null,null,null,null,null,null,587,41586.708644772501,43139.639553513574]
[null,null,null,null,null,null,null,null,null,null,null,null,null,null,null,null,null,588,43738.834244961596,38254.457134583012]
[null,null,null,null,null,null,null,null,null,null,null,null,null,null,null,null,null,589,44176.222587411226,39939.700689079997]
[null,null,null,null,null,null,null,null,null,null,null,null,null,null,null,null,null,590,43730.086915500957,43558.306773962329]
[null,null,null,null,null,null,null,null,null,null,null,null,null,null,null,null,null,591,43305.69114230635,43139.639553513574]
[null,null,null,null,null,null,null,null,null,null,null,null,null,null,null,null,null,592,43743.12236596601,43207.409237642809]
[null,null,null,null,null,null,null,null,null,null,null,null,null,null,null,null,null,593,43738.834244961596,39469.75859388167]
[null,null,null,null,null,null,null,null,null,null,null,null,null,null,null,null,null,594,40763.209463687905,45849.335267843097]
[null,null,null,null,null,null,null,null,null,null,null,null,null,null,null,null,null,595,41591.118600536734,41063.87682636713]
[null,null,null,null,null,null,null,null,null,null,null,null,null,null,null,null,null,596,42851.284070909467,38334.60759236032]
[null,null,null,null,null,null,null,null,null,null,null,null,null,null,null,null,null,597,44586.934640838284,41849.003997555563]
[null,null,null,null,null,null,null,null,null,null,null,null,null,null,null,null,null,598,41174.959054230203,43155.910987574309]
[null,null,null,null,null,null,null,null,null,null,null,null,null,null,null,null,null,599,40783.682447836807,40251.337971978333]
[null,null,null,null,null,null,null,null,null,null,null,null,null,null,null,null,null,600,43725.8000723566,47224.815325878386]
[null,null,null,null,null,null,null,null,null,null,null,null,null,null,null,null,null,601,45960.941979942647,42305.569049675811]
[null,null,null,null,null,null,null,null,null,null,null,null,null,null,null,null,null,602,43730.08691550095,40339.097695970806]
[null,null,null,null,null,null,null,null,null,null,null,null,null,null,null,null,null,603,44600.403962835073,44294.551470534578]
[null,null,null,null,null,null,null,null,null,null,null,null,null,null,null,null,null,604,41178.9958149218,39067.552076508058]
[null,null,null,null,null,null,null,null,null,null,null,null,null,null,null,null,null,605,46420.551399742064,41112.878637456124]
[null,null,null,null,null,null,null,null,null,null,null,null,null,null,null,null,null,606,45046.408002463424,45412.503709398006]
[null,null,null,null,null,null,null,null,null,null,null,null,null,null,null,null,null,607,45956.345885744639,45225.574972567643]
[null,null,null,null,null,null,null,null,null,null,null,null,null,null,null,null,null,608,39975.924823597605,38369.139818196687]
[null,null,null,null,null,null,null,null,null,null,null,null,null,null,null,null,null,609,45055.241064455513,46830.695610345785]
[null,null,null,null,null,null,null,null,null,null,null,null,null,null,null,null,null,610,44586.934640838292,40302.792508044433]
[null,null,null,null,null,null,null,null,null,null,null,null,null,null,null,null,null,611,42015.181546265623,38657.225577048499]
[null,null,null,null,null,null,null,null,null,null,null,null,null,null,null,null,null,612,43275.381056408718,45296.621531189252]
[null,null,null,null,null,null,null,null,null,null,null,null,null,null,null,null,null,613,42859.771154306363,38274.480769354945]
[null,null,null,null,null,null,null,null,null,null,null,null,null,null,null,null,null,614,45032.803987246683,37929.662210202005]
[null,null,null,null,null,null,null,null,null,null,null,null,null,null,null,null,null,615,43729.911943011481,42808.25507611411]
[null,null,null,null,null,null,null,null,null,null,null,null,null,null,null,null,null,616,45496.872082488058,41898.942706382833]
[null,null,null,null,null,null,null,null,null,null,null,null,null,null,null,null,null,617,42418.442817667958,41137.891709752403]
[null,null,null,null,null,null,null,null,null,null,null,null,null,null,null,null,null,618,43292.698135662984,46715.16137830208]
[null,null,null,null,null,null,null,null,null,null,null,null,null,null,null,null,null,619,43716.966577392486,36451.886447004705]
[null,null,null,null,null,null,null,null,null,null,null,null,null,null,null,null,null,620,41170.676825868286,39867.84157899722]
[null,null,null,null,null,null,null,null,null,null,null,null,null,null,null,null,null,621,41998.458235314807,42779.613106577024]
[null,null,null,null,null,null,null,null,null,null,null,null,null,null,null,null,null,622,45965.447954646545,38274.480769354945]
[null,null,null,null,null,null,null,null,null,null,null,null,null,null,null,null,null,623,46416.000811427213,39093.708732803098]
[null,null,null,null,null,null,null,null,null,null,null,null,null,null,null,null,null,624,42448.152703844826,40291.018142548412]
[null,null,null,null,null,null,null,null,null,null,null,null,null,null,null,null,null,625,44158.552098376254,44935.536182938187]
[null,null,null,null,null,null,null,null,null,null,null,null,null,null,null,null,null,626,45032.803987246676,43571.03594904871]
[null,null,null,null,null,null,null,null,null,null,null,null,null,null,null,null,null,627,42864.057560062371,40641.974425191336]
[null,null,null,null,null,null,null,null,null,null,null,null,null,null,null,null,null,628,44604.510181871708,47242.627608886738]
[null,null,null,null,null,null,null,null,null,null,null,null,null,null,null,null,null,629,45947.336162512685,38274.480769354952]
[null,null,null,null,null,null,null,null,null,null,null,null,null,null,null,null,null,630,42847.083376460796,38334.60759236032]
[null,null,null,null,null,null,null,null,null,null,null,null,null,null,null,null,null,631,43725.625117019619,52131.915662894236]
[null,null,null,null,null,null,null,null,null,null,null,null,null,null,null,null,null,632,41199.677624319986,39841.166969112179]
[null,null,null,null,null,null,null,null,null,null,null,null,null,null,null,null,null,633,46884.756913739482,45384.891544767583]
[null,null,null,null,null,null,null,null,null,null,null,null,null,null,null,null,null,634,44617.984813285329,39520.214012742596]
[null,null,null,null,null,null,null,null,null,null,null,null,null,null,null,null,null,635,42859.771154306363,43993.889841701952]
[null,null,null,null,null,null,null,null,null,null,null,null,null,null,null,null,null,636,43284.125324150977,46193.584333787061]
[null,null,null,null,null,null,null,null,null,null,null,null,null,null,null,null,null,637,45510.344509551032,43223.706233111981]
[null,null,null,null,null,null,null,null,null,null,null,null,null,null,null,null,null,638,43301.44590251198,40251.337971978326]
[null,null,null,null,null,null,null,null,null,null,null,null,null,null,null,null,null,639,41599.189649767948,37184.569364589501]
[null,null,null,null,null,null,null,null,null,null,null,null,null,null,null,null,null,640,44600.403962835073,34617.378598371695]
[null,null,null,null,null,null,null,null,null,null,null,null,null,null,null,null,null,641,42846.911937038356,40251.337971978333]
[null,null,null,null,null,null,null,null,null,null,null,null,null,null,null,null,null,642,42023.503032014545,43695.269037576909]
[null,null,null,null,null,null,null,null,null,null,null,null,null,null,null,null,null,643,45956.436446957632,41883.145197585989]
[null,null,null,null,null,null,null,null,null,null,null,null,null,null,null,null,null,644,42002.57573122024,40705.820433124878]
[null,null,null,null,null,null,null,null,null,null,null,null,null,null,null,null,null,645,44604.776551458875,41112.878637456117]
[null,null,null,null,null,null,null,null,null,null,null,null,null,null,null,null,null,646,44604.688653810968,44433.828740118981]
[null,null,null,null,null,null,null,null,null,null,null,null,null,null,null,null,null,647,44171.804965152478,37943.968542011593]
[null,null,null,null,null,null,null,null,null,null,null,null,null,null,null,null,null,648,42427.01393159353,49190.777201005774]
[null,null,null,null,null,null,null,null,null,null,null,null,null,null,null,null,null,649,44600.316073803726,44063.001499774349]
[null,null,null,null,null,null,null,null,null,null,null,null,null,null,null,null,null,650,44604.688653810968,36451.886447004712]
[null,null,null,null,null,null,null,null,null,null,null,null,null,null,null,null,null,651,45956.436446957639,41446.765997967392]
[null,null,null,null,null,null,null,null,null,null,null,null,null,null,null,null,null,652,42864.057560062378,42846.817211604553]
[null,null,null,null,null,null,null,null,null,null,null,null,null,null,null,null,null,653,42019.383484614082,39422.715192435593]
[null,null,null,null,null,null,null,null,null,null,null,null,null,null,null,null,null,654,43690.912525224921,36772.524401214068]
[null,null,null,null,null,null,null,null,null,null,null,null,null,null,null,null,null,655,45059.74703915944,48973.984371130959]
[null,null,null,null,null,null,null,null,null,null,null,null,null,null,null,null,null,656,44171.804965152471,39520.214012742596]
[null,null,null,null,null,null,null,null,null,null,null,null,null,null,null,null,null,657,45969.954371112697,41085.371003346263]
[null,null,null,null,null,null,null,null,null,null,null,null,null,null,null,null,null,658,46416.000811427206,50022.224782805635]
[null,null,null,null,null,null,null,null,null,null,null,null,null,null,null,null,null,659,42027.873964202809,44976.014596074652]
[null,null,null,null,null,null,null,null,null,null,null,null,null,null,null,null,null,660,45055.24106445552,42197.615048213826]
[null,null,null,null,null,null,null,null,null,null,null,null,null,null,null,null,null,661,43721.338711263619,40614.781861716299]
[null,null,null,null,null,null,null,null,null,null,null,null,null,null,null,null,null,662,43305.69114230635,36419.079749202407]
[null,null,null,null,null,null,null,null,null,null,null,null,null,null,null,null,null,663,45483.221655820642,37920.897470819]
[null,null,null,null,null,null,null,null,null,null,null,null,null,null,null,null,null,664,41166.80559699174,39903.754958459824]
[null,null,null,null,null,null,null,null,null,null,null,null,null,null,null,null,null,665,40371.646503426397,39128.924765091688]
[null,null,null,null,null,null,null,null,null,null,null,null,null,null,null,null,null,666,44600.31607380374,44935.536182938195]
[null,null,null,null,null,null,null,null,null,null,null,null,null,null,null,null,null,667,45496.872082488058,43626.734158192427]
[null,null,null,null,null,null,null,null,null,null,null,null,null,null,null,null,null,668,40787.5980242808,39520.214012742588]
[null,null,null,null,null,null,null,null,null,null,null,null,null,null,null,null,null,669,44163.145100454334,37126.246346274304]
[null,null,null,null,null,null,null,null,null,null,null,null,null,null,null,null,null,670,43297.115757921725,41549.270626849924]
[null,null,null,null,null,null,null,null,null,null,null,null,null,null,null,null,null,671,46392.886088937063,45456.188379791267]
[null,null,null,null,null,null,null,null,null,null,null,null,null,null,null,null,null,672,43734.460361537102,38274.480769354952]
[null,null,null,null,null,null,null,null,null,null,null,null,null,null,null,null,null,673,43716.966577392486,42657.983383741346]
[null,null,null,null,null,null,null,null,null,null,null,null,null,null,null,null,null,674,43284.125324150969,45330.797986849095]
[null,null,null,null,null,null,null,null,null,null,null,null,null,null,null,null,null,675,42427.01393159353,40651.368092999997]
[null,null,null,null,null,null,null,null,null,null,null,null,null,null,null,null,null,676,41582.631916153274,43571.03594904871]
[null,null,null,null,null,null,null,null,null,null,null,null,null,null,null,null,null,677,42855.569627872261,37159.690067334894]
[null,null,null,null,null,null,null,null,null,null,null,null,null,null,null,null,null,678,42426.844172949743,43139.639553513574]
[null,null,null,null,null,null,null,null,null,null,null,null,null,null,null,null,null,679,44586.934640838299,39105.133204966762]
[null,null,null,null,null,null,null,null,null,null,null,null,null,null,null,null,null,680,45501.332560143208,41898.942706382819]
[null,null,null,null,null,null,null,null,null,null,null,null,null,null,null,null,null,681,45928.957228047686,41861.233657947072]
[null,null,null,null,null,null,null,null,null,null,null,null,null,null,null,null,null,682,39951.940468460991,41458.878111137681]
[null,null,null,null,null,null,null,null,null,null,null,null,null,null,null,null,null,683,44613.610929860828,39852.809873245867]
[null,null,null,null,null,null,null,null,null,null,null,null,null,null,null,null,null,684,40363.570155220383,42741.111454781101]
[null,null,null,null,null,null,null,null,null,null,null,null,null,null,null,null,null,685,42418.612542696188,48210.381587210119]
[null,null,null,null,null,null,null,null,null,null,null,null,null,null,null,null,null,686,44617.984813285329,44503.631514772082]
[null,null,null,null,null,null,null,null,null,null,null,null,null,null,null,null,null,687,44167.474820562224,46294.299897930003]
[null,null,null,null,null,null,null,null,null,null,null,null,null,null,null,null,null,688,43288.542071633041,45808.070866102033]
[null,null,null,null,null,null,null,null,null,null,null,null,null,null,null,null,null,689,44167.474820562231,41845.450366908168]
[null,null,null,null,null,null,null,null,null,null,null,null,null,null,null,null,null,690,42015.181546265623,45838.740460215253]
[null,null,null,null,null,null,null,null,null,null,null,null,null,null,null,null,null,691,44600.403962835066,37452.816102636541]
[null,null,null,null,null,null,null,null,null,null,null,null,null,null,null,null,null,692,43721.252554507919,44530.707520866003]
[null,null,null,null,null,null,null,null,null,null,null,null,null,null,null,null,null,693,42868.25991864669,35358.329853594565]
[null,null,null,null,null,null,null,null,null,null,null,null,null,null,null,null,null,694,42006.776408861129,41496.224713379714]
[null,null,null,null,null,null,null,null,null,null,null,null,null,null,null,null,null,695,42418.442817667965,41048.394169443243]
[null,null,null,null,null,null,null,null,null,null,null,null,null,null,null,null,null,696,41179.241727993605,43139.639553513574]
[null,null,null,null,null,null,null,null,null,null,null,null,null,null,null,null,null,697,45487.680795198663,42712.514409419382]
[null,null,null,null,null,null,null,null,null,null,null,null,null,null,null,null,null,698,40367.768435118422,46294.299897929995]
[null,null,null,null,null,null,null,null,null,null,null,null,null,null,null,null,null,699,45501.332560143208,38717.953668283924]
[null,null,null,null,null,null,null,null,null,null,null,null,null,null,null,null,null,700,43716.966577392501,46770.906906726741]
[null,null,null,null,null,null,null,null,null,null,null,null,null,null,null,null,null,701,44604.776551458883,44460.862278209992]
[null,null,null,null,null,null,null,null,null,null,null,null,null,null,null,null,null,702,41599.356096793548,45006.127108704233]
[null,null,null,null,null,null,null,null,null,null,null,null,null,null,null,null,null,703,42443.991528204817,47164.523450001179]
[null,null,null,null,null,null,null,null,null,null,null,null,null,null,null,null,null,704,43309.936798300696,42356.052580769348]
[null,null,null,null,null,null,null,null,null,null,null,null,null,null,null,null,null,705,43725.800072356593,45835.940493000002]
[null,null,null,null,null,null,null,null,null,null,null,null,null,null,null,null,null,706,45032.803987246683,37906.599837688329]
[null,null,null,null,null,null,null,null,null,null,null,null,null,null,null,null,null,707,43734.460361537109,42305.569049675833]
[null,null,null,null,null,null,null,null,null,null,null,null,null,null,null,null,null,708,41607.428744568846,44878.167027520176]
[null,null,null,null,null,null,null,null,null,null,null,null,null,null,null,null,null,709,46875.565175896794,37613.116182919999]
[null,null,null,null,null,null,null,null,null,null,null,null,null,null,null,null,null,710,40787.5980242808,51092.901759011002]
[null,null,null,null,null,null,null,null,null,null,null,null,null,null,null,null,null,711,42864.229068088032,44992.978675130231]
[null,null,null,null,null,null,null,null,null,null,null,null,null,null,null,null,null,712,44154.312913065696,37159.690067334894]
[null,null,null,null,null,null,null,null,null,null,null,null,null,null,null,null,null,713,42855.741101935935,47150.74444604171]
[null,null,null,null,null,null,null,null,null,null,null,null,null,null,null,null,null,714,41599.189649767941,40641.974425191329]
[null,null,null,null,null,null,null,null,null,null,null,null,null,null,null,null,null,715,47813.076479414725,45367.779699524952]
[null,null,null,null,null,null,null,null,null,null,null,null,null,null,null,null,null,716,42439.577319460215,51092.901759011009]
[null,null,null,null,null,null,null,null,null,null,null,null,null,null,null,null,null,717,43262.570245565876,43104.474117482212]
[null,null,null,null,null,null,null,null,null,null,null,null,null,null,null,null,null,718,42019.383484614082,40641.974425191329]
[null,null,null,null,null,null,null,null,null,null,null,null,null,null,null,null,null,719,40367.527367980692,34617.378598371688]
[null,null,null,null,null,null,null,null,null,null,null,null,null,null,null,null,null,720,42435.33336172827,40705.820433124871]
[null,null,null,null,null,null,null,null,null,null,null,null,null,null,null,null,null,721,45037.307718018485,39105.133204966754]
[null,null,null,null,null,null,null,null,null,null,null,null,null,null,null,null,null,722,44132.234873964582,40203.36301802838]
[null,null,null,null,null,null,null,null,null,null,null,null,null,null,null,null,null,723,42829.944543110214,43639.48333001924]
[null,null,null,null,null,null,null,null,null,null,null,null,null,null,null,null,null,724,42846.911937038341,43152.246380218043]
[null,null,null,null,null,null,null,null,null,null,null,null,null,null,null,null,null,725,45046.138995553614,41431.138977136805]
[null,null,null,null,null,null,null,null,null,null,null,null,null,null,null,null,null,726,45496.872082488051,43178.500203696902]
[null,null,null,null,null,null,null,null,null,null,null,null,null,null,null,null,null,727,41170.841558324777,40717.716017542713]
[null,null,null,null,null,null,null,null,null,null,null,null,null,null,null,null,null,728,42418.442817667958,44790.882552928408]
[null,null,null,null,null,null,null,null,null,null,null,null,null,null,null,null,null,729,43734.460361537102,44063.001499774349]
[null,null,null,null,null,null,null,null,null,null,null,null,null,null,null,null,null,730,42872.63423088329,44490.629884097223]
[null,null,null,null,null,null,null,null,null,null,null,null,null,null,null,null,null,731,41595.111697640714,43194.786295240017]
[null,null,null,null,null,null,null,null,null,null,null,null,null,null,null,null,null,732,43717.141498084849,40705.820433124863]
[null,null,null,null,null,null,null,null,null,null,null,null,null,null,null,null,null,733,46420.551399742057,44171.976506808816]
[null,null,null,null,null,null,null,null,null,null,null,null,null,null,null,null,null,734,41603.516448438386,48098.474409407136]
[null,null,null,null,null,null,null,null,null,null,null,null,null,null,null,null,null,735,44149.807830633996,37920.897470818993]
[null,null,null,null,null,null,null,null,null,null,null,null,null,null,null,null,null,736,44176.222587411212,42728.624740172585]
[null,null,null,null,null,null,null,null,null,null,null,null,null,null,null,null,null,737,41599.189649767948,37943.968542011593]
[null,null,null,null,null,null,null,null,null,null,null,null,null,null,null,null,null,738,41603.516448438379,43626.734158192419]
[null,null,null,null,null,null,null,null,null,null,null,null,null,null,null,null,null,739,42859.771154306363,48597.782381847654]
[null,null,null,null,null,null,null,null,null,null,null,null,null,null,null,null,null,740,43712.681020429693,37955.057022138935]
[null,null,null,null,null,null,null,null,null,null,null,null,null,null,null,null,null,741,41998.458235314814,45808.070866102047]
[null,null,null,null,null,null,null,null,null,null,null,null,null,null,null,null,null,742,44609.149568767847,46788.547984296471]
[null,null,null,null,null,null,null,null,null,null,null,null,null,null,null,null,null,743,42422.771230200371,39469.758593881656]
[null,null,null,null,null,null,null,null,null,null,null,null,null,null,null,null,null,744,43725.625117019612,39473.110474254674]
[null,null,null,null,null,null,null,null,null,null,null,null,null,null,null,null,null,745,43279.796911618556,43626.734158192427]
[null,null,null,null,null,null,null,null,null,null,null,null,null,null,null,null,null,746,43275.554210225419,41845.450366908161]
[null,null,null,null,null,null,null,null,null,null,null,null,null,null,null,null,null,747,42015.264341051225,43571.035949048703]
[null,null,null,null,null,null,null,null,null,null,null,null,null,null,null,null,null,748,41582.549973908048,40678.585151827981]
[null,null,null,null,null,null,null,null,null,null,null,null,null,null,null,null,null,749,45965.447954646559,37486.554001237651]
[null,null,null,null,null,null,null,null,null,null,null,null,null,null,null,null,null,750,41599.023203408324,39831.960521576118]
[null,null,null,null,null,null,null,null,null,null,null,null,null,null,null,null,null,751,43279.882198445252,41898.942706382826]
[null,null,null,null,null,null,null,null,null,null,null,null,null,null,null,null,null,752,44158.728785944288,40984.010843621159]
[null,null,null,null,null,null,null,null,null,null,null,null,null,null,null,null,null,753,43297.115757921725,42834.29961530921]
[null,null,null,null,null,null,null,null,null,null,null,null,null,null,null,null,null,754,43725.886238073595,40212.655308630005]
[null,null,null,null,null,null,null,null,null,null,null,null,null,null,null,null,null,755,45055.329849958463,43597.544564069991]
[null,null,null,null,null,null,null,null,null,null,null,null,null,null,null,null,null,756,43734.460361537109,41586.698655640001]
[null,null,null,null,null,null,null,null,null,null,null,null,null,null,null,null,null,757,43716.966577392486,41511.876283285776]
[null,null,null,null,null,null,null,null,null,null,null,null,null,null,null,null,null,758,45501.332560143193,43155.910987574309]
[null,null,null,null,null,null,null,null,null,null,null,null,null,null,null,null,null,759,42443.991528204817,44503.631514772089]
[null,null,null,null,null,null,null,null,null,null,null,null,null,null,null,null,null,760,42448.069056014509,40188.204807822702]
[null,null,null,null,null,null,null,null,null,null,null,null,null,null,null,null,null,761,42864.144600342523,42779.613106577039]
[null,null,null,null,null,null,null,null,null,null,null,null,null,null,null,null,null,762,42443.907888574446,48041.146573585618]
[null,null,null,null,null,null,null,null,null,null,null,null,null,null,null,null,null,763,42027.791144568822,42728.62474017257]
[null,null,null,null,null,null,null,null,null,null,null,null,null,null,null,null,null,764,43297.11575792174,46739.613622558492]
[null,null,null,null,null,null,null,null,null,null,null,null,null,null,null,null,null,765,42447.982860620737,47126.077115041124]
[null,null,null,null,null,null,null,null,null,null,null,null,null,null,null,null,null,766,44176.222587411219,46283.602268426344]
[null,null,null,null,null,null,null,null,null,null,null,null,null,null,null,null,null,767,42439.747129051997,41561.412695256418]
[null,null,null,null,null,null,null,null,null,null,null,null,null,null,null,null,null,768,42859.942645181218,41977.026822208965]
[null,null,null,null,null,null,null,null,null,null,null,null,null,null,null,null,null,769,44149.894831897342,45497.135802013072]
[null,null,null,null,null,null,null,null,null,null,null,null,null,null,null,null,null,770,44158.728785944288,41883.145197585989]
[null,null,null,null,null,null,null,null,null,null,null,null,null,null,null,null,null,771,42418.442817667958,38717.953668283917]
[null,null,null,null,null,null,null,null,null,null,null,null,null,null,null,null,null,772,42015.181546265609,45718.977802315392]
[null,null,null,null,null,null,null,null,null,null,null,null,null,null,null,null,null,773,44613.523014803999,40693.928323973894]
[null,null,null,null,null,null,null,null,null,null,null,null,null,null,null,null,null,774,44171.804965152478,43610.28520573386]
[null,null,null,null,null,null,null,null,null,null,null,null,null,null,null,null,null,775,41183.032971374254,42741.111454781116]
[null,null,null,null,null,null,null,null,null,null,null,null,null,null,null,null,null,776,40375.763635838397,40641.974425191336]
[null,null,null,null,null,null,null,null,null,null,null,null,null,null,null,null,null,777,45956.345885744631,40314.570314398719]
[null,null,null,null,null,null,null,null,null,null,null,null,null,null,null,null,null,778,43301.44590251198,44965.621594306394]
[null,null,null,null,null,null,null,null,null,null,null,null,null,null,null,null,null,779,39939.953687642374,40605.396648208654]
[null,null,null,null,null,null,null,null,null,null,null,null,null,null,null,null,null,780,42426.844172949735,49682.684973015836]
[null,null,null,null,null,null,null,null,null,null,null,null,null,null,null,null,null,781,45059.747039159447,46655.520177124927]
[null,null,null,null,null,null,null,null,null,null,null,null,null,null,null,null,null,782,41615.835984161611,42368.430417494397]
[null,null,null,null,null,null,null,null,null,null,null,null,null,null,null,null,null,783,42846.911937038334,45907.945897800004]
[null,null,null,null,null,null,null,null,null,null,null,null,null,null,null,null,null,784,45956.436446957632,39032.391279639203]
[null,null,null,null,null,null,null,null,null,null,null,null,null,null,null,null,null,785,44136.561563658113,42422.591298618368]
[null,null,null,null,null,null,null,null,null,null,null,null,null,null,null,null,null,786,44595.94392243879,44146.1708]
[null,null,null,null,null,null,null,null,null,null,null,null,null,null,null,null,null,787,45050.824316973471,45880.032489455763]
[null,null,null,null,null,null,null,null,null,null,null,null,null,null,null,null,null,788,43288.454169567936,47683.128894867907]
[null,null,null,null,null,null,null,null,null,null,null,null,null,null,null,null,null,789,43292.871358768905,39032.391279639203]
[null,null,null,null,null,null,null,null,null,null,null,null,null,null,null,null,null,790,44582.56380124994,40251.337971978333]
[null,null,null,null,null,null,null,null,null,null,null,null,null,null,null,null,null,791,41599.189649767948,47697.063479137178]
[null,null,null,null,null,null,null,null,null,null,null,null,null,null,null,null,null,792,42846.911937038341,44905.470900992099]
[null,null,null,null,null,null,null,null,null,null,null,null,null,null,null,null,null,793,42439.747129052004,40251.337971978333]
[null,null,null,null,null,null,null,null,null,null,null,null,null,null,null,null,null,794,41599.189649767948,37847.144333580589]
[null,null,null,null,null,null,null,null,null,null,null,null,null,null,null,null,null,795,42863.973092654829,37545.443040414852]
[null,null,null,null,null,null,null,null,null,null,null,null,null,null,null,null,null,796,42439.577319460222,33988.589689122913]
[null,null,null,null,null,null,null,null,null,null,null,null,null,null,null,null,null,797,44609.149568767847,41048.394169443243]
[null,null,null,null,null,null,null,null,null,null,null,null,null,null,null,null,null,798,44149.807830633996,43695.269037576923]
[null,null,null,null,null,null,null,null,null,null,null,null,null,null,null,null,null,799,43725.8000723566,38717.953668283917]
[null,null,null,null,null,null,null,null,null,null,null,null,null,null,null,null,null,800,44180.55358962567,41085.37100334627]
[null,null,null,null,null,null,null,null,null,null,null,null,null,null,null,null,null,801,43730.173089665572,46325.295033956892]
[null,null,null,null,null,null,null,null,null,null,null,null,null,null,null,null,null,802,43734.460361537102,43626.734158192419]
[null,null,null,null,null,null,null,null,null,null,null,null,null,null,null,null,null,803,42838.427400021108,39067.552076508066]
[null,null,null,null,null,null,null,null,null,null,null,null,null,null,null,null,null,804,45064.164661418188,37920.897470819]
[null,null,null,null,null,null,null,null,null,null,null,null,null,null,null,null,null,805,41603.349984766413,44050.128598116062]
[null,null,null,null,null,null,null,null,null,null,null,null,null,null,null,null,null,806,44604.776551458883,44046.388057791213]
[null,null,null,null,null,null,null,null,null,null,null,null,null,null,null,null,null,807,44149.984483214394,41883.145197585989]
[null,null,null,null,null,null,null,null,null,null,null,null,null,null,null,null,null,808,44600.316073803726,45384.891544767575]
[null,null,null,null,null,null,null,null,null,null,null,null,null,null,null,null,null,809,42851.112614679223,37920.897470819]
[null,null,null,null,null,null,null,null,null,null,null,null,null,null,null,null,null,810,46880.160819541496,42712.514409419375]
[null,null,null,null,null,null,null,null,null,null,null,null,null,null,null,null,null,811,42876.83743031769,49697.203893575919]
[null,null,null,null,null,null,null,null,null,null,null,null,null,null,null,null,null,812,43704.025043990005,39067.552076508066]
[null,null,null,null,null,null,null,null,null,null,null,null,null,null,null,null,null,813,45960.94197994264,38692.048420627063]
[null,null,null,null,null,null,null,null,null,null,null,null,null,null,null,null,null,814,45965.447954646545,36101.523654941266]
[null,null,null,null,null,null,null,null,null,null,null,null,null,null,null,null,null,815,44171.892009763207,39867.841578997206]
[null,null,null,null,null,null,null,null,null,null,null,null,null,null,null,null,null,816,43292.87135876892,43587.470097450052]
[null,null,null,null,null,null,null,null,null,null,null,null,null,null,null,null,null,817,43716.966577392486,42372.028461044967]
[null,null,null,null,null,null,null,null,null,null,null,null,null,null,null,null,null,818,45960.941979942647,37520.322291299824]
[null,null,null,null,null,null,null,null,null,null,null,null,null,null,null,null,null,819,44171.804965152478,44050.128598116062]
[null,null,null,null,null,null,null,null,null,null,null,null,null,null,null,null,null,820,42859.771154306356,41122.381146377993]
[null,null,null,null,null,null,null,null,null,null,null,null,null,null,null,null,null,821,43279.882198445252,34692.85463827999]
[null,null,null,null,null,null,null,null,null,null,null,null,null,null,null,null,null,822,43729.911943011481,36044.899365314865]
[null,null,null,null,null,null,null,null,null,null,null,null,null,null,null,null,null,823,44604.77655145889,38214.448253688868]
[null,null,null,null,null,null,null,null,null,null,null,null,null,null,null,null,null,824,44158.552098376254,43139.639553513574]
[null,null,null,null,null,null,null,null,null,null,null,null,null,null,null,null,null,825,43310.022144520801,42779.613106577039]
[null,null,null,null,null,null,null,null,null,null,null,null,null,null,null,null,null,826,42439.577319460222,42356.052580769348]
[null,null,null,null,null,null,null,null,null,null,null,null,null,null,null,null,null,827,42439.577319460222,39852.809873245875]
[null,null,null,null,null,null,null,null,null,null,null,null,null,null,null,null,null,828,42006.944486726272,39867.841578997206]
[null,null,null,null,null,null,null,null,null,null,null,null,null,null,null,null,null,829,42851.284070909474,36791.772343895937]
[null,null,null,null,null,null,null,null,null,null,null,null,null,null,null,null,null,830,42872.718715358409,36419.079749202407]
[null,null,null,null,null,null,null,null,null,null,null,null,null,null,null,null,null,831,42431.173442763306,36816.405311474758]
[null,null,null,null,null,null,null,null,null,null,null,null,null,null,null,null,null,832,44180.55358962567,46844.381085470755]
[null,null,null,null,null,null,null,null,null,null,null,null,null,null,null,null,null,833,42439.830760483201,40287.596809106522]
[null,null,null,null,null,null,null,null,null,null,null,null,null,null,null,null,null,834,41998.458235314814,41484.101689487943]
[null,null,null,null,null,null,null,null,null,null,null,null,null,null,null,null,null,835,39152.901659091782,48609.01489282649]
[null,null,null,null,null,null,null,null,null,null,null,null,null,null,null,null,null,836,43725.800072356593,46283.60226842633]
[null,null,null,null,null,null,null,null,null,null,null,null,null,null,null,null,null,837,45956.436446957632,43626.734158192427]
[null,null,null,null,null,null,null,null,null,null,null,null,null,null,null,null,null,838,43292.871358768913,39841.166969112186]
[null,null,null,null,null,null,null,null,null,null,null,null,null,null,null,null,null,839,41183.032971374247,42356.052580769341]
[null,null,null,null,null,null,null,null,null,null,null,null,null,null,null,null,null,840,41582.549973908026,42384.410966449614]
[null,null,null,null,null,null,null,null,null,null,null,null,null,null,null,null,null,841,45960.941979942632,44503.631514772082]
[null,null,null,null,null,null,null,null,null,null,null,null,null,null,null,null,null,842,41586.708644772516,44513.917735770003]
[null,null,null,null,null,null,null,null,null,null,null,null,null,null,null,null,null,843,40355.577369051025,39032.391279639196]
[null,null,null,null,null,null,null,null,null,null,null,null,null,null,null,null,null,844,44171.804965152471,42346.264996579805]
[null,null,null,null,null,null,null,null,null,null,null,null,null,null,null,null,null,845,43716.966577392486,44976.014596074652]
[null,null,null,null,null,null,null,null,null,null,null,null,null,null,null,null,null,846,39971.846063795187,44010.483482377756]
[null,null,null,null,null,null,null,null,null,null,null,null,null,null,null,null,null,847,45938.053872378863,37545.443040414844]
[null,null,null,null,null,null,null,null,null,null,null,null,null,null,null,null,null,848,42855.485177190931,38334.607592360328]
[null,null,null,null,null,null,null,null,null,null,null,null,null,null,null,null,null,849,42859.942645181218,41561.412695256411]
[null,null,null,null,null,null,null,null,null,null,null,null,null,null,null,null,null,850,42851.284070909474,40239.578638803301]
[null,null,null,null,null,null,null,null,null,null,null,null,null,null,null,null,null,851,45956.436446957639,43194.786295240025]
[null,null,null,null,null,null,null,null,null,null,null,null,null,null,null,null,null,852,43275.554210225411,40314.570314398712]
[null,null,null,null,null,null,null,null,null,null,null,null,null,null,null,null,null,853,41607.428744568846,36419.079749202407]
[null,null,null,null,null,null,null,null,null,null,null,null,null,null,null,null,null,854,45041.723140343776,42372.028461044967]
[null,null,null,null,null,null,null,null,null,null,null,null,null,null,null,null,null,855,41603.516448438379,42741.111454781116]
[null,null,null,null,null,null,null,null,null,null,null,null,null,null,null,null,null,856,42023.671176806376,38982.558663588003]
[null,null,null,null,null,null,null,null,null,null,null,null,null,null,null,null,null,857,46406.809524137818,41511.876283285768]
[null,null,null,null,null,null,null,null,null,null,null,null,null,null,null,null,null,858,43271.311924742586,49663.952694771702]
[null,null,null,null,null,null,null,null,null,null,null,null,null,null,null,null,null,859,44600.31607380374,38288.917160027027]
[null,null,null,null,null,null,null,null,null,null,null,null,null,null,null,null,null,860,44145.479842414163,38631.360961090737]
[null,null,null,null,null,null,null,null,null,null,null,null,null,null,null,null,null,861,41607.428744568846,46252.635028021868]
[null,null,null,null,null,null,null,null,null,null,null,null,null,null,null,null,null,862,45064.164661418174,42301.976649561853]
[null,null,null,null,null,null,null,null,null,null,null,null,null,null,null,null,null,863,44180.55358962567,36816.405311474758]
[null,null,null,null,null,null,null,null,null,null,null,null,null,null,null,null,null,864,44617.984813285329,37218.065623650786]
[null,null,null,null,null,null,null,null,null,null,null,null,null,null,null,null,null,865,45510.344509551032,47299.002566449235]
[null,null,null,null,null,null,null,null,null,null,null,null,null,null,null,null,null,866,43734.460361537109,37895.525514212815]
[null,null,null,null,null,null,null,null,null,null,null,null,null,null,null,null,null,867,42002.575731220233,38357.93036476001]
[null,null,null,null,null,null,null,null,null,null,null,null,null,null,null,null,null,868,42435.333361728277,38717.953668283917]
[null,null,null,null,null,null,null,null,null,null,null,null,null,null,null,null,null,869,45059.747039159447,39093.70873280309]
[null,null,null,null,null,null,null,null,null,null,null,null,null,null,null,null,null,870,44149.807830634003,45907.945897800004]
[null,null,null,null,null,null,null,null,null,null,null,null,null,null,null,null,null,871,43301.445902511994,48579.459153501215]
[null,null,null,null,null,null,null,null,null,null,null,null,null,null,null,null,null,872,43292.698135662984,40690.472777197589]
[null,null,null,null,null,null,null,null,null,null,null,null,null,null,null,null,null,873,43725.8000723566,45006.127108704226]
[null,null,null,null,null,null,null,null,null,null,null,null,null,null,null,null,null,874,42851.284070909474,41511.876283285754]
[null,null,null,null,null,null,null,null,null,null,null,null,null,null,null,null,null,875,42439.747129051997,46193.584333787054]
[null,null,null,null,null,null,null,null,null,null,null,null,null,null,null,null,null,876,40763.209463687905,37590.246279887295]
[null,null,null,null,null,null,null,null,null,null,null,null,null,null,null,null,null,877,43297.115757921725,42792.114721669343]
[null,null,null,null,null,null,null,null,null,null,null,null,null,null,null,null,null,878,43275.554210225397,41898.942706382812]
[null,null,null,null,null,null,null,null,null,null,null,null,null,null,null,null,null,879,42031.994344003215,37218.065623650786]
[null,null,null,null,null,null,null,null,null,null,null,null,null,null,null,null,null,880,44591.305908940332,39903.754958459824]
[null,null,null,null,null,null,null,null,null,null,null,null,null,null,null,null,null,881,44604.776551458883,43139.639553513567]
[null,null,null,null,null,null,null,null,null,null,null,null,null,null,null,null,null,882,41998.626279897217,44417.075482039938]
[null,null,null,null,null,null,null,null,null,null,null,null,null,null,null,null,null,883,43734.460361537102,45367.779699524937]
[null,null,null,null,null,null,null,null,null,null,null,null,null,null,null,null,null,884,45492.14037174722,43155.910987574309]
[null,null,null,null,null,null,null,null,null,null,null,null,null,null,null,null,null,885,41986.02543192845,44507.410885467936]
[null,null,null,null,null,null,null,null,null,null,null,null,null,null,null,null,null,886,42418.612542696188,42289.618227147905]
[null,null,null,null,null,null,null,null,null,null,null,null,null,null,null,null,null,887,42032.077171919998,40176.463918852234]
[null,null,null,null,null,null,null,null,null,null,null,null,null,null,null,null,null,888,42851.284070909467,41149.913559659813]
[null,null,null,null,null,null,null,null,null,null,null,null,null,null,null,null,null,889,43310.022144520801,42767.115143801995]
[null,null,null,null,null,null,null,null,null,null,null,null,null,null,null,null,null,890,45951.840803312931,44380.868739407677]
[null,null,null,null,null,null,null,null,null,null,null,null,null,null,null,null,null,891,42859.771154306363,48217.429800749233]
[null,null,null,null,null,null,null,null,null,null,null,null,null,null,null,null,null,892,43734.460361537102,44063.001499774349]
[null,null,null,null,null,null,null,null,null,null,null,null,null,null,null,null,null,893,42435.41698446175,37861.419541250019]
[null,null,null,null,null,null,null,null,null,null,null,null,null,null,null,null,null,894,39968.008798880073,40626.650841658426]
[null,null,null,null,null,null,null,null,null,null,null,null,null,null,null,null,null,895,45023.975324034589,39867.84157899722]
[null,null,null,null,null,null,null,null,null,null,null,null,null,null,null,null,null,896,43712.6810204297,43626.734158192427]
[null,null,null,null,null,null,null,null,null,null,null,null,null,null,null,null,null,897,42422.685086176585,43117.070667685475]
[null,null,null,null,null,null,null,null,null,null,null,null,null,null,null,null,null,898,42847.254816569213,45367.779699524952]
[null,null,null,null,null,null,null,null,null,null,null,null,null,null,null,null,null,899,39964.009599359997,44119.328603768488]
[null,null,null,null,null,null,null,null,null,null,null,null,null,null,null,null,null,900,40375.684071833581,43610.28520573386]
[null,null,null,null,null,null,null,null,null,null,null,null,null,null,null,null,null,901,42452.397943639204,42712.514409419382]
[null,null,null,null,null,null,null,null,null,null,null,null,null,null,null,null,null,902,39580.123587720402,39140.359528542445]
[null,null,null,null,null,null,null,null,null,null,null,null,null,null,null,null,null,903,42846.911937038349,37955.057022138935]
[null,null,null,null,null,null,null,null,null,null,null,null,null,null,null,null,null,904,45969.95437111269,38274.480769354945]
[null,null,null,null,null,null,null,null,null,null,null,null,null,null,null,null,null,905,44154.136243166409,44503.631514772082]
[null,null,null,null,null,null,null,null,null,null,null,null,null,null,null,null,null,906,43292.612823581367,40266.519994787195]
[null,null,null,null,null,null,null,null,null,null,null,null,null,null,null,null,null,907,44600.31607380374,39078.968904833338]
[null,null,null,null,null,null,null,null,null,null,null,null,null,null,null,null,null,908,41590.867731545659,47547.55764187473]
[null,null,null,null,null,null,null,null,null,null,null,null,null,null,null,null,null,909,42435.416984461735,38741.509668407598]
[null,null,null,null,null,null,null,null,null,null,null,null,null,null,null,null,null,910,43301.445902511987,43666.033588422004]
[null,null,null,null,null,null,null,null,null,null,null,null,null,null,null,null,null,911,45496.872082488051,38596.592736225757]
[null,null,null,null,null,null,null,null,null,null,null,null,null,null,null,null,null,912,43730.086915500942,43233.696622200005]
[null,null,null,null,null,null,null,null,null,null,null,null,null,null,null,null,null,913,42431.42683359993,44865.055977181204]
[null,null,null,null,null,null,null,null,null,null,null,null,null,null,null,null,null,914,42868.431443486865,40302.792508044418]
[null,null,null,null,null,null,null,null,null,null,null,null,null,null,null,null,null,915,41179.160580664306,38645.931960038804]
[null,null,null,null,null,null,null,null,null,null,null,null,null,null,null,null,null,916,45487.862800887575,38692.048420627056]
[null,null,null,null,null,null,null,null,null,null,null,null,null,null,null,null,null,917,41574.39773161542,42317.932133446659]
[null,null,null,null,null,null,null,null,null,null,null,null,null,null,null,null,null,918,42431.173442763306,42834.29961530921]
[null,null,null,null,null,null,null,null,null,null,null,null,null,null,null,null,null,919,39940.034790201389,36405.348358967989]
[null,null,null,null,null,null,null,null,null,null,null,null,null,null,null,null,null,920,44595.943922438782,38369.139818196694]
[null,null,null,null,null,null,null,null,null,null,null,null,null,null,null,null,null,921,45487.68079519867,39082.287598271942]
[null,null,null,null,null,null,null,null,null,null,null,null,null,null,null,null,null,922,45505.883148458059,41898.942706382819]
[null,null,null,null,null,null,null,null,null,null,null,null,null,null,null,null,null,923,42410.043126020901,40690.472777197603]
[null,null,null,null,null,null,null,null,null,null,null,null,null,null,null,null,null,924,43712.681020429693,42741.111454781108]
[null,null,null,null,null,null,null,null,null,null,null,null,null,null,null,null,null,925,45487.68079519867,41549.270626849917]
[null,null,null,null,null,null,null,null,null,null,null,null,null,null,null,null,null,926,43734.460361537109,36484.722697432408]
[null,null,null,null,null,null,null,null,null,null,null,null,null,null,null,null,null,927,44604.688653810961,45006.127108704219]
[null,null,null,null,null,null,null,null,null,null,null,null,null,null,null,null,null,928,43292.871358768913,37218.065623650786]
[null,null,null,null,null,null,null,null,null,null,null,null,null,null,null,null,null,929,44162.881368189825,44132.221727952681]
[null,null,null,null,null,null,null,null,null,null,null,null,null,null,null,null,null,930,45050.824316973471,36419.079749202407]
[null,null,null,null,null,null,null,null,null,null,null,null,null,null,null,null,null,931,42443.907888574446,39831.960521576133]
[null,null,null,null,null,null,null,null,null,null,null,null,null,null,null,null,null,932,42851.284070909474,41431.138977136805]
[null,null,null,null,null,null,null,null,null,null,null,null,null,null,null,null,null,933,46880.160819541481,45808.07086610204]
[null,null,null,null,null,null,null,null,null,null,null,null,null,null,null,null,null,934,45505.883148458051,43954.295340844437]
[null,null,null,null,null,null,null,null,null,null,null,null,null,null,null,null,null,935,43309.936798300703,41048.394169443236]
[null,null,null,null,null,null,null,null,null,null,null,null,null,null,null,null,null,936,45055.329849958463,38263.298970335461]
[null,null,null,null,null,null,null,null,null,null,null,null,null,null,null,null,null,937,45055.241064455528,42683.93649765]
[null,null,null,null,null,null,null,null,null,null,null,null,null,null,null,null,null,938,43305.69114230635,38300.106445527192]
[null,null,null,null,null,null,null,null,null,null,null,null,null,null,null,null,null,939,42859.771154306363,39128.92476509168]
[null,null,null,null,null,null,null,null,null,null,null,null,null,null,null,null,null,940,46875.565175896787,48174.034113928552]
[null,null,null,null,null,null,null,null,null,null,null,null,null,null,null,null,null,941,39959.934453668182,39032.391279639203]
[null,null,null,null,null,null,null,null,null,null,null,null,null,null,null,null,null,942,40783.519264478367,41936.685723533999]
[null,null,null,null,null,null,null,null,null,null,null,null,null,null,null,null,null,943,43716.966577392479,38369.139818196694]
[null,null,null,null,null,null,null,null,null,null,null,null,null,null,null,null,null,944,44578.105544869803,39407.851316408654]
[null,null,null,null,null,null,null,null,null,null,null,null,null,null,null,null,null,945,41599.271624803194,38680.744630205998]
[null,null,null,null,null,null,null,null,null,null,null,null,null,null,null,null,null,946,43716.966577392479,42885.414084280404]
[null,null,null,null,null,null,null,null,null,null,null,null,null,null,null,null,null,947,40771.282985071084,43626.734158192419]
[null,null,null,null,null,null,null,null,null,null,null,null,null,null,null,null,null,948,40775.606471114465,43194.786295240025]
[null,null,null,null,null,null,null,null,null,null,null,null,null,null,null,null,null,949,42426.844172949728,44865.05597718119]
[null,null,null,null,null,null,null,null,null,null,null,null,null,null,null,null,null,950,45514.80630803237,36827.164280405588]
[null,null,null,null,null,null,null,null,null,null,null,null,null,null,null,null,null,951,42868.431443486857,45766.843602322544]
[null,null,null,null,null,null,null,null,null,null,null,null,null,null,null,null,null,952,44613.523014803999,45849.335267843097]
[null,null,null,null,null,null,null,null,null,null,null,null,null,null,null,null,null,953,43708.395883578378,45784.10596671758]
[null,null,null,null,null,null,null,null,null,null,null,null,null,null,null,null,null,954,43292.871358768913,48565.266779422956]
[null,null,null,null,null,null,null,null,null,null,null,null,null,null,null,null,null,955,43734.460361537116,43262.642611462303]
[null,null,null,null,null,null,null,null,null,null,null,null,null,null,null,null,null,956,44163.145100454341,41926.995046118609]
[null,null,null,null,null,null,null,null,null,null,null,null,null,null,null,null,null,957,44176.135534266694,38706.642309706032]
[null,null,null,null,null,null,null,null,null,null,null,null,null,null,null,null,null,958,43712.855923974646,42384.410966449614]
[null,null,null,null,null,null,null,null,null,null,null,null,null,null,null,null,null,959,42855.569627872246,50587.031444565357]
[null,null,null,null,null,null,null,null,null,null,null,null,null,null,null,null,null,960,40351.459873145592,42728.624740172563]
[null,null,null,null,null,null,null,null,null,null,null,null,null,null,null,null,null,961,41615.835984161604,41964.763333118426]
[null,null,null,null,null,null,null,null,null,null,null,null,null,null,null,null,null,962,43301.36057319212,40705.820433124871]
[null,null,null,null,null,null,null,null,null,null,null,null,null,null,null,null,null,963,43708.395883578371,43626.734158192427]
[null,null,null,null,null,null,null,null,null,null,null,null,null,null,null,null,null,964,44163.058073080167,43587.470097450052]
[null,null,null,null,null,null,null,null,null,null,null,null,null,null,null,null,null,965,41183.197753270259,44848.140129890344]
[null,null,null,null,null,null,null,null,null,null,null,null,null,null,null,null,null,966,43725.625117019619,40968.558299236734]
[null,null,null,null,null,null,null,null,null,null,null,null,null,null,null,null,null,967,42842.627245844633,44119.328603768488]
[null,null,null,null,null,null,null,null,null,null,null,null,null,null,null,null,null,968,41595.111697640714,42356.052580769348]
[null,null,null,null,null,null,null,null,null,null,null,null,null,null,null,null,null,969,44595.76548548889,42317.932133446651]
[null,null,null,null,null,null,null,null,null,null,null,null,null,null,null,null,null,970,43730.173089665579,38308.958832304015]
[null,null,null,null,null,null,null,null,null,null,null,null,null,null,null,null,null,971,41170.841558324792,43223.706233111967]
[null,null,null,null,null,null,null,null,null,null,null,null,null,null,null,null,null,972,45055.24106445552,36816.405311474758]
[null,null,null,null,null,null,null,null,null,null,null,null,null,null,null,null,null,973,44613.610929860843,43211.078529580511]
[null,null,null,null,null,null,null,null,null,null,null,null,null,null,null,null,null,974,43288.368865849421,46307.828620521526]
[null,null,null,null,null,null,null,null,null,null,null,null,null,null,null,null,null,975,43708.13486697281,45808.070866102054]
[null,null,null,null,null,null,null,null,null,null,null,null,null,null,null,null,null,976,44171.804965152478,37511.652141678482]
[null,null,null,null,null,null,null,null,null,null,null,null,null,null,null,null,null,977,43712.681020429707,44952.484994322607]
[null,null,null,null,null,null,null,null,null,null,null,null,null,null,null,null,null,978,44163.058073080167,40251.337971978333]
[null,null,null,null,null,null,null,null,null,null,null,null,null,null,null,null,null,979,44613.610929860843,40291.018142548404]
[null,null,null,null,null,null,null,null,null,null,null,null,null,null,null,null,null,980,45028.389439262435,44450.588317201538]
[null,null,null,null,null,null,null,null,null,null,null,null,null,null,null,null,null,981,42829.773172263529,39078.968904833331]
[null,null,null,null,null,null,null,null,null,null,null,null,null,null,null,null,null,982,44167.474820562231,42356.052580769334]
[null,null,null,null,null,null,null,null,null,null,null,null,null,null,null,null,null,983,44600.31607380374,43626.734158192419]
[null,null,null,null,null,null,null,null,null,null,null,null,null,null,null,null,null,984,46420.551399742057,44935.536182938195]
[null,null,null,null,null,null,null,null,null,null,null,null,null,null,null,null,null,985,41595.029730802962,41911.186960513514]
[null,null,null,null,null,null,null,null,null,null,null,null,null,null,null,null,null,986,44595.943922438797,39437.584674827842]
[null,null,null,null,null,null,null,null,null,null,null,null,null,null,null,null,null,987,45938.053872378841,47256.433464139431]
[null,null,null,null,null,null,null,null,null,null,null,null,null,null,null,null,null,988,42010.894720273755,39852.809873245882]
[null,null,null,null,null,null,null,null,null,null,null,null,null,null,null,null,null,989,44180.55358962567,46311.761208594005]
[null,null,null,null,null,null,null,null,null,null,null,null,null,null,null,null,null,990,45951.840803312938,44503.631514772089]
[null,null,null,null,null,null,null,null,null,null,null,null,null,null,null,null,null,991,39963.930846752846,41898.942706382819]
[null,null,null,null,null,null,null,null,null,null,null,null,null,null,null,null,null,992,43292.871358768913,42712.514409419382]
[null,null,null,null,null,null,null,null,null,null,null,null,null,null,null,null,null,993,44167.474820562231,39939.700689080004]
[null,null,null,null,null,null,null,null,null,null,null,null,null,null,null,null,null,994,45514.806308032355,44023.344798424565]
[null,null,null,null,null,null,null,null,null,null,null,null,null,null,null,null,null,995,43708.395883578363,37955.057022138928]
[null,null,null,null,null,null,null,null,null,null,null,null,null,null,null,null,null,996,44167.474820562231,37966.148742686157]
[null,null,null,null,null,null,null,null,null,null,null,null,null,null,null,null,null,997,43288.454169567936,41861.233657947065]
[null,null,null,null,null,null,null,null,null,null,null,null,null,null,null,null,null,998,45942.55760315065,43587.470097450059]
[null,null,null,null,null,null,null,null,null,null,null,null,null,null,null,null,null,999,43275.554210225419,39841.166969112179]
[null,null,null,null,null,null,null,null,null,null,null,null,null,null,null,null,null,1000,43292.786046345951,38308.958832304023]

{"sheet":"Plan2","index":2,"n_rows":0,"n_cols":0,"rows_kept":0,"cut":false,"hidden":false,"merged":[]}

{"sheet":"Plan3","index":3,"n_rows":0,"n_cols":0,"rows_kept":0,"cut":false,"hidden":false,"merged":[]}